Department Family,Entity,Date,Expense Type,Expense area,Supplier,Transaction Number,Amount,VAT registration Number
Department of Health,Salisbury NHS Foundation Trust,02-Jul-10,ENERGY WATER - WATER MAINS,Facilities Directorate,BWBSL,1086510905,22903.3,
Department of Health,Salisbury NHS Foundation Trust,02-Jul-10,ENERGY WATER - WATER MAINS,Facilities Directorate,BWBSL,1086510905,9635.18,
Department of Health,Salisbury NHS Foundation Trust,02-Jul-10,MEDICAL EQUIPMENT 10 YEARS,Capital Projects,MAQUET LIMITED,3590020375,35000,
Department of Health,Salisbury NHS Foundation Trust,02-Jul-10,MEDICAL EQUIPMENT 10 YEARS,Capital Projects,MAQUET LIMITED,3590020375,6125,
Department of Health,Salisbury NHS Foundation Trust,02-Jul-10,PATIENTS CONT TREAT NEWHALL,Surgery,NEW HALL HOSPITAL,SDH01,5934.05,
Department of Health,Salisbury NHS Foundation Trust,02-Jul-10,PATIENTS CONT TREAT NEWHALL,Critical care,NEW HALL HOSPITAL,SDH01,2897.29,
Department of Health,Salisbury NHS Foundation Trust,02-Jul-10,PATIENTS CONT TREAT NEWHALL,Critical care,NEW HALL HOSPITAL,SDH01,21210.26,
Department of Health,Salisbury NHS Foundation Trust,02-Jul-10,PATIENTS CONT TREAT NEWHALL,Critical care,NEW HALL HOSPITAL,SDH01,3711.8,
Department of Health,Salisbury NHS Foundation Trust,02-Jul-10,PATIENTS CONT TREAT NEWHALL,Critical care,NEW HALL HOSPITAL,SDH01,507.03,
Department of Health,Salisbury NHS Foundation Trust,02-Jul-10,PATIENTS CONT TREAT NEWHALL,Surgery,NEW HALL HOSPITAL,SDH01,1038.46,
Department of Health,Salisbury NHS Foundation Trust,02-Jul-10,PATIENTS CONT TREAT NEWHALL,Critical care,NEW HALL HOSPITAL,SDH01,-21210.26,
Department of Health,Salisbury NHS Foundation Trust,02-Jul-10,PATIENTS CONT TREAT NEWHALL,Critical care,NEW HALL HOSPITAL,SDH01,-2897.29,
Department of Health,Salisbury NHS Foundation Trust,02-Jul-10,PATIENTS CONT TREAT NEWHALL,Surgery,NEW HALL HOSPITAL,SDH01,-5934.05,
Department of Health,Salisbury NHS Foundation Trust,02-Jul-10,PATIENTS CONT TREAT NEWHALL,Critical care,NEW HALL HOSPITAL,SDH01,-3711.8,
Department of Health,Salisbury NHS Foundation Trust,02-Jul-10,PATIENTS CONT TREAT NEWHALL,Critical care,NEW HALL HOSPITAL,SDH01,-507.03,
Department of Health,Salisbury NHS Foundation Trust,02-Jul-10,PATIENTS CONT TREAT NEWHALL,Surgery,NEW HALL HOSPITAL,SDH01,-1038.46,
Department of Health,Salisbury NHS Foundation Trust,02-Jul-10,PATIENTS CONT TREAT NEWHALL,Surgery,NEW HALL HOSPITAL,SDH01,5934.05,
Department of Health,Salisbury NHS Foundation Trust,02-Jul-10,PATIENTS CONT TREAT NEWHALL,Critical care,NEW HALL HOSPITAL,SDH01,2867.29,
Department of Health,Salisbury NHS Foundation Trust,02-Jul-10,PATIENTS CONT TREAT NEWHALL,Critical care,NEW HALL HOSPITAL,SDH01,21210.26,
Department of Health,Salisbury NHS Foundation Trust,02-Jul-10,INSURANCE COSTS,Nursing Directorate,NHS LITIGATION AUTHORITY,SICX/00049595,283917.6,
Department of Health,Salisbury NHS Foundation Trust,02-Jul-10,DI & RADIO - RADIOLOGY EQUIPMENT,Medicine,SIEMENS HEALTHCARE DIAGNOSTICS LIMITED,1019787522,2207.25,
Department of Health,Salisbury NHS Foundation Trust,02-Jul-10,DI & RADIO - RADIOLOGY EQUIPMENT,Medicine,SIEMENS HEALTHCARE DIAGNOSTICS LIMITED,1019787522,48923,
Department of Health,Salisbury NHS Foundation Trust,02-Jul-10,DI & RADIO - RADIOLOGY EQUIPMENT,Medicine,SIEMENS HEALTHCARE DIAGNOSTICS LIMITED,1019787522,1962.5,
Department of Health,Salisbury NHS Foundation Trust,02-Jul-10,DI & RADIO - RADIOLOGY EQUIPMENT,Medicine,SIEMENS HEALTHCARE DIAGNOSTICS LIMITED,1019787522,386.27,
Department of Health,Salisbury NHS Foundation Trust,02-Jul-10,DI & RADIO - RADIOLOGY EQUIPMENT,Medicine,SIEMENS HEALTHCARE DIAGNOSTICS LIMITED,1019787522,8561.53,
Department of Health,Salisbury NHS Foundation Trust,02-Jul-10,DI & RADIO - RADIOLOGY EQUIPMENT,Medicine,SIEMENS HEALTHCARE DIAGNOSTICS LIMITED,1019787522,343.44,
Department of Health,Salisbury NHS Foundation Trust,02-Jul-10,DI & RADIO - RADIOLOGY EQUIPMENT,Medicine,SIEMENS HEALTHCARE DIAGNOSTICS LIMITED,1019787522,-0.01,
Department of Health,Salisbury NHS Foundation Trust,02-Jul-10,MEDICAL EQUIPMENT 10 YEARS,Capital Projects,SIEMENS HEALTHCARE LIMITED,1019814389,24972.5,
Department of Health,Salisbury NHS Foundation Trust,02-Jul-10,MEDICAL EQUIPMENT 10 YEARS,Capital Projects,SIEMENS HEALTHCARE LIMITED,1019814389,77.5,
Department of Health,Salisbury NHS Foundation Trust,02-Jul-10,MEDICAL EQUIPMENT 10 YEARS,Capital Projects,SIEMENS HEALTHCARE LIMITED,1019814389,4370.19,
Department of Health,Salisbury NHS Foundation Trust,02-Jul-10,MEDICAL EQUIPMENT 10 YEARS,Capital Projects,SIEMENS HEALTHCARE LIMITED,1019814389,13.56,
Department of Health,Salisbury NHS Foundation Trust,02-Jul-10,ENERGY WATER - ELECTRICITY,Facilities Directorate,SOUTHERN ELECTRIC,211301983/0027,74894.56,
Department of Health,Salisbury NHS Foundation Trust,09-Jul-10,ENERGY WATER - WATER MAINS,Facilities Directorate,BWBSL,1087927772,25403.37,
Department of Health,Salisbury NHS Foundation Trust,09-Jul-10,ENERGY WATER - SEWERAGE CHARGES,Facilities Directorate,BWBSL,1087927772,10768.88,
Department of Health,Salisbury NHS Foundation Trust,09-Jul-10,BLOOD PRODUCTS,Clinical Support and Family Services,NATIONAL BLOOD SERVICE,795395,84838.26,
Department of Health,Salisbury NHS Foundation Trust,09-Jul-10,BLOOD PRODUCTS,Clinical Support and Family Services,NATIONAL BLOOD SERVICE,795395,-84838.26,
Department of Health,Salisbury NHS Foundation Trust,09-Jul-10,BLOOD PRODUCTS,Clinical Support and Family Services,NATIONAL BLOOD SERVICE,795395,84836.26,
Department of Health,Salisbury NHS Foundation Trust,09-Jul-10,MED SURG EQUIP REP MAINT CLEANING,Surgery,OLYMPUS KEYMED LTD,CD1567152,107321.76,
Department of Health,Salisbury NHS Foundation Trust,09-Jul-10,MEDICAL EQUIPMENT 10 YEARS,Capital Projects,SIEMENS HEALTHCARE LIMITED,1019819047,52468.27,
Department of Health,Salisbury NHS Foundation Trust,09-Jul-10,MEDICAL EQUIPMENT 10 YEARS,Capital Projects,SIEMENS HEALTHCARE LIMITED,1019819047,10815.67,
Department of Health,Salisbury NHS Foundation Trust,09-Jul-10,MEDICAL EQUIPMENT 10 YEARS,Capital Projects,SIEMENS HEALTHCARE LIMITED,1019819047,10068.64,
Department of Health,Salisbury NHS Foundation Trust,09-Jul-10,MEDICAL EQUIPMENT 10 YEARS,Capital Projects,SIEMENS HEALTHCARE LIMITED,1019819047,2900.67,
Department of Health,Salisbury NHS Foundation Trust,09-Jul-10,MEDICAL EQUIPMENT 10 YEARS,Capital Projects,SIEMENS HEALTHCARE LIMITED,1019819047,294.11,
Department of Health,Salisbury NHS Foundation Trust,09-Jul-10,MEDICAL EQUIPMENT 10 YEARS,Capital Projects,SIEMENS HEALTHCARE LIMITED,1019819047,823.5,
Department of Health,Salisbury NHS Foundation Trust,09-Jul-10,MEDICAL EQUIPMENT 10 YEARS,Capital Projects,SIEMENS HEALTHCARE LIMITED,1019819047,7629.14,
Department of Health,Salisbury NHS Foundation Trust,09-Jul-10,MEDICAL EQUIPMENT 10 YEARS,Capital Projects,SIEMENS HEALTHCARE LIMITED,1019819047,9181.95,
Department of Health,Salisbury NHS Foundation Trust,09-Jul-10,MEDICAL EQUIPMENT 10 YEARS,Capital Projects,SIEMENS HEALTHCARE LIMITED,1019819047,1892.74,
Department of Health,Salisbury NHS Foundation Trust,09-Jul-10,MEDICAL EQUIPMENT 10 YEARS,Capital Projects,SIEMENS HEALTHCARE LIMITED,1019819047,1762.01,
Department of Health,Salisbury NHS Foundation Trust,09-Jul-10,MEDICAL EQUIPMENT 10 YEARS,Capital Projects,SIEMENS HEALTHCARE LIMITED,1019819047,507.62,
Department of Health,Salisbury NHS Foundation Trust,09-Jul-10,MEDICAL EQUIPMENT 10 YEARS,Capital Projects,SIEMENS HEALTHCARE LIMITED,1019819047,51.47,
Department of Health,Salisbury NHS Foundation Trust,09-Jul-10,MEDICAL EQUIPMENT 10 YEARS,Capital Projects,SIEMENS HEALTHCARE LIMITED,1019819047,144.11,
Department of Health,Salisbury NHS Foundation Trust,09-Jul-10,MEDICAL EQUIPMENT 10 YEARS,Capital Projects,SIEMENS HEALTHCARE LIMITED,1019819047,1335.1,
Department of Health,Salisbury NHS Foundation Trust,09-Jul-10,HEALTHCARE - NHS TRUSTS,Medicine,SOUTHAMPTON UNIV HOSPITAL NHS TRUST,7169820,28017.41,
Department of Health,Salisbury NHS Foundation Trust,16-Jul-10,ENERGY WATER - ELECTRICITY,Facilities Directorate,SOUTHERN ELECTRIC,211301983/0029A,69720.26,
Department of Health,Salisbury NHS Foundation Trust,16-Jul-10,ENERGY WATER - GAS MAINS,Facilities Directorate,TOTAL GAS AND POWER LTD,59342321/10,63803.48,
Department of Health,Salisbury NHS Foundation Trust,16-Jul-10,RATES,Facilities Directorate,WILTSHIRE COUNCIL,Jul-10,97555.16,
Department of Health,Salisbury NHS Foundation Trust,16-Jul-10,RATES,Facilities Directorate,WILTSHIRE COUNCIL,Jul-10,8177,
Department of Health,Salisbury NHS Foundation Trust,16-Jul-10,RATES,Facilities Directorate,WILTSHIRE COUNCIL,Jul-10,365,
Department of Health,Salisbury NHS Foundation Trust,23-Jul-10,COMPUTER MAINTENANCE x,Corporate Directorate,AMICUS ITS LTD,OP/I035958,32093,
Department of Health,Salisbury NHS Foundation Trust,23-Jul-10,ADULTS HEARING AIDS,Surgery,NHS LOGISTICS,WSWI777569,-120.36,
Department of Health,Salisbury NHS Foundation Trust,23-Jul-10,DRESSINGS - PRE STERILE,Medicine,NHS LOGISTICS,WSWI777569,-27.74,
Department of Health,Salisbury NHS Foundation Trust,23-Jul-10,DRESSINGS  -  PROCEDURE PACKS,Medicine,NHS LOGISTICS,WSWI777569,0.26,
Department of Health,Salisbury NHS Foundation Trust,23-Jul-10,DRESSINGS  -  PROCEDURE PACKS,Surgery,NHS LOGISTICS,WSWI777569,0.3,
Department of Health,Salisbury NHS Foundation Trust,23-Jul-10,DRESSINGS  -  PROCEDURE PACKS,Medicine,NHS LOGISTICS,WSWI777569,0.3,
Department of Health,Salisbury NHS Foundation Trust,23-Jul-10,M & S EQUIPELECTEQUIPINST - OTHER,Medicine,NHS LOGISTICS,WSWI777569,0.3,
Department of Health,Salisbury NHS Foundation Trust,23-Jul-10,STATIONERY SUNDRIES,Facilities Directorate,NHS LOGISTICS,WSWI777569,0.34,
Department of Health,Salisbury NHS Foundation Trust,23-Jul-10,TISSUES HAND TOWELS & TOILET PAPER,Medicine,NHS LOGISTICS,WSWI777569,0.35,
Department of Health,Salisbury NHS Foundation Trust,23-Jul-10,DRESSINGS  -  PROCEDURE PACKS,Critical care,NHS LOGISTICS,WSWI777569,0.36,
Department of Health,Salisbury NHS Foundation Trust,23-Jul-10,STATIONERY SUNDRIES,Facilities Directorate,NHS LOGISTICS,WSWI777569,0.37,
Department of Health,Salisbury NHS Foundation Trust,23-Jul-10,DRESSINGS - PRE STERILE,Clinical Support and Family Services,NHS LOGISTICS,WSWI777569,0.39,
Department of Health,Salisbury NHS Foundation Trust,23-Jul-10,DRESSINGS  -  PROCEDURE PACKS,Medicine,NHS LOGISTICS,WSWI777569,0.43,
Department of Health,Salisbury NHS Foundation Trust,23-Jul-10,DRESSINGS - PRE STERILE,Medicine,NHS LOGISTICS,WSWI777569,0.45,
Department of Health,Salisbury NHS Foundation Trust,23-Jul-10,DRESSINGS - PRE STERILE,Critical care,NHS LOGISTICS,WSWI777569,0.45,
Department of Health,Salisbury NHS Foundation Trust,23-Jul-10,CLEANING MATERIALS PRODUCTS SUNDRIES,Clinical Support and Family Services,NHS LOGISTICS,WSWI777569,0.49,
Department of Health,Salisbury NHS Foundation Trust,23-Jul-10,DRESSINGS  -  PROCEDURE PACKS,Medicine,NHS LOGISTICS,WSWI777569,0.51,
Department of Health,Salisbury NHS Foundation Trust,23-Jul-10,DRESSINGS  -  PROCEDURE PACKS,Medicine,NHS LOGISTICS,WSWI777569,0.51,
Department of Health,Salisbury NHS Foundation Trust,23-Jul-10,DRESSINGS  -  PROCEDURE PACKS,Clinical Support and Family Services,NHS LOGISTICS,WSWI777569,0.51,
Department of Health,Salisbury NHS Foundation Trust,23-Jul-10,COOKING & KITCHEN UTENSILS,Surgery,NHS LOGISTICS,WSWI777569,0.58,
Department of Health,Salisbury NHS Foundation Trust,23-Jul-10,MEDSURGCONS - OTHER,Medicine,NHS LOGISTICS,WSWI777569,0.6,
Department of Health,Salisbury NHS Foundation Trust,23-Jul-10,MEDSURGCONS - OTHER,Medicine,NHS LOGISTICS,WSWI777569,0.6,
Department of Health,Salisbury NHS Foundation Trust,23-Jul-10,SURGICAL INSTRUMENTS: GENERAL,Surgery,NHS LOGISTICS,WSWI777569,0.62,
Department of Health,Salisbury NHS Foundation Trust,23-Jul-10,MEDSURGCONS - OTHER,Critical care,NHS LOGISTICS,WSWI777569,0.63,
Department of Health,Salisbury NHS Foundation Trust,23-Jul-10,DRESSINGS  -  PROCEDURE PACKS,Clinical Support and Family Services,NHS LOGISTICS,WSWI777569,0.64,
Department of Health,Salisbury NHS Foundation Trust,23-Jul-10,COOKING & KITCHEN UTENSILS,Surgery,NHS LOGISTICS,WSWI777569,0.65,
Department of Health,Salisbury NHS Foundation Trust,23-Jul-10,COOKING & KITCHEN UTENSILS,Critical care,NHS LOGISTICS,WSWI777569,0.65,
Department of Health,Salisbury NHS Foundation Trust,23-Jul-10,TOILETRIES PERSONAL HYGIENE PRODUCTS,Medicine,NHS LOGISTICS,WSWI777569,0.68,
Department of Health,Salisbury NHS Foundation Trust,23-Jul-10,TOILETRIES PERSONAL HYGIENE PRODUCTS,Medicine,NHS LOGISTICS,WSWI777569,0.68,
Department of Health,Salisbury NHS Foundation Trust,23-Jul-10,SURGICAL INSTRUMENTS: GENERAL,Surgery,NHS LOGISTICS,WSWI777569,0.68,
Department of Health,Salisbury NHS Foundation Trust,23-Jul-10,SURGICAL INSTRUMENTS: GENERAL,Medicine,NHS LOGISTICS,WSWI777569,0.68,
Department of Health,Salisbury NHS Foundation Trust,23-Jul-10,TISSUES HAND TOWELS & TOILET PAPER,Medicine,NHS LOGISTICS,WSWI777569,0.7,
Department of Health,Salisbury NHS Foundation Trust,23-Jul-10,STATIONERY SUNDRIES,Clinical Support and Family Services,NHS LOGISTICS,WSWI777569,0.72,
Department of Health,Salisbury NHS Foundation Trust,23-Jul-10,MEDSURGCONS - OTHER,Clinical Support and Family Services,NHS LOGISTICS,WSWI777569,0.73,
Department of Health,Salisbury NHS Foundation Trust,23-Jul-10,STATIONERY SUNDRIES,Medicine,NHS LOGISTICS,WSWI777569,0.77,
Department of Health,Salisbury NHS Foundation Trust,23-Jul-10,DRESSINGS  -  PROCEDURE PACKS,Medicine,NHS LOGISTICS,WSWI777569,0.77,
Department of Health,Salisbury NHS Foundation Trust,23-Jul-10,SURGICAL INSTRUMENTS: GENERAL,Medicine,NHS LOGISTICS,WSWI777569,0.77,
Department of Health,Salisbury NHS Foundation Trust,23-Jul-10,SURGICAL INSTRUMENTS: GENERAL,Clinical Support and Family Services,NHS LOGISTICS,WSWI777569,0.77,
Department of Health,Salisbury NHS Foundation Trust,23-Jul-10,DRESSINGS  -  PROCEDURE PACKS,Surgery,NHS LOGISTICS,WSWI777569,0.77,
Department of Health,Salisbury NHS Foundation Trust,23-Jul-10,DRESSINGS  -  PROCEDURE PACKS,Surgery,NHS LOGISTICS,WSWI777569,0.77,
Department of Health,Salisbury NHS Foundation Trust,23-Jul-10,DRESSINGS - PRE STERILE,Surgery,NHS LOGISTICS,WSWI777569,0.78,
Department of Health,Salisbury NHS Foundation Trust,23-Jul-10,DRESSINGS - PRE STERILE,Medicine,NHS LOGISTICS,WSWI777569,0.8,
Department of Health,Salisbury NHS Foundation Trust,23-Jul-10,STATIONERY SUNDRIES,Facilities Directorate,NHS LOGISTICS,WSWI777569,0.81,
Department of Health,Salisbury NHS Foundation Trust,23-Jul-10,STATIONERY SUNDRIES,Critical care,NHS LOGISTICS,WSWI777569,0.81,
Department of Health,Salisbury NHS Foundation Trust,23-Jul-10,ELECTRICAL EQUIPMENT x,Clinical Support and Family Services,NHS LOGISTICS,WSWI777569,0.81,
Department of Health,Salisbury NHS Foundation Trust,23-Jul-10,TOILETRIES PERSONAL HYGIENE PRODUCTS,Critical care,NHS LOGISTICS,WSWI777569,0.81,
Department of Health,Salisbury NHS Foundation Trust,23-Jul-10,TOILETRIES PERSONAL HYGIENE PRODUCTS,Critical care,NHS LOGISTICS,WSWI777569,0.83,
Department of Health,Salisbury NHS Foundation Trust,23-Jul-10,ANAESTHETIC EQUIPMENT ACCESSORIES,Surgery,NHS LOGISTICS,WSWI777569,0.83,
Department of Health,Salisbury NHS Foundation Trust,23-Jul-10,DRESSINGS - PRE STERILE,Medicine,NHS LOGISTICS,WSWI777569,0.84,
Department of Health,Salisbury NHS Foundation Trust,23-Jul-10,STATIONERY SUNDRIES,Clinical Support and Family Services,NHS LOGISTICS,WSWI777569,0.85,
Department of Health,Salisbury NHS Foundation Trust,23-Jul-10,TISSUES HAND TOWELS & TOILET PAPER,Clinical Support and Family Services,NHS LOGISTICS,WSWI777569,0.86,
Department of Health,Salisbury NHS Foundation Trust,23-Jul-10,STATIONERY SUNDRIES,Clinical Support and Family Services,NHS LOGISTICS,WSWI777569,0.87,
Department of Health,Salisbury NHS Foundation Trust,23-Jul-10,PAPER ITEMS GENERAL STATIONERY SUNDRIES,Medicine,NHS LOGISTICS,WSWI777569,0.87,
Department of Health,Salisbury NHS Foundation Trust,23-Jul-10,DRESSINGS  -  PROCEDURE PACKS,Medicine,NHS LOGISTICS,WSWI777569,0.87,
Department of Health,Salisbury NHS Foundation Trust,23-Jul-10,DRESSINGS - PRE STERILE,Medicine,NHS LOGISTICS,WSWI777569,0.89,
Department of Health,Salisbury NHS Foundation Trust,23-Jul-10,DRESSINGS  -  PROCEDURE PACKS,Medicine,NHS LOGISTICS,WSWI777569,0.89,
Department of Health,Salisbury NHS Foundation Trust,23-Jul-10,DRESSINGS  -  PROCEDURE PACKS,Clinical Support and Family Services,NHS LOGISTICS,WSWI777569,0.89,
Department of Health,Salisbury NHS Foundation Trust,23-Jul-10,DISPOSABLE THEATRE DRAPES WIPES,Surgery,NHS LOGISTICS,WSWI777569,0.9,
Department of Health,Salisbury NHS Foundation Trust,23-Jul-10,DRESSINGS - PRE STERILE,Surgery,NHS LOGISTICS,WSWI777569,0.9,
Department of Health,Salisbury NHS Foundation Trust,23-Jul-10,DISPOSABLE THEATRE DRAPES WIPES,Surgery,NHS LOGISTICS,WSWI777569,0.95,
Department of Health,Salisbury NHS Foundation Trust,23-Jul-10,DRESSINGS - PRE STERILE,Medicine,NHS LOGISTICS,WSWI777569,0.96,
Department of Health,Salisbury NHS Foundation Trust,23-Jul-10,STATIONERY SUNDRIES,Clinical Support and Family Services,NHS LOGISTICS,WSWI777569,0.97,
Department of Health,Salisbury NHS Foundation Trust,23-Jul-10,DRESSINGS  -  PROCEDURE PACKS,Medicine,NHS LOGISTICS,WSWI777569,1.02,
Department of Health,Salisbury NHS Foundation Trust,23-Jul-10,STATIONERY SUNDRIES,Clinical Effctiveness Directorate,NHS LOGISTICS,WSWI777569,1.03,
Department of Health,Salisbury NHS Foundation Trust,23-Jul-10,STATIONERY SUNDRIES,Clinical Support and Family Services,NHS LOGISTICS,WSWI777569,1.04,
Department of Health,Salisbury NHS Foundation Trust,23-Jul-10,TOILETRIES PERSONAL HYGIENE PRODUCTS,Medicine,NHS LOGISTICS,WSWI777569,1.06,
Department of Health,Salisbury NHS Foundation Trust,23-Jul-10,COOKING & KITCHEN UTENSILS,Clinical Support and Family Services,NHS LOGISTICS,WSWI777569,1.07,
Department of Health,Salisbury NHS Foundation Trust,23-Jul-10,DRESSINGS - PRE STERILE,Surgery,NHS LOGISTICS,WSWI777569,1.09,
Department of Health,Salisbury NHS Foundation Trust,23-Jul-10,STATIONERY SUNDRIES,Clinical Support and Family Services,NHS LOGISTICS,WSWI777569,1.1,
Department of Health,Salisbury NHS Foundation Trust,23-Jul-10,DRESSINGS - PRE STERILE,Clinical Support and Family Services,NHS LOGISTICS,WSWI777569,1.11,
Department of Health,Salisbury NHS Foundation Trust,23-Jul-10,DRESSINGS - PRE STERILE,Medicine,NHS LOGISTICS,WSWI777569,1.11,
Department of Health,Salisbury NHS Foundation Trust,23-Jul-10,DRESSINGS - PRE STERILE,Surgery,NHS LOGISTICS,WSWI777569,1.11,
Department of Health,Salisbury NHS Foundation Trust,23-Jul-10,MEDSURGCONS - OTHER,Medicine,NHS LOGISTICS,WSWI777569,1.16,
Department of Health,Salisbury NHS Foundation Trust,23-Jul-10,STATIONERY SUNDRIES,Clinical Support and Family Services,NHS LOGISTICS,WSWI777569,1.17,
Department of Health,Salisbury NHS Foundation Trust,23-Jul-10,ANAESTHETIC EQUIPMENT ACCESSORIES,Critical care,NHS LOGISTICS,WSWI777569,1.19,
Department of Health,Salisbury NHS Foundation Trust,23-Jul-10,MEDSURGCONS - OTHER,Medicine,NHS LOGISTICS,WSWI777569,1.19,
Department of Health,Salisbury NHS Foundation Trust,23-Jul-10,ANAESTHETIC EQUIPMENT ACCESSORIES,Surgery,NHS LOGISTICS,WSWI777569,1.19,
Department of Health,Salisbury NHS Foundation Trust,23-Jul-10,STATIONERY SUNDRIES,Clinical Support and Family Services,NHS LOGISTICS,WSWI777569,1.23,
Department of Health,Salisbury NHS Foundation Trust,23-Jul-10,SURGICAL INSTRUMENTS: GENERAL,Medicine,NHS LOGISTICS,WSWI777569,1.24,
Department of Health,Salisbury NHS Foundation Trust,23-Jul-10,SURGICAL INSTRUMENTS: GENERAL,Surgery,NHS LOGISTICS,WSWI777569,1.24,
Department of Health,Salisbury NHS Foundation Trust,23-Jul-10,STATIONERY SUNDRIES,Clinical Support and Family Services,NHS LOGISTICS,WSWI777569,1.25,
Department of Health,Salisbury NHS Foundation Trust,23-Jul-10,TOILETRIES PERSONAL HYGIENE PRODUCTS,Surgery,NHS LOGISTICS,WSWI777569,1.27,
Department of Health,Salisbury NHS Foundation Trust,23-Jul-10,STATIONERY SUNDRIES,Clinical Support and Family Services,NHS LOGISTICS,WSWI777569,1.28,
Department of Health,Salisbury NHS Foundation Trust,23-Jul-10,DRUGS,Medicine,NHS LOGISTICS,WSWI777569,1.28,
Department of Health,Salisbury NHS Foundation Trust,23-Jul-10,DRESSINGS  -  PROCEDURE PACKS,Medicine,NHS LOGISTICS,WSWI777569,1.28,
Department of Health,Salisbury NHS Foundation Trust,23-Jul-10,DRESSINGS  -  PROCEDURE PACKS,Clinical Support and Family Services,NHS LOGISTICS,WSWI777569,1.28,
Department of Health,Salisbury NHS Foundation Trust,23-Jul-10,PAPER ITEMS GENERAL STATIONERY SUNDRIES,Critical care,NHS LOGISTICS,WSWI777569,1.29,
Department of Health,Salisbury NHS Foundation Trust,23-Jul-10,MEDSURGCONS - OTHER,Surgery,NHS LOGISTICS,WSWI777569,1.3,
Department of Health,Salisbury NHS Foundation Trust,23-Jul-10,STATIONERY SUNDRIES,Clinical Support and Family Services,NHS LOGISTICS,WSWI777569,1.32,
Department of Health,Salisbury NHS Foundation Trust,23-Jul-10,CLEANING MATERIALS PRODUCTS SUNDRIES,Critical care,NHS LOGISTICS,WSWI777569,1.33,
Department of Health,Salisbury NHS Foundation Trust,23-Jul-10,CLEANING MATERIALS PRODUCTS SUNDRIES,Medicine,NHS LOGISTICS,WSWI777569,1.33,
Department of Health,Salisbury NHS Foundation Trust,23-Jul-10,DRESSINGS - PRE STERILE,Critical care,NHS LOGISTICS,WSWI777569,1.34,
Department of Health,Salisbury NHS Foundation Trust,23-Jul-10,ANAESTHETIC EQUIPMENT ACCESSORIES,Medicine,NHS LOGISTICS,WSWI777569,1.34,
Department of Health,Salisbury NHS Foundation Trust,23-Jul-10,DISPOSABLE TABLE LINEN,Medicine,NHS LOGISTICS,WSWI777569,1.36,
Department of Health,Salisbury NHS Foundation Trust,23-Jul-10,TOILETRIES PERSONAL HYGIENE PRODUCTS,Medicine,NHS LOGISTICS,WSWI777569,1.36,
Department of Health,Salisbury NHS Foundation Trust,23-Jul-10,MEDSURGCONS - OTHER,Medicine,NHS LOGISTICS,WSWI777569,1.37,
Department of Health,Salisbury NHS Foundation Trust,23-Jul-10,MEDSURGCONS - OTHER,Surgery,NHS LOGISTICS,WSWI777569,1.37,
Department of Health,Salisbury NHS Foundation Trust,23-Jul-10,MEDSURGCONS - OTHER,Surgery,NHS LOGISTICS,WSWI777569,1.37,
Department of Health,Salisbury NHS Foundation Trust,23-Jul-10,TISSUES HAND TOWELS & TOILET PAPER,Medicine,NHS LOGISTICS,WSWI777569,1.4,
Department of Health,Salisbury NHS Foundation Trust,23-Jul-10,TISSUES HAND TOWELS & TOILET PAPER,Medicine,NHS LOGISTICS,WSWI777569,1.4,
Department of Health,Salisbury NHS Foundation Trust,23-Jul-10,TOILETRIES PERSONAL HYGIENE PRODUCTS,Critical care,NHS LOGISTICS,WSWI777569,1.42,
Department of Health,Salisbury NHS Foundation Trust,23-Jul-10,DRESSINGS - PRE STERILE,Clinical Support and Family Services,NHS LOGISTICS,WSWI777569,1.42,
Department of Health,Salisbury NHS Foundation Trust,23-Jul-10,PAPER ITEMS GENERAL STATIONERY SUNDRIES,Clinical Support and Family Services,NHS LOGISTICS,WSWI777569,1.43,
Department of Health,Salisbury NHS Foundation Trust,23-Jul-10,STATIONERY SUNDRIES,Medicine,NHS LOGISTICS,WSWI777569,1.43,
Department of Health,Salisbury NHS Foundation Trust,23-Jul-10,DRESSINGS  -  PROCEDURE PACKS,Medicine,NHS LOGISTICS,WSWI777569,1.43,
Department of Health,Salisbury NHS Foundation Trust,23-Jul-10,ANAESTHETIC EQUIPMENT ACCESSORIES,Medicine,NHS LOGISTICS,WSWI777569,1.45,
Department of Health,Salisbury NHS Foundation Trust,23-Jul-10,MEDSURGCONS - OTHER,Medicine,NHS LOGISTICS,WSWI777569,1.45,
Department of Health,Salisbury NHS Foundation Trust,23-Jul-10,MEDSURGCONS - OTHER,Clinical Support and Family Services,NHS LOGISTICS,WSWI777569,1.45,
Department of Health,Salisbury NHS Foundation Trust,23-Jul-10,ANAESTHETIC EQUIPMENT ACCESSORIES,Critical care,NHS LOGISTICS,WSWI777569,1.45,
Department of Health,Salisbury NHS Foundation Trust,23-Jul-10,MEDSURGCONS - OTHER,Medicine,NHS LOGISTICS,WSWI777569,1.45,
Department of Health,Salisbury NHS Foundation Trust,23-Jul-10,MEDSURGCONS - OTHER,Clinical Support and Family Services,NHS LOGISTICS,WSWI777569,1.45,
Department of Health,Salisbury NHS Foundation Trust,23-Jul-10,MEDSURGCONS - OTHER,Critical care,NHS LOGISTICS,WSWI777569,1.45,
Department of Health,Salisbury NHS Foundation Trust,23-Jul-10,MEDSURGCONS - OTHER,Clinical Support and Family Services,NHS LOGISTICS,WSWI777569,1.45,
Department of Health,Salisbury NHS Foundation Trust,23-Jul-10,MEDSURGCONS - OTHER,Clinical Support and Family Services,NHS LOGISTICS,WSWI777569,1.46,
Department of Health,Salisbury NHS Foundation Trust,23-Jul-10,MEDSURGCONS - OTHER,Clinical Support and Family Services,NHS LOGISTICS,WSWI777569,1.46,
Department of Health,Salisbury NHS Foundation Trust,23-Jul-10,MEDSURGCONS - OTHER,Clinical Support and Family Services,NHS LOGISTICS,WSWI777569,1.46,
Department of Health,Salisbury NHS Foundation Trust,23-Jul-10,MEDSURGCONS - OTHER,Surgery,NHS LOGISTICS,WSWI777569,1.46,
Department of Health,Salisbury NHS Foundation Trust,23-Jul-10,MEDSURGCONS - OTHER,Surgery,NHS LOGISTICS,WSWI777569,1.46,
Department of Health,Salisbury NHS Foundation Trust,23-Jul-10,MEDSURGCONS - OTHER,Surgery,NHS LOGISTICS,WSWI777569,1.46,
Department of Health,Salisbury NHS Foundation Trust,23-Jul-10,MEDSURGCONS - OTHER,Critical care,NHS LOGISTICS,WSWI777569,1.46,
Department of Health,Salisbury NHS Foundation Trust,23-Jul-10,DRUGS,Medicine,NHS LOGISTICS,WSWI777569,1.48,
Department of Health,Salisbury NHS Foundation Trust,23-Jul-10,BAGS SACKS - OTHER,Clinical Support and Family Services,NHS LOGISTICS,WSWI777569,1.49,
Department of Health,Salisbury NHS Foundation Trust,23-Jul-10,DRESSINGS - PRE STERILE,Medicine,NHS LOGISTICS,WSWI777569,1.5,
Department of Health,Salisbury NHS Foundation Trust,23-Jul-10,DRESSINGS - PRE STERILE,Medicine,NHS LOGISTICS,WSWI777569,1.51,
Department of Health,Salisbury NHS Foundation Trust,23-Jul-10,DRESSINGS - PRE STERILE,Critical care,NHS LOGISTICS,WSWI777569,1.51,
Department of Health,Salisbury NHS Foundation Trust,23-Jul-10,DRESSINGS - PRE STERILE,Surgery,NHS LOGISTICS,WSWI777569,1.51,
Department of Health,Salisbury NHS Foundation Trust,23-Jul-10,MEDSURGCONS - OTHER,Surgery,NHS LOGISTICS,WSWI777569,1.54,
Department of Health,Salisbury NHS Foundation Trust,23-Jul-10,ANAESTHETIC EQUIPMENT ACCESSORIES,Medicine,NHS LOGISTICS,WSWI777569,1.57,
Department of Health,Salisbury NHS Foundation Trust,23-Jul-10,M & S EQUIPELECTEQUIPINST - OTHER,Medicine,NHS LOGISTICS,WSWI777569,1.6,
Department of Health,Salisbury NHS Foundation Trust,23-Jul-10,M & S EQUIPELECTEQUIPINST - OTHER,Medicine,NHS LOGISTICS,WSWI777569,1.6,
Department of Health,Salisbury NHS Foundation Trust,23-Jul-10,M & S EQUIPELECTEQUIPINST - OTHER,Medicine,NHS LOGISTICS,WSWI777569,1.6,
Department of Health,Salisbury NHS Foundation Trust,23-Jul-10,M & S EQUIPELECTEQUIPINST - OTHER,Surgery,NHS LOGISTICS,WSWI777569,1.6,
Department of Health,Salisbury NHS Foundation Trust,23-Jul-10,SURGICAL INSTRUMENTS: GENERAL,Surgery,NHS LOGISTICS,WSWI777569,1.62,
Department of Health,Salisbury NHS Foundation Trust,23-Jul-10,STATIONERY SUNDRIES,Human Resources,NHS LOGISTICS,WSWI777569,1.66,
Department of Health,Salisbury NHS Foundation Trust,23-Jul-10,STATIONERY SUNDRIES,Critical care,NHS LOGISTICS,WSWI777569,1.66,
Department of Health,Salisbury NHS Foundation Trust,23-Jul-10,STATIONERY SUNDRIES,Clinical Support and Family Services,NHS LOGISTICS,WSWI777569,1.69,
Department of Health,Salisbury NHS Foundation Trust,23-Jul-10,TOILETRIES PERSONAL HYGIENE PRODUCTS,Medicine,NHS LOGISTICS,WSWI777569,1.69,
Department of Health,Salisbury NHS Foundation Trust,23-Jul-10,TOILETRIES PERSONAL HYGIENE PRODUCTS,Medicine,NHS LOGISTICS,WSWI777569,1.69,
Department of Health,Salisbury NHS Foundation Trust,23-Jul-10,TOILETRIES PERSONAL HYGIENE PRODUCTS,Medicine,NHS LOGISTICS,WSWI777569,1.69,
Department of Health,Salisbury NHS Foundation Trust,23-Jul-10,FLAVOURINGS HERBS SPICES,Facilities Directorate,NHS LOGISTICS,WSWI777569,1.72,
Department of Health,Salisbury NHS Foundation Trust,23-Jul-10,MEDSURGCONS - OTHER,Clinical Support and Family Services,NHS LOGISTICS,WSWI777569,1.72,
Department of Health,Salisbury NHS Foundation Trust,23-Jul-10,SURGICAL INSTRUMENTS: DISPOSABLE,Surgery,NHS LOGISTICS,WSWI777569,1.72,
Department of Health,Salisbury NHS Foundation Trust,23-Jul-10,SURGICAL INSTRUMENTS: DISPOSABLE,Surgery,NHS LOGISTICS,WSWI777569,1.72,
Department of Health,Salisbury NHS Foundation Trust,23-Jul-10,FLAVOURINGS HERBS SPICES,Facilities Directorate,NHS LOGISTICS,WSWI777569,1.72,
Department of Health,Salisbury NHS Foundation Trust,23-Jul-10,MEDSURGCONS - OTHER,Critical care,NHS LOGISTICS,WSWI777569,1.72,
Department of Health,Salisbury NHS Foundation Trust,23-Jul-10,DRESSINGS  -  PROCEDURE PACKS,Medicine,NHS LOGISTICS,WSWI777569,1.74,
Department of Health,Salisbury NHS Foundation Trust,23-Jul-10,M & S EQUIPELECTEQUIPINST - OTHER,Surgery,NHS LOGISTICS,WSWI777569,1.74,
Department of Health,Salisbury NHS Foundation Trust,23-Jul-10,SURGICAL INSTRUMENTS: GENERAL,Medicine,NHS LOGISTICS,WSWI777569,1.76,
Department of Health,Salisbury NHS Foundation Trust,23-Jul-10,SURGICAL INSTRUMENTS: GENERAL,Medicine,NHS LOGISTICS,WSWI777569,1.76,
Department of Health,Salisbury NHS Foundation Trust,23-Jul-10,SURGICAL INSTRUMENTS: GENERAL,Medicine,NHS LOGISTICS,WSWI777569,1.76,
Department of Health,Salisbury NHS Foundation Trust,23-Jul-10,SURGICAL INSTRUMENTS: GENERAL,Critical care,NHS LOGISTICS,WSWI777569,1.76,
Department of Health,Salisbury NHS Foundation Trust,23-Jul-10,STATIONERY SUNDRIES,Clinical Support and Family Services,NHS LOGISTICS,WSWI777569,1.77,
Department of Health,Salisbury NHS Foundation Trust,23-Jul-10,CLEANING MATERIALS PRODUCTS SUNDRIES,Surgery,NHS LOGISTICS,WSWI777569,1.77,
Department of Health,Salisbury NHS Foundation Trust,23-Jul-10,BAGS SACKS - OTHER,Facilities Directorate,NHS LOGISTICS,WSWI777569,1.79,
Department of Health,Salisbury NHS Foundation Trust,23-Jul-10,DRESSINGS  -  PROCEDURE PACKS,Medicine,NHS LOGISTICS,WSWI777569,1.79,
Department of Health,Salisbury NHS Foundation Trust,23-Jul-10,DRESSINGS  -  PROCEDURE PACKS,Clinical Support and Family Services,NHS LOGISTICS,WSWI777569,1.79,
Department of Health,Salisbury NHS Foundation Trust,23-Jul-10,MEDSURGCONS - OTHER,Surgery,NHS LOGISTICS,WSWI777569,1.79,
Department of Health,Salisbury NHS Foundation Trust,23-Jul-10,MEDSURGCONS - OTHER,Medicine,NHS LOGISTICS,WSWI777569,1.8,
Department of Health,Salisbury NHS Foundation Trust,23-Jul-10,SURGICAL INSTRUMENTS: GENERAL,Medicine,NHS LOGISTICS,WSWI777569,1.8,
Department of Health,Salisbury NHS Foundation Trust,23-Jul-10,DISPOSABLE THEATRE DRAPES WIPES,Clinical Support and Family Services,NHS LOGISTICS,WSWI777569,1.8,
Department of Health,Salisbury NHS Foundation Trust,23-Jul-10,MEDSURGCONS - OTHER,Surgery,NHS LOGISTICS,WSWI777569,1.8,
Department of Health,Salisbury NHS Foundation Trust,23-Jul-10,M & S EQUIPELECTEQUIPINST - OTHER,Surgery,NHS LOGISTICS,WSWI777569,1.8,
Department of Health,Salisbury NHS Foundation Trust,23-Jul-10,DRESSINGS - PRE STERILE,Critical care,NHS LOGISTICS,WSWI777569,1.82,
Department of Health,Salisbury NHS Foundation Trust,23-Jul-10,DRESSINGS - PRE STERILE,Medicine,NHS LOGISTICS,WSWI777569,1.82,
Department of Health,Salisbury NHS Foundation Trust,23-Jul-10,MEDSURGCONS - OTHER,Surgery,NHS LOGISTICS,WSWI777569,1.84,
Department of Health,Salisbury NHS Foundation Trust,23-Jul-10,PATIENTS INCONTINENCE,Surgery,NHS LOGISTICS,WSWI777569,1.87,
Department of Health,Salisbury NHS Foundation Trust,23-Jul-10,DRESSINGS - PRE STERILE,Medicine,NHS LOGISTICS,WSWI777569,1.89,
Department of Health,Salisbury NHS Foundation Trust,23-Jul-10,DRESSINGS - PRE STERILE,Surgery,NHS LOGISTICS,WSWI777569,1.89,
Department of Health,Salisbury NHS Foundation Trust,23-Jul-10,DRESSINGS  -  PROCEDURE PACKS,Surgery,NHS LOGISTICS,WSWI777569,1.91,
Department of Health,Salisbury NHS Foundation Trust,23-Jul-10,MEDSURGCONS - OTHER,Critical care,NHS LOGISTICS,WSWI777569,1.94,
Department of Health,Salisbury NHS Foundation Trust,23-Jul-10,MEDSURGCONS - OTHER,Medicine,NHS LOGISTICS,WSWI777569,1.94,
Department of Health,Salisbury NHS Foundation Trust,23-Jul-10,COOKING & KITCHEN UTENSILS,Clinical Support and Family Services,NHS LOGISTICS,WSWI777569,1.94,
Department of Health,Salisbury NHS Foundation Trust,23-Jul-10,DRESSINGS - PRE STERILE,Critical care,NHS LOGISTICS,WSWI777569,1.96,
Department of Health,Salisbury NHS Foundation Trust,23-Jul-10,PAPER ITEMS GENERAL STATIONERY SUNDRIES,Clinical Effctiveness Directorate,NHS LOGISTICS,WSWI777569,1.97,
Department of Health,Salisbury NHS Foundation Trust,23-Jul-10,MEDSURGCONS - OTHER,Medicine,NHS LOGISTICS,WSWI777569,1.97,
Department of Health,Salisbury NHS Foundation Trust,23-Jul-10,DRESSINGS - PRE STERILE,Medicine,NHS LOGISTICS,WSWI777569,1.98,
Department of Health,Salisbury NHS Foundation Trust,23-Jul-10,DRESSINGS - PRE STERILE,Medicine,NHS LOGISTICS,WSWI777569,1.98,
Department of Health,Salisbury NHS Foundation Trust,23-Jul-10,DRESSINGS - PRE STERILE,Critical care,NHS LOGISTICS,WSWI777569,1.98,
Department of Health,Salisbury NHS Foundation Trust,23-Jul-10,DRESSINGS - PRE STERILE,Critical care,NHS LOGISTICS,WSWI777569,1.98,
Department of Health,Salisbury NHS Foundation Trust,23-Jul-10,PAPER ITEMS GENERAL STATIONERY SUNDRIES,Facilities Directorate,NHS LOGISTICS,WSWI777569,1.99,
Department of Health,Salisbury NHS Foundation Trust,23-Jul-10,PAPER ITEMS GENERAL STATIONERY SUNDRIES,Medicine,NHS LOGISTICS,WSWI777569,1.99,
Department of Health,Salisbury NHS Foundation Trust,23-Jul-10,TISSUES HAND TOWELS & TOILET PAPER,Medicine,NHS LOGISTICS,WSWI777569,1.99,
Department of Health,Salisbury NHS Foundation Trust,23-Jul-10,TISSUES HAND TOWELS & TOILET PAPER,Critical care,NHS LOGISTICS,WSWI777569,1.99,
Department of Health,Salisbury NHS Foundation Trust,23-Jul-10,TISSUES HAND TOWELS & TOILET PAPER,Medicine,NHS LOGISTICS,WSWI777569,1.99,
Department of Health,Salisbury NHS Foundation Trust,23-Jul-10,PATIENTS BABY WEAR,Clinical Support and Family Services,NHS LOGISTICS,WSWI777569,2.02,
Department of Health,Salisbury NHS Foundation Trust,23-Jul-10,PATIENTS BABY WEAR,Clinical Support and Family Services,NHS LOGISTICS,WSWI777569,2.02,
Department of Health,Salisbury NHS Foundation Trust,23-Jul-10,DRESSINGS - PRE STERILE,Surgery,NHS LOGISTICS,WSWI777569,2.03,
Department of Health,Salisbury NHS Foundation Trust,23-Jul-10,DRESSINGS - PRE STERILE,Medicine,NHS LOGISTICS,WSWI777569,2.03,
Department of Health,Salisbury NHS Foundation Trust,23-Jul-10,DRESSINGS - PRE STERILE,Medicine,NHS LOGISTICS,WSWI777569,2.03,
Department of Health,Salisbury NHS Foundation Trust,23-Jul-10,DRESSINGS - PRE STERILE,Critical care,NHS LOGISTICS,WSWI777569,2.03,
Department of Health,Salisbury NHS Foundation Trust,23-Jul-10,DRESSINGS - PRE STERILE,Critical care,NHS LOGISTICS,WSWI777569,2.03,
Department of Health,Salisbury NHS Foundation Trust,23-Jul-10,DRESSINGS - PRE STERILE,Critical care,NHS LOGISTICS,WSWI777569,2.03,
Department of Health,Salisbury NHS Foundation Trust,23-Jul-10,MEDSURGCONS - OTHER,Medicine,NHS LOGISTICS,WSWI777569,2.06,
Department of Health,Salisbury NHS Foundation Trust,23-Jul-10,MEDSURGCONS - OTHER,Clinical Support and Family Services,NHS LOGISTICS,WSWI777569,2.06,
Department of Health,Salisbury NHS Foundation Trust,23-Jul-10,PAPER ITEMS GENERAL STATIONERY SUNDRIES,Surgery,NHS LOGISTICS,WSWI777569,2.08,
Department of Health,Salisbury NHS Foundation Trust,23-Jul-10,MEDSURGCONS - OTHER,Clinical Support and Family Services,NHS LOGISTICS,WSWI777569,2.09,
Department of Health,Salisbury NHS Foundation Trust,23-Jul-10,DRESSINGS - PRE STERILE,Surgery,NHS LOGISTICS,WSWI777569,2.1,
Department of Health,Salisbury NHS Foundation Trust,23-Jul-10,COOKING & KITCHEN UTENSILS,Medicine,NHS LOGISTICS,WSWI777569,2.14,
Department of Health,Salisbury NHS Foundation Trust,23-Jul-10,DRESSINGS  -  PROCEDURE PACKS,Medicine,NHS LOGISTICS,WSWI777569,2.14,
Department of Health,Salisbury NHS Foundation Trust,23-Jul-10,DRESSINGS  -  PROCEDURE PACKS,Medicine,NHS LOGISTICS,WSWI777569,2.17,
Department of Health,Salisbury NHS Foundation Trust,23-Jul-10,DRESSINGS - PRE STERILE,Surgery,NHS LOGISTICS,WSWI777569,2.19,
Department of Health,Salisbury NHS Foundation Trust,23-Jul-10,DRESSINGS - PRE STERILE,Critical care,NHS LOGISTICS,WSWI777569,2.19,
Department of Health,Salisbury NHS Foundation Trust,23-Jul-10,DRESSINGS - PRE STERILE,Critical care,NHS LOGISTICS,WSWI777569,2.19,
Department of Health,Salisbury NHS Foundation Trust,23-Jul-10,DRESSINGS - PRE STERILE,Surgery,NHS LOGISTICS,WSWI777569,2.19,
Department of Health,Salisbury NHS Foundation Trust,23-Jul-10,DRESSINGS - PRE STERILE,Medicine,NHS LOGISTICS,WSWI777569,2.19,
Department of Health,Salisbury NHS Foundation Trust,23-Jul-10,MEDSURGCONS - OTHER,Surgery,NHS LOGISTICS,WSWI777569,2.2,
Department of Health,Salisbury NHS Foundation Trust,23-Jul-10,PAPER ITEMS GENERAL STATIONERY SUNDRIES,Clinical Support and Family Services,NHS LOGISTICS,WSWI777569,2.21,
Department of Health,Salisbury NHS Foundation Trust,23-Jul-10,DRESSINGS  -  PROCEDURE PACKS,Medicine,NHS LOGISTICS,WSWI777569,2.21,
Department of Health,Salisbury NHS Foundation Trust,23-Jul-10,MEDSURGCONS - OTHER,Critical care,NHS LOGISTICS,WSWI777569,2.21,
Department of Health,Salisbury NHS Foundation Trust,23-Jul-10,DRESSINGS - PRE STERILE,Medicine,NHS LOGISTICS,WSWI777569,2.23,
Department of Health,Salisbury NHS Foundation Trust,23-Jul-10,DRESSINGS - PRE STERILE,Surgery,NHS LOGISTICS,WSWI777569,2.23,
Department of Health,Salisbury NHS Foundation Trust,23-Jul-10,MEDSURGCONS - OTHER,Human Resources,NHS LOGISTICS,WSWI777569,2.29,
Department of Health,Salisbury NHS Foundation Trust,23-Jul-10,MEDSURGCONS - OTHER,Human Resources,NHS LOGISTICS,WSWI777569,2.29,
Department of Health,Salisbury NHS Foundation Trust,23-Jul-10,MEDSURGCONS - OTHER,Clinical Support and Family Services,NHS LOGISTICS,WSWI777569,2.29,
Department of Health,Salisbury NHS Foundation Trust,23-Jul-10,MEDSURGCONS - OTHER,Surgery,NHS LOGISTICS,WSWI777569,2.29,
Department of Health,Salisbury NHS Foundation Trust,23-Jul-10,MEDSURGCONS - OTHER,Clinical Support and Family Services,NHS LOGISTICS,WSWI777569,2.29,
Department of Health,Salisbury NHS Foundation Trust,23-Jul-10,MEDSURGCONS - OTHER,Clinical Support and Family Services,NHS LOGISTICS,WSWI777569,2.29,
Department of Health,Salisbury NHS Foundation Trust,23-Jul-10,STATIONERY SUNDRIES,Clinical Support and Family Services,NHS LOGISTICS,WSWI777569,2.3,
Department of Health,Salisbury NHS Foundation Trust,23-Jul-10,DRESSINGS  -  PROCEDURE PACKS,Medicine,NHS LOGISTICS,WSWI777569,2.3,
Department of Health,Salisbury NHS Foundation Trust,23-Jul-10,MEDSURGCONS - OTHER,Clinical Support and Family Services,NHS LOGISTICS,WSWI777569,2.3,
Department of Health,Salisbury NHS Foundation Trust,23-Jul-10,COOKING & KITCHEN UTENSILS,Medicine,NHS LOGISTICS,WSWI777569,2.3,
Department of Health,Salisbury NHS Foundation Trust,23-Jul-10,SURGICAL INSTRUMENTS: GENERAL,Medicine,NHS LOGISTICS,WSWI777569,2.3,
Department of Health,Salisbury NHS Foundation Trust,23-Jul-10,MEDSURGCONS - OTHER,Medicine,NHS LOGISTICS,WSWI777569,2.3,
Department of Health,Salisbury NHS Foundation Trust,23-Jul-10,ANAESTHETIC EQUIPMENT ACCESSORIES,Surgery,NHS LOGISTICS,WSWI777569,2.31,
Department of Health,Salisbury NHS Foundation Trust,23-Jul-10,STATIONERY SUNDRIES,Corporate Directorate,NHS LOGISTICS,WSWI777569,2.32,
Department of Health,Salisbury NHS Foundation Trust,23-Jul-10,DRESSINGS - PRE STERILE,Critical care,NHS LOGISTICS,WSWI777569,2.32,
Department of Health,Salisbury NHS Foundation Trust,23-Jul-10,COOKING & KITCHEN UTENSILS,Critical care,NHS LOGISTICS,WSWI777569,2.32,
Department of Health,Salisbury NHS Foundation Trust,23-Jul-10,DRESSINGS - PRE STERILE,Surgery,NHS LOGISTICS,WSWI777569,2.36,
Department of Health,Salisbury NHS Foundation Trust,23-Jul-10,STATIONERY SUNDRIES,Clinical Effctiveness Directorate,NHS LOGISTICS,WSWI777569,2.4,
Department of Health,Salisbury NHS Foundation Trust,23-Jul-10,DRESSINGS  -  PROCEDURE PACKS,Medicine,NHS LOGISTICS,WSWI777569,2.5,
Department of Health,Salisbury NHS Foundation Trust,23-Jul-10,CLEANING MATERIALS PRODUCTS SUNDRIES,Medicine,NHS LOGISTICS,WSWI777569,2.52,
Department of Health,Salisbury NHS Foundation Trust,23-Jul-10,CLEANING MATERIALS PRODUCTS SUNDRIES,Human Resources,NHS LOGISTICS,WSWI777569,2.52,
Department of Health,Salisbury NHS Foundation Trust,23-Jul-10,CLEANING MATERIALS PRODUCTS SUNDRIES,Medicine,NHS LOGISTICS,WSWI777569,2.52,
Department of Health,Salisbury NHS Foundation Trust,23-Jul-10,STATIONERY SUNDRIES,Clinical Support and Family Services,NHS LOGISTICS,WSWI777569,2.53,
Department of Health,Salisbury NHS Foundation Trust,23-Jul-10,COOKING & KITCHEN UTENSILS,Critical care,NHS LOGISTICS,WSWI777569,2.53,
Department of Health,Salisbury NHS Foundation Trust,23-Jul-10,STATIONERY SUNDRIES,Critical care,NHS LOGISTICS,WSWI777569,2.53,
Department of Health,Salisbury NHS Foundation Trust,23-Jul-10,COOKING & KITCHEN UTENSILS,Medicine,NHS LOGISTICS,WSWI777569,2.53,
Department of Health,Salisbury NHS Foundation Trust,23-Jul-10,MEDSURGCONS - OTHER,Medicine,NHS LOGISTICS,WSWI777569,2.54,
Department of Health,Salisbury NHS Foundation Trust,23-Jul-10,DRUGS,Medicine,NHS LOGISTICS,WSWI777569,2.55,
Department of Health,Salisbury NHS Foundation Trust,23-Jul-10,MEDSURGCONS - OTHER,Clinical Support and Family Services,NHS LOGISTICS,WSWI777569,2.55,
Department of Health,Salisbury NHS Foundation Trust,23-Jul-10,TISSUES HAND TOWELS & TOILET PAPER,Critical care,NHS LOGISTICS,WSWI777569,2.55,
Department of Health,Salisbury NHS Foundation Trust,23-Jul-10,MEDSURGCONS - OTHER,Medicine,NHS LOGISTICS,WSWI777569,2.55,
Department of Health,Salisbury NHS Foundation Trust,23-Jul-10,TISSUES HAND TOWELS & TOILET PAPER,Surgery,NHS LOGISTICS,WSWI777569,2.55,
Department of Health,Salisbury NHS Foundation Trust,23-Jul-10,COOKING & KITCHEN UTENSILS,Clinical Support and Family Services,NHS LOGISTICS,WSWI777569,2.59,
Department of Health,Salisbury NHS Foundation Trust,23-Jul-10,COOKING & KITCHEN UTENSILS,Critical care,NHS LOGISTICS,WSWI777569,2.59,
Department of Health,Salisbury NHS Foundation Trust,23-Jul-10,DRESSINGS  -  PROCEDURE PACKS,Medicine,NHS LOGISTICS,WSWI777569,2.6,
Department of Health,Salisbury NHS Foundation Trust,23-Jul-10,DRESSINGS  -  PROCEDURE PACKS,Surgery,NHS LOGISTICS,WSWI777569,2.6,
Department of Health,Salisbury NHS Foundation Trust,23-Jul-10,TISSUES HAND TOWELS & TOILET PAPER,Critical care,NHS LOGISTICS,WSWI777569,2.66,
Department of Health,Salisbury NHS Foundation Trust,23-Jul-10,TOILETRIES PERSONAL HYGIENE PRODUCTS,Critical care,NHS LOGISTICS,WSWI777569,2.68,
Department of Health,Salisbury NHS Foundation Trust,23-Jul-10,TOILETRIES PERSONAL HYGIENE PRODUCTS,Critical care,NHS LOGISTICS,WSWI777569,2.68,
Department of Health,Salisbury NHS Foundation Trust,23-Jul-10,TOILETRIES PERSONAL HYGIENE PRODUCTS,Surgery,NHS LOGISTICS,WSWI777569,2.68,
Department of Health,Salisbury NHS Foundation Trust,23-Jul-10,TOILETRIES PERSONAL HYGIENE PRODUCTS,Medicine,NHS LOGISTICS,WSWI777569,2.68,
Department of Health,Salisbury NHS Foundation Trust,23-Jul-10,TOILETRIES PERSONAL HYGIENE PRODUCTS,Critical care,NHS LOGISTICS,WSWI777569,2.68,
Department of Health,Salisbury NHS Foundation Trust,23-Jul-10,STATIONERY SUNDRIES,Clinical Support and Family Services,NHS LOGISTICS,WSWI777569,2.69,
Department of Health,Salisbury NHS Foundation Trust,23-Jul-10,STATIONERY SUNDRIES,Clinical Support and Family Services,NHS LOGISTICS,WSWI777569,2.69,
Department of Health,Salisbury NHS Foundation Trust,23-Jul-10,STATIONERY SUNDRIES,Clinical Support and Family Services,NHS LOGISTICS,WSWI777569,2.69,
Department of Health,Salisbury NHS Foundation Trust,23-Jul-10,STATIONERY SUNDRIES,Clinical Support and Family Services,NHS LOGISTICS,WSWI777569,2.69,
Department of Health,Salisbury NHS Foundation Trust,23-Jul-10,STATIONERY SUNDRIES,Clinical Support and Family Services,NHS LOGISTICS,WSWI777569,2.69,
Department of Health,Salisbury NHS Foundation Trust,23-Jul-10,STATIONERY SUNDRIES,Clinical Support and Family Services,NHS LOGISTICS,WSWI777569,2.69,
Department of Health,Salisbury NHS Foundation Trust,23-Jul-10,DRESSINGS - PRE STERILE,Surgery,NHS LOGISTICS,WSWI777569,2.69,
Department of Health,Salisbury NHS Foundation Trust,23-Jul-10,DRESSINGS - PRE STERILE,Clinical Support and Family Services,NHS LOGISTICS,WSWI777569,2.69,
Department of Health,Salisbury NHS Foundation Trust,23-Jul-10,PAPER ITEMS GENERAL STATIONERY SUNDRIES,Clinical Support and Family Services,NHS LOGISTICS,WSWI777569,2.72,
Department of Health,Salisbury NHS Foundation Trust,23-Jul-10,STATIONERY SUNDRIES,Medicine,NHS LOGISTICS,WSWI777569,2.72,
Department of Health,Salisbury NHS Foundation Trust,23-Jul-10,DRESSINGS - PRE STERILE,Surgery,NHS LOGISTICS,WSWI777569,2.74,
Department of Health,Salisbury NHS Foundation Trust,23-Jul-10,PAPER ITEMS GENERAL STATIONERY SUNDRIES,Clinical Support and Family Services,NHS LOGISTICS,WSWI777569,2.75,
Department of Health,Salisbury NHS Foundation Trust,23-Jul-10,TISSUES HAND TOWELS & TOILET PAPER,Clinical Support and Family Services,NHS LOGISTICS,WSWI777569,2.76,
Department of Health,Salisbury NHS Foundation Trust,23-Jul-10,STATIONERY SUNDRIES,Clinical Support and Family Services,NHS LOGISTICS,WSWI777569,2.77,
Department of Health,Salisbury NHS Foundation Trust,23-Jul-10,STATIONERY SUNDRIES,Clinical Support and Family Services,NHS LOGISTICS,WSWI777569,2.77,
Department of Health,Salisbury NHS Foundation Trust,23-Jul-10,DRUGS,Medicine,NHS LOGISTICS,WSWI777569,2.78,
Department of Health,Salisbury NHS Foundation Trust,23-Jul-10,PAPER ITEMS GENERAL STATIONERY SUNDRIES,Clinical Support and Family Services,NHS LOGISTICS,WSWI777569,2.79,
Department of Health,Salisbury NHS Foundation Trust,23-Jul-10,DRUGS,Critical care,NHS LOGISTICS,WSWI777569,2.8,
Department of Health,Salisbury NHS Foundation Trust,23-Jul-10,DRUGS,Surgery,NHS LOGISTICS,WSWI777569,2.8,
Department of Health,Salisbury NHS Foundation Trust,23-Jul-10,TISSUES HAND TOWELS & TOILET PAPER,Facilities Directorate,NHS LOGISTICS,WSWI777569,2.81,
Department of Health,Salisbury NHS Foundation Trust,23-Jul-10,MEDSURGCONS - OTHER,Medicine,NHS LOGISTICS,WSWI777569,2.83,
Department of Health,Salisbury NHS Foundation Trust,23-Jul-10,MEDSURGCONS - OTHER,Medicine,NHS LOGISTICS,WSWI777569,2.83,
Department of Health,Salisbury NHS Foundation Trust,23-Jul-10,MEDSURGCONS - OTHER,Medicine,NHS LOGISTICS,WSWI777569,2.83,
Department of Health,Salisbury NHS Foundation Trust,23-Jul-10,BAGS SACKS - OTHER,Clinical Support and Family Services,NHS LOGISTICS,WSWI777569,2.89,
Department of Health,Salisbury NHS Foundation Trust,23-Jul-10,MEDSURGCONS - OTHER,Medicine,NHS LOGISTICS,WSWI777569,2.89,
Department of Health,Salisbury NHS Foundation Trust,23-Jul-10,MEDSURGCONS - OTHER,Surgery,NHS LOGISTICS,WSWI777569,2.89,
Department of Health,Salisbury NHS Foundation Trust,23-Jul-10,MEDSURGCONS - OTHER,Surgery,NHS LOGISTICS,WSWI777569,2.89,
Department of Health,Salisbury NHS Foundation Trust,23-Jul-10,M & S EQUIPELECTEQUIPINST - OTHER,Medicine,NHS LOGISTICS,WSWI777569,2.92,
Department of Health,Salisbury NHS Foundation Trust,23-Jul-10,M & S EQUIPELECTEQUIPINST - OTHER,Clinical Support and Family Services,NHS LOGISTICS,WSWI777569,2.92,
Department of Health,Salisbury NHS Foundation Trust,23-Jul-10,M & S EQUIPELECTEQUIPINST - OTHER,Surgery,NHS LOGISTICS,WSWI777569,2.92,
Department of Health,Salisbury NHS Foundation Trust,23-Jul-10,M & S EQUIPELECTEQUIPINST - OTHER,Surgery,NHS LOGISTICS,WSWI777569,2.92,
Department of Health,Salisbury NHS Foundation Trust,23-Jul-10,MEDSURGCONS - OTHER,Critical care,NHS LOGISTICS,WSWI777569,2.93,
Department of Health,Salisbury NHS Foundation Trust,23-Jul-10,MEDSURGCONS - OTHER,Medicine,NHS LOGISTICS,WSWI777569,2.94,
Department of Health,Salisbury NHS Foundation Trust,23-Jul-10,DRUGS,Surgery,NHS LOGISTICS,WSWI777569,2.96,
Department of Health,Salisbury NHS Foundation Trust,23-Jul-10,DRUGS,Critical care,NHS LOGISTICS,WSWI777569,2.96,
Department of Health,Salisbury NHS Foundation Trust,23-Jul-10,DRUGS,Medicine,NHS LOGISTICS,WSWI777569,2.96,
Department of Health,Salisbury NHS Foundation Trust,23-Jul-10,DRESSINGS  -  PROCEDURE PACKS,Critical care,NHS LOGISTICS,WSWI777569,2.96,
Department of Health,Salisbury NHS Foundation Trust,23-Jul-10,DRESSINGS - PRE STERILE,Medicine,NHS LOGISTICS,WSWI777569,3,
Department of Health,Salisbury NHS Foundation Trust,23-Jul-10,ELECTRICAL EQUIPMENT x,Critical care,NHS LOGISTICS,WSWI777569,3.01,
Department of Health,Salisbury NHS Foundation Trust,23-Jul-10,TISSUES HAND TOWELS & TOILET PAPER,Medicine,NHS LOGISTICS,WSWI777569,3.01,
Department of Health,Salisbury NHS Foundation Trust,23-Jul-10,ELECTRICAL EQUIPMENT x,Critical care,NHS LOGISTICS,WSWI777569,3.01,
Department of Health,Salisbury NHS Foundation Trust,23-Jul-10,TISSUES HAND TOWELS & TOILET PAPER,Critical care,NHS LOGISTICS,WSWI777569,3.01,
Department of Health,Salisbury NHS Foundation Trust,23-Jul-10,ELECTRICAL EQUIPMENT x,Surgery,NHS LOGISTICS,WSWI777569,3.01,
Department of Health,Salisbury NHS Foundation Trust,23-Jul-10,ELECTRICAL EQUIPMENT x,Medicine,NHS LOGISTICS,WSWI777569,3.01,
Department of Health,Salisbury NHS Foundation Trust,23-Jul-10,ELECTRICAL EQUIPMENT x,Medicine,NHS LOGISTICS,WSWI777569,3.01,
Department of Health,Salisbury NHS Foundation Trust,23-Jul-10,TISSUES HAND TOWELS & TOILET PAPER,Critical care,NHS LOGISTICS,WSWI777569,3.01,
Department of Health,Salisbury NHS Foundation Trust,23-Jul-10,PATIENTS BABY WEAR,Clinical Support and Family Services,NHS LOGISTICS,WSWI777569,3.05,
Department of Health,Salisbury NHS Foundation Trust,23-Jul-10,CLEANING MATERIALS PRODUCTS SUNDRIES,Clinical Support and Family Services,NHS LOGISTICS,WSWI777569,3.06,
Department of Health,Salisbury NHS Foundation Trust,23-Jul-10,PAPER ITEMS GENERAL STATIONERY SUNDRIES,Clinical Support and Family Services,NHS LOGISTICS,WSWI777569,3.06,
Department of Health,Salisbury NHS Foundation Trust,23-Jul-10,DRESSINGS  -  PROCEDURE PACKS,Surgery,NHS LOGISTICS,WSWI777569,3.06,
Department of Health,Salisbury NHS Foundation Trust,23-Jul-10,DRUGS,Surgery,NHS LOGISTICS,WSWI777569,3.08,
Department of Health,Salisbury NHS Foundation Trust,23-Jul-10,DRUGS,Critical care,NHS LOGISTICS,WSWI777569,3.08,
Department of Health,Salisbury NHS Foundation Trust,23-Jul-10,DRUGS,Medicine,NHS LOGISTICS,WSWI777569,3.08,
Department of Health,Salisbury NHS Foundation Trust,23-Jul-10,MEDSURGCONS - OTHER,Medicine,NHS LOGISTICS,WSWI777569,3.09,
Department of Health,Salisbury NHS Foundation Trust,23-Jul-10,DRUGS,Clinical Support and Family Services,NHS LOGISTICS,WSWI777569,3.13,
Department of Health,Salisbury NHS Foundation Trust,23-Jul-10,DISPOSABLE THEATRE DRAPES WIPES,Medicine,NHS LOGISTICS,WSWI777569,3.15,
Department of Health,Salisbury NHS Foundation Trust,23-Jul-10,MEDSURGCONS - OTHER,Medicine,NHS LOGISTICS,WSWI777569,3.15,
Department of Health,Salisbury NHS Foundation Trust,23-Jul-10,MEDSURGCONS - OTHER,Surgery,NHS LOGISTICS,WSWI777569,3.15,
Department of Health,Salisbury NHS Foundation Trust,23-Jul-10,ANAESTHETIC EQUIPMENT ACCESSORIES,Surgery,NHS LOGISTICS,WSWI777569,3.15,
Department of Health,Salisbury NHS Foundation Trust,23-Jul-10,PATIENT APPLIANCES,Medicine,NHS LOGISTICS,WSWI777569,3.17,
Department of Health,Salisbury NHS Foundation Trust,23-Jul-10,PATIENT APPLIANCES,Medicine,NHS LOGISTICS,WSWI777569,3.17,
Department of Health,Salisbury NHS Foundation Trust,23-Jul-10,PATIENT APPLIANCES,Medicine,NHS LOGISTICS,WSWI777569,3.17,
Department of Health,Salisbury NHS Foundation Trust,23-Jul-10,PATIENT APPLIANCES,Medicine,NHS LOGISTICS,WSWI777569,3.17,
Department of Health,Salisbury NHS Foundation Trust,23-Jul-10,OTHER MEDICAL SUPPLIES,Clinical Support and Family Services,NHS LOGISTICS,WSWI777569,3.17,
Department of Health,Salisbury NHS Foundation Trust,23-Jul-10,DRESSINGS - PRE STERILE,Surgery,NHS LOGISTICS,WSWI777569,3.17,
Department of Health,Salisbury NHS Foundation Trust,23-Jul-10,PATIENT APPLIANCES,Medicine,NHS LOGISTICS,WSWI777569,3.17,
Department of Health,Salisbury NHS Foundation Trust,23-Jul-10,PATIENT APPLIANCES,Medicine,NHS LOGISTICS,WSWI777569,3.17,
Department of Health,Salisbury NHS Foundation Trust,23-Jul-10,PATIENT APPLIANCES,Medicine,NHS LOGISTICS,WSWI777569,3.17,
Department of Health,Salisbury NHS Foundation Trust,23-Jul-10,MEDSURGCONS - OTHER,Surgery,NHS LOGISTICS,WSWI777569,3.19,
Department of Health,Salisbury NHS Foundation Trust,23-Jul-10,COOKING & KITCHEN UTENSILS,Medicine,NHS LOGISTICS,WSWI777569,3.23,
Department of Health,Salisbury NHS Foundation Trust,23-Jul-10,COOKING & KITCHEN UTENSILS,Medicine,NHS LOGISTICS,WSWI777569,3.23,
Department of Health,Salisbury NHS Foundation Trust,23-Jul-10,TOILETRIES PERSONAL HYGIENE PRODUCTS,Clinical Support and Family Services,NHS LOGISTICS,WSWI777569,3.23,
Department of Health,Salisbury NHS Foundation Trust,23-Jul-10,DRESSINGS - PRE STERILE,Critical care,NHS LOGISTICS,WSWI777569,3.23,
Department of Health,Salisbury NHS Foundation Trust,23-Jul-10,COOKING & KITCHEN UTENSILS,Surgery,NHS LOGISTICS,WSWI777569,3.23,
Department of Health,Salisbury NHS Foundation Trust,23-Jul-10,TOILETRIES PERSONAL HYGIENE PRODUCTS,Medicine,NHS LOGISTICS,WSWI777569,3.23,
Department of Health,Salisbury NHS Foundation Trust,23-Jul-10,TOILETRIES PERSONAL HYGIENE PRODUCTS,Surgery,NHS LOGISTICS,WSWI777569,3.23,
Department of Health,Salisbury NHS Foundation Trust,23-Jul-10,DRESSINGS - PRE STERILE,Facilities Directorate,NHS LOGISTICS,WSWI777569,3.23,
Department of Health,Salisbury NHS Foundation Trust,23-Jul-10,TOILETRIES PERSONAL HYGIENE PRODUCTS,Medicine,NHS LOGISTICS,WSWI777569,3.23,
Department of Health,Salisbury NHS Foundation Trust,23-Jul-10,ELECTRICAL EQUIPMENT x,Critical care,NHS LOGISTICS,WSWI777569,3.23,
Department of Health,Salisbury NHS Foundation Trust,23-Jul-10,MEDSURGCONS - OTHER,Clinical Support and Family Services,NHS LOGISTICS,WSWI777569,3.27,
Department of Health,Salisbury NHS Foundation Trust,23-Jul-10,DRESSINGS - PRE STERILE,Surgery,NHS LOGISTICS,WSWI777569,3.27,
Department of Health,Salisbury NHS Foundation Trust,23-Jul-10,ANAESTHETIC EQUIPMENT ACCESSORIES,Critical care,NHS LOGISTICS,WSWI777569,3.28,
Department of Health,Salisbury NHS Foundation Trust,23-Jul-10,ANAESTHETIC EQUIPMENT ACCESSORIES,Surgery,NHS LOGISTICS,WSWI777569,3.28,
Department of Health,Salisbury NHS Foundation Trust,23-Jul-10,DRESSINGS  -  PROCEDURE PACKS,Surgery,NHS LOGISTICS,WSWI777569,3.29,
Department of Health,Salisbury NHS Foundation Trust,23-Jul-10,STATIONERY SUNDRIES,Critical care,NHS LOGISTICS,WSWI777569,3.3,
Department of Health,Salisbury NHS Foundation Trust,23-Jul-10,MEDSURGCONS - OTHER,Medicine,NHS LOGISTICS,WSWI777569,3.3,
Department of Health,Salisbury NHS Foundation Trust,23-Jul-10,TISSUES HAND TOWELS & TOILET PAPER,Clinical Support and Family Services,NHS LOGISTICS,WSWI777569,3.32,
Department of Health,Salisbury NHS Foundation Trust,23-Jul-10,HEALTHCARE - WEAR,Critical care,NHS LOGISTICS,WSWI777569,3.34,
Department of Health,Salisbury NHS Foundation Trust,23-Jul-10,MEDSURGCONS - OTHER,Surgery,NHS LOGISTICS,WSWI777569,3.36,
Department of Health,Salisbury NHS Foundation Trust,23-Jul-10,MEDSURGCONS - OTHER,Surgery,NHS LOGISTICS,WSWI777569,3.36,
Department of Health,Salisbury NHS Foundation Trust,23-Jul-10,MEDSURGCONS - OTHER,Surgery,NHS LOGISTICS,WSWI777569,3.36,
Department of Health,Salisbury NHS Foundation Trust,23-Jul-10,DISPOSABLE THEATRE DRAPES WIPES,Surgery,NHS LOGISTICS,WSWI777569,3.37,
Department of Health,Salisbury NHS Foundation Trust,23-Jul-10,COOKING & KITCHEN UTENSILS,Medicine,NHS LOGISTICS,WSWI777569,3.37,
Department of Health,Salisbury NHS Foundation Trust,23-Jul-10,TOILETRIES PERSONAL HYGIENE PRODUCTS,Critical care,NHS LOGISTICS,WSWI777569,3.37,
Department of Health,Salisbury NHS Foundation Trust,23-Jul-10,PATIENTS INCONTINENCE,Medicine,NHS LOGISTICS,WSWI777569,3.38,
Department of Health,Salisbury NHS Foundation Trust,23-Jul-10,DRESSINGS - PRE STERILE,Surgery,NHS LOGISTICS,WSWI777569,3.42,
Department of Health,Salisbury NHS Foundation Trust,23-Jul-10,DRESSINGS - PRE STERILE,Critical care,NHS LOGISTICS,WSWI777569,3.42,
Department of Health,Salisbury NHS Foundation Trust,23-Jul-10,DRESSINGS - PRE STERILE,Surgery,NHS LOGISTICS,WSWI777569,3.42,
Department of Health,Salisbury NHS Foundation Trust,23-Jul-10,DRESSINGS - PRE STERILE,Surgery,NHS LOGISTICS,WSWI777569,3.42,
Department of Health,Salisbury NHS Foundation Trust,23-Jul-10,MEDSURGCONS - OTHER,Medicine,NHS LOGISTICS,WSWI777569,3.43,
Department of Health,Salisbury NHS Foundation Trust,23-Jul-10,MEDSURGCONS - OTHER,Medicine,NHS LOGISTICS,WSWI777569,3.43,
Department of Health,Salisbury NHS Foundation Trust,23-Jul-10,DISPOSABLE THEATRE DRAPES WIPES,Critical care,NHS LOGISTICS,WSWI777569,3.45,
Department of Health,Salisbury NHS Foundation Trust,23-Jul-10,BAGS SACKS - OTHER,Clinical Support and Family Services,NHS LOGISTICS,WSWI777569,3.46,
Department of Health,Salisbury NHS Foundation Trust,23-Jul-10,STATIONERY SUNDRIES,Clinical Support and Family Services,NHS LOGISTICS,WSWI777569,3.48,
Department of Health,Salisbury NHS Foundation Trust,23-Jul-10,PATIENTS BABY WEAR,Clinical Support and Family Services,NHS LOGISTICS,WSWI777569,3.48,
Department of Health,Salisbury NHS Foundation Trust,23-Jul-10,SURGICAL INSTRUMENTS: GENERAL,Clinical Support and Family Services,NHS LOGISTICS,WSWI777569,3.49,
Department of Health,Salisbury NHS Foundation Trust,23-Jul-10,SURGICAL INSTRUMENTS: GENERAL,Medicine,NHS LOGISTICS,WSWI777569,3.49,
Department of Health,Salisbury NHS Foundation Trust,23-Jul-10,ELECTRICAL EQUIPMENT x,Medicine,NHS LOGISTICS,WSWI777569,3.51,
Department of Health,Salisbury NHS Foundation Trust,23-Jul-10,BAGS SACKS - OTHER,Medicine,NHS LOGISTICS,WSWI777569,3.51,
Department of Health,Salisbury NHS Foundation Trust,23-Jul-10,PATIENT APPLIANCES,Critical care,NHS LOGISTICS,WSWI777569,3.51,
Department of Health,Salisbury NHS Foundation Trust,23-Jul-10,BAGS SACKS - OTHER,Medicine,NHS LOGISTICS,WSWI777569,3.51,
Department of Health,Salisbury NHS Foundation Trust,23-Jul-10,PATIENT APPLIANCES,Medicine,NHS LOGISTICS,WSWI777569,3.51,
Department of Health,Salisbury NHS Foundation Trust,23-Jul-10,PATIENT APPLIANCES,Medicine,NHS LOGISTICS,WSWI777569,3.51,
Department of Health,Salisbury NHS Foundation Trust,23-Jul-10,HABERDASHERY,Medicine,NHS LOGISTICS,WSWI777569,3.51,
Department of Health,Salisbury NHS Foundation Trust,23-Jul-10,BAGS SACKS - OTHER,Medicine,NHS LOGISTICS,WSWI777569,3.51,
Department of Health,Salisbury NHS Foundation Trust,23-Jul-10,PATIENT APPLIANCES,Critical care,NHS LOGISTICS,WSWI777569,3.51,
Department of Health,Salisbury NHS Foundation Trust,23-Jul-10,BAGS SACKS - OTHER,Surgery,NHS LOGISTICS,WSWI777569,3.51,
Department of Health,Salisbury NHS Foundation Trust,23-Jul-10,PATIENT APPLIANCES,Surgery,NHS LOGISTICS,WSWI777569,3.51,
Department of Health,Salisbury NHS Foundation Trust,23-Jul-10,SURGICAL INSTRUMENTS: GENERAL,Medicine,NHS LOGISTICS,WSWI777569,3.52,
Department of Health,Salisbury NHS Foundation Trust,23-Jul-10,SURGICAL INSTRUMENTS: GENERAL,Critical care,NHS LOGISTICS,WSWI777569,3.52,
Department of Health,Salisbury NHS Foundation Trust,23-Jul-10,SURGICAL INSTRUMENTS: GENERAL,Medicine,NHS LOGISTICS,WSWI777569,3.52,
Department of Health,Salisbury NHS Foundation Trust,23-Jul-10,ANAESTHETIC EQUIPMENT ACCESSORIES,Medicine,NHS LOGISTICS,WSWI777569,3.57,
Department of Health,Salisbury NHS Foundation Trust,23-Jul-10,DRESSINGS  -  PROCEDURE PACKS,Medicine,NHS LOGISTICS,WSWI777569,3.57,
Department of Health,Salisbury NHS Foundation Trust,23-Jul-10,TOILETRIES PERSONAL HYGIENE PRODUCTS,Nursing Directorate,NHS LOGISTICS,WSWI777569,3.59,
Department of Health,Salisbury NHS Foundation Trust,23-Jul-10,MEDSURGCONS - OTHER,Medicine,NHS LOGISTICS,WSWI777569,3.61,
Department of Health,Salisbury NHS Foundation Trust,23-Jul-10,MEDSURGCONS - OTHER,Medicine,NHS LOGISTICS,WSWI777569,3.62,
Department of Health,Salisbury NHS Foundation Trust,23-Jul-10,MEDSURGCONS - OTHER,Clinical Support and Family Services,NHS LOGISTICS,WSWI777569,3.62,
Department of Health,Salisbury NHS Foundation Trust,23-Jul-10,MEDSURGCONS - OTHER,Clinical Support and Family Services,NHS LOGISTICS,WSWI777569,3.62,
Department of Health,Salisbury NHS Foundation Trust,23-Jul-10,MEDSURGCONS - OTHER,Medicine,NHS LOGISTICS,WSWI777569,3.62,
Department of Health,Salisbury NHS Foundation Trust,23-Jul-10,MEDSURGCONS - OTHER,Clinical Support and Family Services,NHS LOGISTICS,WSWI777569,3.62,
Department of Health,Salisbury NHS Foundation Trust,23-Jul-10,MEDSURGCONS - OTHER,Medicine,NHS LOGISTICS,WSWI777569,3.64,
Department of Health,Salisbury NHS Foundation Trust,23-Jul-10,MEDSURGCONS - OTHER,Medicine,NHS LOGISTICS,WSWI777569,3.64,
Department of Health,Salisbury NHS Foundation Trust,23-Jul-10,TOILETRIES PERSONAL HYGIENE PRODUCTS,Surgery,NHS LOGISTICS,WSWI777569,3.66,
Department of Health,Salisbury NHS Foundation Trust,23-Jul-10,MEDSURGCONS - OTHER,Surgery,NHS LOGISTICS,WSWI777569,3.66,
Department of Health,Salisbury NHS Foundation Trust,23-Jul-10,TOILETRIES PERSONAL HYGIENE PRODUCTS,Critical care,NHS LOGISTICS,WSWI777569,3.66,
Department of Health,Salisbury NHS Foundation Trust,23-Jul-10,DRESSINGS  -  PROCEDURE PACKS,Surgery,NHS LOGISTICS,WSWI777569,3.72,
Department of Health,Salisbury NHS Foundation Trust,23-Jul-10,MEDSURGCONS - OTHER,Medicine,NHS LOGISTICS,WSWI777569,3.72,
Department of Health,Salisbury NHS Foundation Trust,23-Jul-10,MEDSURGCONS - OTHER,Critical care,NHS LOGISTICS,WSWI777569,3.72,
Department of Health,Salisbury NHS Foundation Trust,23-Jul-10,BEVERAGES & AMBIENT FOOD,Facilities Directorate,NHS LOGISTICS,WSWI777569,3.73,
Department of Health,Salisbury NHS Foundation Trust,23-Jul-10,MEDSURGCONS - OTHER,Surgery,NHS LOGISTICS,WSWI777569,3.74,
Department of Health,Salisbury NHS Foundation Trust,23-Jul-10,MEDSURGCONS - OTHER,Surgery,NHS LOGISTICS,WSWI777569,3.74,
Department of Health,Salisbury NHS Foundation Trust,23-Jul-10,DRESSINGS - PRE STERILE,Surgery,NHS LOGISTICS,WSWI777569,3.74,
Department of Health,Salisbury NHS Foundation Trust,23-Jul-10,TOILETRIES PERSONAL HYGIENE PRODUCTS,Surgery,NHS LOGISTICS,WSWI777569,3.74,
Department of Health,Salisbury NHS Foundation Trust,23-Jul-10,DRESSINGS - PRE STERILE,Surgery,NHS LOGISTICS,WSWI777569,3.75,
Department of Health,Salisbury NHS Foundation Trust,23-Jul-10,DRESSINGS - PRE STERILE,Surgery,NHS LOGISTICS,WSWI777569,3.77,
Department of Health,Salisbury NHS Foundation Trust,23-Jul-10,MEDSURGCONS - OTHER,Medicine,NHS LOGISTICS,WSWI777569,3.78,
Department of Health,Salisbury NHS Foundation Trust,23-Jul-10,DRESSINGS - PRE STERILE,Medicine,NHS LOGISTICS,WSWI777569,3.78,
Department of Health,Salisbury NHS Foundation Trust,23-Jul-10,PAPER ITEMS GENERAL STATIONERY SUNDRIES,Facilities Directorate,NHS LOGISTICS,WSWI777569,3.8,
Department of Health,Salisbury NHS Foundation Trust,23-Jul-10,LIQUID REFRESHMENTS,Facilities Directorate,NHS LOGISTICS,WSWI777569,3.8,
Department of Health,Salisbury NHS Foundation Trust,23-Jul-10,PAPER ITEMS GENERAL STATIONERY SUNDRIES,Clinical Support and Family Services,NHS LOGISTICS,WSWI777569,3.8,
Department of Health,Salisbury NHS Foundation Trust,23-Jul-10,TOILETRIES PERSONAL HYGIENE PRODUCTS,Medicine,NHS LOGISTICS,WSWI777569,3.8,
Department of Health,Salisbury NHS Foundation Trust,23-Jul-10,TOILETRIES PERSONAL HYGIENE PRODUCTS,Critical care,NHS LOGISTICS,WSWI777569,3.8,
Department of Health,Salisbury NHS Foundation Trust,23-Jul-10,TOILETRIES PERSONAL HYGIENE PRODUCTS,Surgery,NHS LOGISTICS,WSWI777569,3.8,
Department of Health,Salisbury NHS Foundation Trust,23-Jul-10,M & S EQUIPELECTEQUIPINST - OTHER,Medicine,NHS LOGISTICS,WSWI777569,3.8,
Department of Health,Salisbury NHS Foundation Trust,23-Jul-10,M & S EQUIPELECTEQUIPINST - OTHER,Clinical Support and Family Services,NHS LOGISTICS,WSWI777569,3.8,
Department of Health,Salisbury NHS Foundation Trust,23-Jul-10,TISSUES HAND TOWELS & TOILET PAPER,Medicine,NHS LOGISTICS,WSWI777569,3.83,
Department of Health,Salisbury NHS Foundation Trust,23-Jul-10,DRESSINGS  -  PROCEDURE PACKS,Medicine,NHS LOGISTICS,WSWI777569,3.83,
Department of Health,Salisbury NHS Foundation Trust,23-Jul-10,DRESSINGS  -  PROCEDURE PACKS,Medicine,NHS LOGISTICS,WSWI777569,3.83,
Department of Health,Salisbury NHS Foundation Trust,23-Jul-10,M & S EQUIPELECTEQUIPINST - OTHER,Medicine,NHS LOGISTICS,WSWI777569,3.85,
Department of Health,Salisbury NHS Foundation Trust,23-Jul-10,COOKING & KITCHEN UTENSILS,Surgery,NHS LOGISTICS,WSWI777569,3.87,
Department of Health,Salisbury NHS Foundation Trust,23-Jul-10,COOKING & KITCHEN UTENSILS,Clinical Support and Family Services,NHS LOGISTICS,WSWI777569,3.88,
Department of Health,Salisbury NHS Foundation Trust,23-Jul-10,COOKING & KITCHEN UTENSILS,Critical care,NHS LOGISTICS,WSWI777569,3.88,
Department of Health,Salisbury NHS Foundation Trust,23-Jul-10,COOKING & KITCHEN UTENSILS,Surgery,NHS LOGISTICS,WSWI777569,3.88,
Department of Health,Salisbury NHS Foundation Trust,23-Jul-10,BAGS SACKS - OTHER,Facilities Directorate,NHS LOGISTICS,WSWI777569,3.93,
Department of Health,Salisbury NHS Foundation Trust,23-Jul-10,STATIONERY SUNDRIES,Clinical Support and Family Services,NHS LOGISTICS,WSWI777569,3.94,
Department of Health,Salisbury NHS Foundation Trust,23-Jul-10,DISPOSABLE THEATRE DRAPES WIPES,Medicine,NHS LOGISTICS,WSWI777569,3.94,
Department of Health,Salisbury NHS Foundation Trust,23-Jul-10,DISPOSABLE THEATRE DRAPES WIPES,Medicine,NHS LOGISTICS,WSWI777569,3.94,
Department of Health,Salisbury NHS Foundation Trust,23-Jul-10,DISPOSABLE THEATRE DRAPES WIPES,Clinical Support and Family Services,NHS LOGISTICS,WSWI777569,3.94,
Department of Health,Salisbury NHS Foundation Trust,23-Jul-10,DISPOSABLE THEATRE DRAPES WIPES,Medicine,NHS LOGISTICS,WSWI777569,3.94,
Department of Health,Salisbury NHS Foundation Trust,23-Jul-10,DISPOSABLE THEATRE DRAPES WIPES,Medicine,NHS LOGISTICS,WSWI777569,3.94,
Department of Health,Salisbury NHS Foundation Trust,23-Jul-10,DISPOSABLE THEATRE DRAPES WIPES,Surgery,NHS LOGISTICS,WSWI777569,3.94,
Department of Health,Salisbury NHS Foundation Trust,23-Jul-10,DISPOSABLE THEATRE DRAPES WIPES,Clinical Support and Family Services,NHS LOGISTICS,WSWI777569,3.94,
Department of Health,Salisbury NHS Foundation Trust,23-Jul-10,DISPOSABLE THEATRE DRAPES WIPES,Critical care,NHS LOGISTICS,WSWI777569,3.94,
Department of Health,Salisbury NHS Foundation Trust,23-Jul-10,TOILETRIES PERSONAL HYGIENE PRODUCTS,Critical care,NHS LOGISTICS,WSWI777569,3.96,
Department of Health,Salisbury NHS Foundation Trust,23-Jul-10,TISSUES HAND TOWELS & TOILET PAPER,Surgery,NHS LOGISTICS,WSWI777569,3.98,
Department of Health,Salisbury NHS Foundation Trust,23-Jul-10,MEDSURGCONS - OTHER,Medicine,NHS LOGISTICS,WSWI777569,3.98,
Department of Health,Salisbury NHS Foundation Trust,23-Jul-10,MEDSURGCONS - OTHER,Surgery,NHS LOGISTICS,WSWI777569,3.98,
Department of Health,Salisbury NHS Foundation Trust,23-Jul-10,MEDSURGCONS - OTHER,Medicine,NHS LOGISTICS,WSWI777569,3.98,
Department of Health,Salisbury NHS Foundation Trust,23-Jul-10,TISSUES HAND TOWELS & TOILET PAPER,Human Resources,NHS LOGISTICS,WSWI777569,4,
Department of Health,Salisbury NHS Foundation Trust,23-Jul-10,DRESSINGS - PRE STERILE,Critical care,NHS LOGISTICS,WSWI777569,4.02,
Department of Health,Salisbury NHS Foundation Trust,23-Jul-10,DRESSINGS - PRE STERILE,Medicine,NHS LOGISTICS,WSWI777569,4.02,
Department of Health,Salisbury NHS Foundation Trust,23-Jul-10,STATIONERY SUNDRIES,Clinical Support and Family Services,NHS LOGISTICS,WSWI777569,4.04,
Department of Health,Salisbury NHS Foundation Trust,23-Jul-10,PATIENTS BABY WEAR,Clinical Support and Family Services,NHS LOGISTICS,WSWI777569,4.04,
Department of Health,Salisbury NHS Foundation Trust,23-Jul-10,STATIONERY SUNDRIES,Clinical Effctiveness Directorate,NHS LOGISTICS,WSWI777569,4.05,
Department of Health,Salisbury NHS Foundation Trust,23-Jul-10,MEDSURGCONS - OTHER,Medicine,NHS LOGISTICS,WSWI777569,4.07,
Department of Health,Salisbury NHS Foundation Trust,23-Jul-10,DRESSINGS - PRE STERILE,Medicine,NHS LOGISTICS,WSWI777569,4.07,
Department of Health,Salisbury NHS Foundation Trust,23-Jul-10,DRESSINGS - PRE STERILE,Medicine,NHS LOGISTICS,WSWI777569,4.07,
Department of Health,Salisbury NHS Foundation Trust,23-Jul-10,DRESSINGS - PRE STERILE,Medicine,NHS LOGISTICS,WSWI777569,4.07,
Department of Health,Salisbury NHS Foundation Trust,23-Jul-10,MEDSURGCONS - OTHER,Medicine,NHS LOGISTICS,WSWI777569,4.07,
Department of Health,Salisbury NHS Foundation Trust,23-Jul-10,STATIONERY SUNDRIES,Clinical Effctiveness Directorate,NHS LOGISTICS,WSWI777569,4.09,
Department of Health,Salisbury NHS Foundation Trust,23-Jul-10,STATIONERY SUNDRIES,Surgery,NHS LOGISTICS,WSWI777569,4.09,
Department of Health,Salisbury NHS Foundation Trust,23-Jul-10,PATIENTS INCONTINENCE,Medicine,NHS LOGISTICS,WSWI777569,4.09,
Department of Health,Salisbury NHS Foundation Trust,23-Jul-10,PATIENTS INCONTINENCE,Medicine,NHS LOGISTICS,WSWI777569,4.09,
Department of Health,Salisbury NHS Foundation Trust,23-Jul-10,BEVERAGES & AMBIENT FOOD,Facilities Directorate,NHS LOGISTICS,WSWI777569,4.1,
Department of Health,Salisbury NHS Foundation Trust,23-Jul-10,MEDSURGCONS - OTHER,Medicine,NHS LOGISTICS,WSWI777569,4.12,
Department of Health,Salisbury NHS Foundation Trust,23-Jul-10,DRESSINGS - PRE STERILE,Critical care,NHS LOGISTICS,WSWI777569,4.13,
Department of Health,Salisbury NHS Foundation Trust,23-Jul-10,DRESSINGS - PRE STERILE,Surgery,NHS LOGISTICS,WSWI777569,4.13,
Department of Health,Salisbury NHS Foundation Trust,23-Jul-10,DRESSINGS - PRE STERILE,Critical care,NHS LOGISTICS,WSWI777569,4.13,
Department of Health,Salisbury NHS Foundation Trust,23-Jul-10,DRESSINGS - PRE STERILE,Surgery,NHS LOGISTICS,WSWI777569,4.13,
Department of Health,Salisbury NHS Foundation Trust,23-Jul-10,DRESSINGS - PRE STERILE,Medicine,NHS LOGISTICS,WSWI777569,4.13,
Department of Health,Salisbury NHS Foundation Trust,23-Jul-10,DRESSINGS - PRE STERILE,Critical care,NHS LOGISTICS,WSWI777569,4.13,
Department of Health,Salisbury NHS Foundation Trust,23-Jul-10,SURGICAL INSTRUMENTS: GENERAL,Clinical Support and Family Services,NHS LOGISTICS,WSWI777569,4.14,
Department of Health,Salisbury NHS Foundation Trust,23-Jul-10,SURGICAL INSTRUMENTS: GENERAL,Medicine,NHS LOGISTICS,WSWI777569,4.14,
Department of Health,Salisbury NHS Foundation Trust,23-Jul-10,SURGICAL INSTRUMENTS: GENERAL,Surgery,NHS LOGISTICS,WSWI777569,4.14,
Department of Health,Salisbury NHS Foundation Trust,23-Jul-10,DRESSINGS - PRE STERILE,Medicine,NHS LOGISTICS,WSWI777569,4.15,
Department of Health,Salisbury NHS Foundation Trust,23-Jul-10,DRESSINGS - PRE STERILE,Medicine,NHS LOGISTICS,WSWI777569,4.15,
Department of Health,Salisbury NHS Foundation Trust,23-Jul-10,DRESSINGS - PRE STERILE,Critical care,NHS LOGISTICS,WSWI777569,4.15,
Department of Health,Salisbury NHS Foundation Trust,23-Jul-10,MEDSURGCONS - OTHER,Surgery,NHS LOGISTICS,WSWI777569,4.17,
Department of Health,Salisbury NHS Foundation Trust,23-Jul-10,HABERDASHERY,Clinical Support and Family Services,NHS LOGISTICS,WSWI777569,4.19,
Department of Health,Salisbury NHS Foundation Trust,23-Jul-10,MEDSURGCONS - OTHER,Medicine,NHS LOGISTICS,WSWI777569,4.19,
Department of Health,Salisbury NHS Foundation Trust,23-Jul-10,BAGS SACKS - OTHER,Surgery,NHS LOGISTICS,WSWI777569,4.2,
Department of Health,Salisbury NHS Foundation Trust,23-Jul-10,MEDSURGCONS - OTHER,Clinical Support and Family Services,NHS LOGISTICS,WSWI777569,4.22,
Department of Health,Salisbury NHS Foundation Trust,23-Jul-10,STATIONERY SUNDRIES,Facilities Directorate,NHS LOGISTICS,WSWI777569,4.22,
Department of Health,Salisbury NHS Foundation Trust,23-Jul-10,DRESSINGS  -  PROCEDURE PACKS,Medicine,NHS LOGISTICS,WSWI777569,4.24,
Department of Health,Salisbury NHS Foundation Trust,23-Jul-10,DRESSINGS  -  PROCEDURE PACKS,Surgery,NHS LOGISTICS,WSWI777569,4.24,
Department of Health,Salisbury NHS Foundation Trust,23-Jul-10,DRESSINGS  -  PROCEDURE PACKS,Medicine,NHS LOGISTICS,WSWI777569,4.24,
Department of Health,Salisbury NHS Foundation Trust,23-Jul-10,COOKING & KITCHEN UTENSILS,Medicine,NHS LOGISTICS,WSWI777569,4.29,
Department of Health,Salisbury NHS Foundation Trust,23-Jul-10,COOKING & KITCHEN UTENSILS,Medicine,NHS LOGISTICS,WSWI777569,4.29,
Department of Health,Salisbury NHS Foundation Trust,23-Jul-10,DISPOSABLE THEATRE DRAPES WIPES,Clinical Support and Family Services,NHS LOGISTICS,WSWI777569,4.29,
Department of Health,Salisbury NHS Foundation Trust,23-Jul-10,M & S EQUIPELECTEQUIPINST - OTHER,Critical care,NHS LOGISTICS,WSWI777569,4.29,
Department of Health,Salisbury NHS Foundation Trust,23-Jul-10,TISSUES HAND TOWELS & TOILET PAPER,Critical care,NHS LOGISTICS,WSWI777569,4.3,
Department of Health,Salisbury NHS Foundation Trust,23-Jul-10,SURGICAL INSTRUMENTS: GENERAL,Medicine,NHS LOGISTICS,WSWI777569,4.32,
Department of Health,Salisbury NHS Foundation Trust,23-Jul-10,HARD/SOFTWARE-COMPUTER ACCESSORIES  TEST EQUIPMENT,Facilities Directorate,NHS LOGISTICS,WSWI777569,4.33,
Department of Health,Salisbury NHS Foundation Trust,23-Jul-10,STATIONERY SUNDRIES,Surgery,NHS LOGISTICS,WSWI777569,4.34,
Department of Health,Salisbury NHS Foundation Trust,23-Jul-10,PATIENTS INCONTINENCE,Medicine,NHS LOGISTICS,WSWI777569,4.34,
Department of Health,Salisbury NHS Foundation Trust,23-Jul-10,PATIENTS INCONTINENCE,Medicine,NHS LOGISTICS,WSWI777569,4.34,
Department of Health,Salisbury NHS Foundation Trust,23-Jul-10,PATIENTS INCONTINENCE,Medicine,NHS LOGISTICS,WSWI777569,4.34,
Department of Health,Salisbury NHS Foundation Trust,23-Jul-10,PATIENTS INCONTINENCE,Critical care,NHS LOGISTICS,WSWI777569,4.34,
Department of Health,Salisbury NHS Foundation Trust,23-Jul-10,DRESSINGS - PRE STERILE,Medicine,NHS LOGISTICS,WSWI777569,4.37,
Department of Health,Salisbury NHS Foundation Trust,23-Jul-10,MEDSURGCONS - OTHER,Medicine,NHS LOGISTICS,WSWI777569,4.41,
Department of Health,Salisbury NHS Foundation Trust,23-Jul-10,MEDSURGCONS - OTHER,Medicine,NHS LOGISTICS,WSWI777569,4.43,
Department of Health,Salisbury NHS Foundation Trust,23-Jul-10,BEVERAGES & AMBIENT FOOD,Facilities Directorate,NHS LOGISTICS,WSWI777569,4.44,
Department of Health,Salisbury NHS Foundation Trust,23-Jul-10,PATIENT APPLIANCES,Medicine,NHS LOGISTICS,WSWI777569,4.46,
Department of Health,Salisbury NHS Foundation Trust,23-Jul-10,FRUIT & VEGETABLES,Facilities Directorate,NHS LOGISTICS,WSWI777569,4.48,
Department of Health,Salisbury NHS Foundation Trust,23-Jul-10,DRESSINGS - PRE STERILE,Medicine,NHS LOGISTICS,WSWI777569,4.5,
Department of Health,Salisbury NHS Foundation Trust,23-Jul-10,DRESSINGS - PRE STERILE,Critical care,NHS LOGISTICS,WSWI777569,4.5,
Department of Health,Salisbury NHS Foundation Trust,23-Jul-10,DRESSINGS - PRE STERILE,Medicine,NHS LOGISTICS,WSWI777569,4.5,
Department of Health,Salisbury NHS Foundation Trust,23-Jul-10,DRESSINGS - PRE STERILE,Surgery,NHS LOGISTICS,WSWI777569,4.5,
Department of Health,Salisbury NHS Foundation Trust,23-Jul-10,TISSUES HAND TOWELS & TOILET PAPER,Medicine,NHS LOGISTICS,WSWI777569,4.52,
Department of Health,Salisbury NHS Foundation Trust,23-Jul-10,TISSUES HAND TOWELS & TOILET PAPER,Medicine,NHS LOGISTICS,WSWI777569,4.52,
Department of Health,Salisbury NHS Foundation Trust,23-Jul-10,ELECTRICAL EQUIPMENT x,Surgery,NHS LOGISTICS,WSWI777569,4.52,
Department of Health,Salisbury NHS Foundation Trust,23-Jul-10,TISSUES HAND TOWELS & TOILET PAPER,Surgery,NHS LOGISTICS,WSWI777569,4.52,
Department of Health,Salisbury NHS Foundation Trust,23-Jul-10,PAPER ITEMS GENERAL STATIONERY SUNDRIES,Clinical Support and Family Services,NHS LOGISTICS,WSWI777569,4.53,
Department of Health,Salisbury NHS Foundation Trust,23-Jul-10,DRESSINGS - PRE STERILE,Critical care,NHS LOGISTICS,WSWI777569,4.54,
Department of Health,Salisbury NHS Foundation Trust,23-Jul-10,BEVERAGES & AMBIENT FOOD,Facilities Directorate,NHS LOGISTICS,WSWI777569,4.54,
Department of Health,Salisbury NHS Foundation Trust,23-Jul-10,BEVERAGES & AMBIENT FOOD,Facilities Directorate,NHS LOGISTICS,WSWI777569,4.54,
Department of Health,Salisbury NHS Foundation Trust,23-Jul-10,SURGICAL INSTRUMENTS: GENERAL,Clinical Support and Family Services,NHS LOGISTICS,WSWI777569,4.55,
Department of Health,Salisbury NHS Foundation Trust,23-Jul-10,MEDSURGCONS - OTHER,Clinical Support and Family Services,NHS LOGISTICS,WSWI777569,4.55,
Department of Health,Salisbury NHS Foundation Trust,23-Jul-10,MEDSURGCONS - OTHER,Surgery,NHS LOGISTICS,WSWI777569,4.56,
Department of Health,Salisbury NHS Foundation Trust,23-Jul-10,DRUGS,Surgery,NHS LOGISTICS,WSWI777569,4.57,
Department of Health,Salisbury NHS Foundation Trust,23-Jul-10,MEDSURGCONS - OTHER,Clinical Support and Family Services,NHS LOGISTICS,WSWI777569,4.58,
Department of Health,Salisbury NHS Foundation Trust,23-Jul-10,BAGS SACKS - OTHER,Clinical Support and Family Services,NHS LOGISTICS,WSWI777569,4.58,
Department of Health,Salisbury NHS Foundation Trust,23-Jul-10,TISSUES HAND TOWELS & TOILET PAPER,Surgery,NHS LOGISTICS,WSWI777569,4.6,
Department of Health,Salisbury NHS Foundation Trust,23-Jul-10,STATIONERY SUNDRIES,Clinical Support and Family Services,NHS LOGISTICS,WSWI777569,4.66,
Department of Health,Salisbury NHS Foundation Trust,23-Jul-10,OTHER MEDICAL SUPPLIES,Medicine,NHS LOGISTICS,WSWI777569,4.68,
Department of Health,Salisbury NHS Foundation Trust,23-Jul-10,OTHER MEDICAL SUPPLIES,Medicine,NHS LOGISTICS,WSWI777569,4.68,
Department of Health,Salisbury NHS Foundation Trust,23-Jul-10,OTHER MEDICAL SUPPLIES,Medicine,NHS LOGISTICS,WSWI777569,4.68,
Department of Health,Salisbury NHS Foundation Trust,23-Jul-10,STATIONERY SUNDRIES,Clinical Support and Family Services,NHS LOGISTICS,WSWI777569,4.7,
Department of Health,Salisbury NHS Foundation Trust,23-Jul-10,DRESSINGS - PRE STERILE,Critical care,NHS LOGISTICS,WSWI777569,4.71,
Department of Health,Salisbury NHS Foundation Trust,23-Jul-10,MEDSURGCONS - OTHER,Clinical Support and Family Services,NHS LOGISTICS,WSWI777569,4.72,
Department of Health,Salisbury NHS Foundation Trust,23-Jul-10,MEDSURGCONS - OTHER,Surgery,NHS LOGISTICS,WSWI777569,4.72,
Department of Health,Salisbury NHS Foundation Trust,23-Jul-10,MEDSURGCONS - OTHER,Surgery,NHS LOGISTICS,WSWI777569,4.72,
Department of Health,Salisbury NHS Foundation Trust,23-Jul-10,MEDSURGCONS - OTHER,Surgery,NHS LOGISTICS,WSWI777569,4.72,
Department of Health,Salisbury NHS Foundation Trust,23-Jul-10,DISPOSABLE THEATRE DRAPES WIPES,Human Resources,NHS LOGISTICS,WSWI777569,4.77,
Department of Health,Salisbury NHS Foundation Trust,23-Jul-10,DRESSINGS  -  PROCEDURE PACKS,Clinical Support and Family Services,NHS LOGISTICS,WSWI777569,4.77,
Department of Health,Salisbury NHS Foundation Trust,23-Jul-10,MEDSURGCONS - OTHER,Surgery,NHS LOGISTICS,WSWI777569,4.78,
Department of Health,Salisbury NHS Foundation Trust,23-Jul-10,MEDSURGCONS - OTHER,Surgery,NHS LOGISTICS,WSWI777569,4.78,
Department of Health,Salisbury NHS Foundation Trust,23-Jul-10,PAPER ITEMS GENERAL STATIONERY SUNDRIES,Clinical Effctiveness Directorate,NHS LOGISTICS,WSWI777569,4.79,
Department of Health,Salisbury NHS Foundation Trust,23-Jul-10,DRESSINGS  -  PROCEDURE PACKS,Medicine,NHS LOGISTICS,WSWI777569,4.8,
Department of Health,Salisbury NHS Foundation Trust,23-Jul-10,M & S EQUIPELECTEQUIPINST - OTHER,Medicine,NHS LOGISTICS,WSWI777569,4.81,
Department of Health,Salisbury NHS Foundation Trust,23-Jul-10,M & S EQUIPELECTEQUIPINST - OTHER,Critical care,NHS LOGISTICS,WSWI777569,4.81,
Department of Health,Salisbury NHS Foundation Trust,23-Jul-10,M & S EQUIPELECTEQUIPINST - OTHER,Critical care,NHS LOGISTICS,WSWI777569,4.81,
Department of Health,Salisbury NHS Foundation Trust,23-Jul-10,DRESSINGS - PRE STERILE,Surgery,NHS LOGISTICS,WSWI777569,4.83,
Department of Health,Salisbury NHS Foundation Trust,23-Jul-10,MEDSURGCONS - OTHER,Medicine,NHS LOGISTICS,WSWI777569,4.85,
Department of Health,Salisbury NHS Foundation Trust,23-Jul-10,BAGS SACKS - OTHER,Medicine,NHS LOGISTICS,WSWI777569,4.87,
Department of Health,Salisbury NHS Foundation Trust,23-Jul-10,BAGS SACKS - OTHER,Clinical Support and Family Services,NHS LOGISTICS,WSWI777569,4.88,
Department of Health,Salisbury NHS Foundation Trust,23-Jul-10,NON DISPOSABLE BED LINEN,Medicine,NHS LOGISTICS,WSWI777569,4.92,
Department of Health,Salisbury NHS Foundation Trust,23-Jul-10,TISSUES HAND TOWELS & TOILET PAPER,Medicine,NHS LOGISTICS,WSWI777569,4.98,
Department of Health,Salisbury NHS Foundation Trust,23-Jul-10,TISSUES HAND TOWELS & TOILET PAPER,Medicine,NHS LOGISTICS,WSWI777569,4.98,
Department of Health,Salisbury NHS Foundation Trust,23-Jul-10,DRUGS,Surgery,NHS LOGISTICS,WSWI777569,4.98,
Department of Health,Salisbury NHS Foundation Trust,23-Jul-10,EQUIPMENT FITTINGS,Capital Projects,NHS LOGISTICS,WSWI777569,4.99,
Department of Health,Salisbury NHS Foundation Trust,23-Jul-10,MEDSURGCONS - OTHER,Medicine,NHS LOGISTICS,WSWI777569,5.04,
Department of Health,Salisbury NHS Foundation Trust,23-Jul-10,HEALTHCARE - WEAR,Surgery,NHS LOGISTICS,WSWI777569,5.06,
Department of Health,Salisbury NHS Foundation Trust,23-Jul-10,HEALTHCARE - WEAR,Surgery,NHS LOGISTICS,WSWI777569,5.06,
Department of Health,Salisbury NHS Foundation Trust,23-Jul-10,MEDSURGCONS - OTHER,Clinical Support and Family Services,NHS LOGISTICS,WSWI777569,5.11,
Department of Health,Salisbury NHS Foundation Trust,23-Jul-10,MEDSURGCONS - OTHER,Clinical Support and Family Services,NHS LOGISTICS,WSWI777569,5.11,
Department of Health,Salisbury NHS Foundation Trust,23-Jul-10,TISSUES HAND TOWELS & TOILET PAPER,Clinical Support and Family Services,NHS LOGISTICS,WSWI777569,5.11,
Department of Health,Salisbury NHS Foundation Trust,23-Jul-10,MEDSURGCONS - OTHER,Clinical Support and Family Services,NHS LOGISTICS,WSWI777569,5.11,
Department of Health,Salisbury NHS Foundation Trust,23-Jul-10,DRUGS,Critical care,NHS LOGISTICS,WSWI777569,5.11,
Department of Health,Salisbury NHS Foundation Trust,23-Jul-10,TISSUES HAND TOWELS & TOILET PAPER,Surgery,NHS LOGISTICS,WSWI777569,5.11,
Department of Health,Salisbury NHS Foundation Trust,23-Jul-10,MEDSURGCONS - OTHER,Medicine,NHS LOGISTICS,WSWI777569,5.11,
Department of Health,Salisbury NHS Foundation Trust,23-Jul-10,MEDSURGCONS - OTHER,Clinical Support and Family Services,NHS LOGISTICS,WSWI777569,5.11,
Department of Health,Salisbury NHS Foundation Trust,23-Jul-10,MEDSURGCONS - OTHER,Clinical Support and Family Services,NHS LOGISTICS,WSWI777569,5.11,
Department of Health,Salisbury NHS Foundation Trust,23-Jul-10,FLAVOURINGS HERBS SPICES,Facilities Directorate,NHS LOGISTICS,WSWI777569,5.14,
Department of Health,Salisbury NHS Foundation Trust,23-Jul-10,MEDSURGCONS - OTHER,Clinical Support and Family Services,NHS LOGISTICS,WSWI777569,5.15,
Department of Health,Salisbury NHS Foundation Trust,23-Jul-10,MEDSURGCONS - OTHER,Critical care,NHS LOGISTICS,WSWI777569,5.15,
Department of Health,Salisbury NHS Foundation Trust,23-Jul-10,MEDSURGCONS - OTHER,Surgery,NHS LOGISTICS,WSWI777569,5.15,
Department of Health,Salisbury NHS Foundation Trust,23-Jul-10,STATIONERY SUNDRIES,Clinical Support and Family Services,NHS LOGISTICS,WSWI777569,5.19,
Department of Health,Salisbury NHS Foundation Trust,23-Jul-10,OTHER MEDICAL SUPPLIES,Medicine,NHS LOGISTICS,WSWI777569,5.19,
Department of Health,Salisbury NHS Foundation Trust,23-Jul-10,OTHER MEDICAL SUPPLIES,Clinical Support and Family Services,NHS LOGISTICS,WSWI777569,5.19,
Department of Health,Salisbury NHS Foundation Trust,23-Jul-10,OTHER MEDICAL SUPPLIES,Critical care,NHS LOGISTICS,WSWI777569,5.19,
Department of Health,Salisbury NHS Foundation Trust,23-Jul-10,OTHER MEDICAL SUPPLIES,Critical care,NHS LOGISTICS,WSWI777569,5.19,
Department of Health,Salisbury NHS Foundation Trust,23-Jul-10,DRESSINGS - PRE STERILE,Critical care,NHS LOGISTICS,WSWI777569,5.19,
Department of Health,Salisbury NHS Foundation Trust,23-Jul-10,STATIONERY SUNDRIES,Facilities Directorate,NHS LOGISTICS,WSWI777569,5.21,
Department of Health,Salisbury NHS Foundation Trust,23-Jul-10,DRESSINGS - PRE STERILE,Critical care,NHS LOGISTICS,WSWI777569,5.22,
Department of Health,Salisbury NHS Foundation Trust,23-Jul-10,PATIENT APPLIANCES,Medicine,NHS LOGISTICS,WSWI777569,5.24,
Department of Health,Salisbury NHS Foundation Trust,23-Jul-10,DRESSINGS  -  PROCEDURE PACKS,Surgery,NHS LOGISTICS,WSWI777569,5.28,
Department of Health,Salisbury NHS Foundation Trust,23-Jul-10,M & S EQUIPELECTEQUIPINST - OTHER,Medicine,NHS LOGISTICS,WSWI777569,5.29,
Department of Health,Salisbury NHS Foundation Trust,23-Jul-10,M & S EQUIPELECTEQUIPINST - OTHER,Medicine,NHS LOGISTICS,WSWI777569,5.29,
Department of Health,Salisbury NHS Foundation Trust,23-Jul-10,M & S EQUIPELECTEQUIPINST - OTHER,Medicine,NHS LOGISTICS,WSWI777569,5.29,
Department of Health,Salisbury NHS Foundation Trust,23-Jul-10,SURGICAL INSTRUMENTS: GENERAL,Surgery,NHS LOGISTICS,WSWI777569,5.29,
Department of Health,Salisbury NHS Foundation Trust,23-Jul-10,PATIENTS BEDWEAR UNISEX,Medicine,NHS LOGISTICS,WSWI777569,5.3,
Department of Health,Salisbury NHS Foundation Trust,23-Jul-10,PATIENTS BEDWEAR UNISEX,Clinical Support and Family Services,NHS LOGISTICS,WSWI777569,5.3,
Department of Health,Salisbury NHS Foundation Trust,23-Jul-10,PATIENTS BEDWEAR UNISEX,Medicine,NHS LOGISTICS,WSWI777569,5.3,
Department of Health,Salisbury NHS Foundation Trust,23-Jul-10,PATIENTS BEDWEAR UNISEX,Critical care,NHS LOGISTICS,WSWI777569,5.3,
Department of Health,Salisbury NHS Foundation Trust,23-Jul-10,BEVERAGES & AMBIENT FOOD,Facilities Directorate,NHS LOGISTICS,WSWI777569,5.3,
Department of Health,Salisbury NHS Foundation Trust,23-Jul-10,NON DISPOSABLE BED LINEN,Critical care,NHS LOGISTICS,WSWI777569,5.36,
Department of Health,Salisbury NHS Foundation Trust,23-Jul-10,STATIONERY SUNDRIES,Clinical Support and Family Services,NHS LOGISTICS,WSWI777569,5.41,
Department of Health,Salisbury NHS Foundation Trust,23-Jul-10,DRESSINGS - PRE STERILE,Medicine,NHS LOGISTICS,WSWI777569,5.41,
Department of Health,Salisbury NHS Foundation Trust,23-Jul-10,DRESSINGS - PRE STERILE,Medicine,NHS LOGISTICS,WSWI777569,5.41,
Department of Health,Salisbury NHS Foundation Trust,23-Jul-10,MEDSURGCONS - OTHER,Clinical Support and Family Services,NHS LOGISTICS,WSWI777569,5.41,
Department of Health,Salisbury NHS Foundation Trust,23-Jul-10,DRESSINGS - PRE STERILE,Surgery,NHS LOGISTICS,WSWI777569,5.41,
Department of Health,Salisbury NHS Foundation Trust,23-Jul-10,DRESSINGS - PRE STERILE,Medicine,NHS LOGISTICS,WSWI777569,5.41,
Department of Health,Salisbury NHS Foundation Trust,23-Jul-10,MEDSURGCONS - OTHER,Medicine,NHS LOGISTICS,WSWI777569,5.41,
Department of Health,Salisbury NHS Foundation Trust,23-Jul-10,DRESSINGS - PRE STERILE,Surgery,NHS LOGISTICS,WSWI777569,5.41,
Department of Health,Salisbury NHS Foundation Trust,23-Jul-10,MEDSURGCONS - OTHER,Clinical Support and Family Services,NHS LOGISTICS,WSWI777569,5.41,
Department of Health,Salisbury NHS Foundation Trust,23-Jul-10,MEDSURGCONS - OTHER,Medicine,NHS LOGISTICS,WSWI777569,5.44,
Department of Health,Salisbury NHS Foundation Trust,23-Jul-10,MEDSURGCONS - OTHER,Medicine,NHS LOGISTICS,WSWI777569,5.44,
Department of Health,Salisbury NHS Foundation Trust,23-Jul-10,CLEANING MATERIALS PRODUCTS SUNDRIES,Facilities Directorate,NHS LOGISTICS,WSWI777569,5.45,
Department of Health,Salisbury NHS Foundation Trust,23-Jul-10,SURGICAL INSTRUMENTS: GENERAL,Critical care,NHS LOGISTICS,WSWI777569,5.46,
Department of Health,Salisbury NHS Foundation Trust,23-Jul-10,TOILETRIES PERSONAL HYGIENE PRODUCTS,Clinical Support and Family Services,NHS LOGISTICS,WSWI777569,5.46,
Department of Health,Salisbury NHS Foundation Trust,23-Jul-10,DRESSINGS - PRE STERILE,Medicine,NHS LOGISTICS,WSWI777569,5.49,
Department of Health,Salisbury NHS Foundation Trust,23-Jul-10,DRESSINGS - PRE STERILE,Surgery,NHS LOGISTICS,WSWI777569,5.49,
Department of Health,Salisbury NHS Foundation Trust,23-Jul-10,PAPER ITEMS GENERAL STATIONERY SUNDRIES,Medicine,NHS LOGISTICS,WSWI777569,5.5,
Department of Health,Salisbury NHS Foundation Trust,23-Jul-10,DISPOSABLE THEATRE DRAPES WIPES,Medicine,NHS LOGISTICS,WSWI777569,5.51,
Department of Health,Salisbury NHS Foundation Trust,23-Jul-10,PATIENT APPLIANCES,Clinical Support and Family Services,NHS LOGISTICS,WSWI777569,5.51,
Department of Health,Salisbury NHS Foundation Trust,23-Jul-10,DRESSINGS - PRE STERILE,Critical care,NHS LOGISTICS,WSWI777569,5.53,
Department of Health,Salisbury NHS Foundation Trust,23-Jul-10,TOILETRIES PERSONAL HYGIENE PRODUCTS,Medicine,NHS LOGISTICS,WSWI777569,5.55,
Department of Health,Salisbury NHS Foundation Trust,23-Jul-10,DRUGS,Medicine,NHS LOGISTICS,WSWI777569,5.57,
Department of Health,Salisbury NHS Foundation Trust,23-Jul-10,DRUGS,Surgery,NHS LOGISTICS,WSWI777569,5.57,
Department of Health,Salisbury NHS Foundation Trust,23-Jul-10,DRUGS,Medicine,NHS LOGISTICS,WSWI777569,5.6,
Department of Health,Salisbury NHS Foundation Trust,23-Jul-10,DRUGS,Surgery,NHS LOGISTICS,WSWI777569,5.6,
Department of Health,Salisbury NHS Foundation Trust,23-Jul-10,CLEANING MATERIALS PRODUCTS SUNDRIES,Facilities Directorate,NHS LOGISTICS,WSWI777569,5.62,
Department of Health,Salisbury NHS Foundation Trust,23-Jul-10,LIQUID REFRESHMENTS,Facilities Directorate,NHS LOGISTICS,WSWI777569,5.62,
Department of Health,Salisbury NHS Foundation Trust,23-Jul-10,DISPOSABLE THEATRE DRAPES WIPES,Clinical Support and Family Services,NHS LOGISTICS,WSWI777569,5.63,
Department of Health,Salisbury NHS Foundation Trust,23-Jul-10,SURGICAL INSTRUMENTS: DISPOSABLE,Clinical Support and Family Services,NHS LOGISTICS,WSWI777569,5.63,
Department of Health,Salisbury NHS Foundation Trust,23-Jul-10,SURGICAL INSTRUMENTS: DISPOSABLE,Surgery,NHS LOGISTICS,WSWI777569,5.63,
Department of Health,Salisbury NHS Foundation Trust,23-Jul-10,SURGICAL INSTRUMENTS: DISPOSABLE,Surgery,NHS LOGISTICS,WSWI777569,5.63,
Department of Health,Salisbury NHS Foundation Trust,23-Jul-10,SURGICAL INSTRUMENTS: DISPOSABLE,Surgery,NHS LOGISTICS,WSWI777569,5.63,
Department of Health,Salisbury NHS Foundation Trust,23-Jul-10,MEDSURGCONS - OTHER,Medicine,NHS LOGISTICS,WSWI777569,5.64,
Department of Health,Salisbury NHS Foundation Trust,23-Jul-10,MEDSURGCONS - OTHER,Surgery,NHS LOGISTICS,WSWI777569,5.65,
Department of Health,Salisbury NHS Foundation Trust,23-Jul-10,PAPER ITEMS GENERAL STATIONERY SUNDRIES,Surgery,NHS LOGISTICS,WSWI777569,5.66,
Department of Health,Salisbury NHS Foundation Trust,23-Jul-10,DRESSINGS - PRE STERILE,Medicine,NHS LOGISTICS,WSWI777569,5.67,
Department of Health,Salisbury NHS Foundation Trust,23-Jul-10,DISPOSABLE THEATRE DRAPES WIPES,Human Resources,NHS LOGISTICS,WSWI777569,5.69,
Department of Health,Salisbury NHS Foundation Trust,23-Jul-10,DISPOSABLE THEATRE DRAPES WIPES,Surgery,NHS LOGISTICS,WSWI777569,5.69,
Department of Health,Salisbury NHS Foundation Trust,23-Jul-10,PATIENT APPLIANCES,Medicine,NHS LOGISTICS,WSWI777569,5.71,
Department of Health,Salisbury NHS Foundation Trust,23-Jul-10,PATIENT APPLIANCES,Surgery,NHS LOGISTICS,WSWI777569,5.71,
Department of Health,Salisbury NHS Foundation Trust,23-Jul-10,PATIENT APPLIANCES,Medicine,NHS LOGISTICS,WSWI777569,5.71,
Department of Health,Salisbury NHS Foundation Trust,23-Jul-10,PATIENT APPLIANCES,Medicine,NHS LOGISTICS,WSWI777569,5.71,
Department of Health,Salisbury NHS Foundation Trust,23-Jul-10,LIQUID REFRESHMENTS,Facilities Directorate,NHS LOGISTICS,WSWI777569,5.72,
Department of Health,Salisbury NHS Foundation Trust,23-Jul-10,M & S EQUIPELECTEQUIPINST - OTHER,Clinical Support and Family Services,NHS LOGISTICS,WSWI777569,5.72,
Department of Health,Salisbury NHS Foundation Trust,23-Jul-10,DRESSINGS - PRE STERILE,Critical care,NHS LOGISTICS,WSWI777569,5.74,
Department of Health,Salisbury NHS Foundation Trust,23-Jul-10,HABERDASHERY,Surgery,NHS LOGISTICS,WSWI777569,5.75,
Department of Health,Salisbury NHS Foundation Trust,23-Jul-10,M & S EQUIPELECTEQUIPINST - OTHER,Surgery,NHS LOGISTICS,WSWI777569,5.84,
Department of Health,Salisbury NHS Foundation Trust,23-Jul-10,M & S EQUIPELECTEQUIPINST - OTHER,Surgery,NHS LOGISTICS,WSWI777569,5.84,
Department of Health,Salisbury NHS Foundation Trust,23-Jul-10,MEDSURGCONS - OTHER,Medicine,NHS LOGISTICS,WSWI777569,5.86,
Department of Health,Salisbury NHS Foundation Trust,23-Jul-10,MEDSURGCONS - OTHER,Clinical Support and Family Services,NHS LOGISTICS,WSWI777569,5.86,
Department of Health,Salisbury NHS Foundation Trust,23-Jul-10,MEDSURGCONS - OTHER,Medicine,NHS LOGISTICS,WSWI777569,5.86,
Department of Health,Salisbury NHS Foundation Trust,23-Jul-10,STATIONERY SUNDRIES,Surgery,NHS LOGISTICS,WSWI777569,5.87,
Department of Health,Salisbury NHS Foundation Trust,23-Jul-10,DRUGS,Surgery,NHS LOGISTICS,WSWI777569,5.89,
Department of Health,Salisbury NHS Foundation Trust,23-Jul-10,DRESSINGS - PRE STERILE,Critical care,NHS LOGISTICS,WSWI777569,5.91,
Department of Health,Salisbury NHS Foundation Trust,23-Jul-10,DRESSINGS - PRE STERILE,Medicine,NHS LOGISTICS,WSWI777569,5.92,
Department of Health,Salisbury NHS Foundation Trust,23-Jul-10,DRUGS,Critical care,NHS LOGISTICS,WSWI777569,5.92,
Department of Health,Salisbury NHS Foundation Trust,23-Jul-10,DRESSINGS - PRE STERILE,Medicine,NHS LOGISTICS,WSWI777569,5.92,
Department of Health,Salisbury NHS Foundation Trust,23-Jul-10,DISPOSABLE THEATRE DRAPES WIPES,Medicine,NHS LOGISTICS,WSWI777569,5.92,
Department of Health,Salisbury NHS Foundation Trust,23-Jul-10,DRESSINGS - PRE STERILE,Surgery,NHS LOGISTICS,WSWI777569,5.92,
Department of Health,Salisbury NHS Foundation Trust,23-Jul-10,DRESSINGS - PRE STERILE,Surgery,NHS LOGISTICS,WSWI777569,5.92,
Department of Health,Salisbury NHS Foundation Trust,23-Jul-10,DISPOSABLE THEATRE DRAPES WIPES,Critical care,NHS LOGISTICS,WSWI777569,5.92,
Department of Health,Salisbury NHS Foundation Trust,23-Jul-10,BEVERAGES & AMBIENT FOOD,Facilities Directorate,NHS LOGISTICS,WSWI777569,5.94,
Department of Health,Salisbury NHS Foundation Trust,23-Jul-10,ANAESTHETIC EQUIPMENT ACCESSORIES,Medicine,NHS LOGISTICS,WSWI777569,5.96,
Department of Health,Salisbury NHS Foundation Trust,23-Jul-10,PAPER ITEMS GENERAL STATIONERY SUNDRIES,Surgery,NHS LOGISTICS,WSWI777569,5.97,
Department of Health,Salisbury NHS Foundation Trust,23-Jul-10,ELECTRICAL EQUIPMENT x,Clinical Support and Family Services,NHS LOGISTICS,WSWI777569,5.98,
Department of Health,Salisbury NHS Foundation Trust,23-Jul-10,DRESSINGS - PRE STERILE,Critical care,NHS LOGISTICS,WSWI777569,5.99,
Department of Health,Salisbury NHS Foundation Trust,23-Jul-10,HEALTHCARE - WEAR,Clinical Support and Family Services,NHS LOGISTICS,WSWI777569,6.04,
Department of Health,Salisbury NHS Foundation Trust,23-Jul-10,BEVERAGES & AMBIENT FOOD,Facilities Directorate,NHS LOGISTICS,WSWI777569,6.04,
Department of Health,Salisbury NHS Foundation Trust,23-Jul-10,MEDSURGCONS - OTHER,Surgery,NHS LOGISTICS,WSWI777569,6.05,
Department of Health,Salisbury NHS Foundation Trust,23-Jul-10,DRESSINGS  -  PROCEDURE PACKS,Medicine,NHS LOGISTICS,WSWI777569,6.08,
Department of Health,Salisbury NHS Foundation Trust,23-Jul-10,DRESSINGS  -  PROCEDURE PACKS,Critical care,NHS LOGISTICS,WSWI777569,6.08,
Department of Health,Salisbury NHS Foundation Trust,23-Jul-10,PAPER ITEMS GENERAL STATIONERY SUNDRIES,Medicine,NHS LOGISTICS,WSWI777569,6.09,
Department of Health,Salisbury NHS Foundation Trust,23-Jul-10,PATIENTS BEDWEAR UNISEX,Surgery,NHS LOGISTICS,WSWI777569,6.09,
Department of Health,Salisbury NHS Foundation Trust,23-Jul-10,DRESSINGS - PRE STERILE,Medicine,NHS LOGISTICS,WSWI777569,6.1,
Department of Health,Salisbury NHS Foundation Trust,23-Jul-10,STATIONERY SUNDRIES,Critical care,NHS LOGISTICS,WSWI777569,6.12,
Department of Health,Salisbury NHS Foundation Trust,23-Jul-10,STATIONERY SUNDRIES,Critical care,NHS LOGISTICS,WSWI777569,6.12,
Department of Health,Salisbury NHS Foundation Trust,23-Jul-10,M & S EQUIPELECTEQUIPINST - OTHER,Medicine,NHS LOGISTICS,WSWI777569,6.13,
Department of Health,Salisbury NHS Foundation Trust,23-Jul-10,DRUGS,Critical care,NHS LOGISTICS,WSWI777569,6.16,
Department of Health,Salisbury NHS Foundation Trust,23-Jul-10,SURGICAL INSTRUMENTS: GENERAL,Critical care,NHS LOGISTICS,WSWI777569,6.18,
Department of Health,Salisbury NHS Foundation Trust,23-Jul-10,BEVERAGES & AMBIENT FOOD,Facilities Directorate,NHS LOGISTICS,WSWI777569,6.18,
Department of Health,Salisbury NHS Foundation Trust,23-Jul-10,BEVERAGES & AMBIENT FOOD,Facilities Directorate,NHS LOGISTICS,WSWI777569,6.18,
Department of Health,Salisbury NHS Foundation Trust,23-Jul-10,HEALTHCARE - WEAR,Critical care,NHS LOGISTICS,WSWI777569,6.19,
Department of Health,Salisbury NHS Foundation Trust,23-Jul-10,BEVERAGES & AMBIENT FOOD,Facilities Directorate,NHS LOGISTICS,WSWI777569,6.21,
Department of Health,Salisbury NHS Foundation Trust,23-Jul-10,FLAVOURINGS HERBS SPICES,Facilities Directorate,NHS LOGISTICS,WSWI777569,6.22,
Department of Health,Salisbury NHS Foundation Trust,23-Jul-10,OTHER MEDICAL SUPPLIES,Surgery,NHS LOGISTICS,WSWI777569,6.25,
Department of Health,Salisbury NHS Foundation Trust,23-Jul-10,DRESSINGS - PRE STERILE,Critical care,NHS LOGISTICS,WSWI777569,6.26,
Department of Health,Salisbury NHS Foundation Trust,23-Jul-10,DISPOSABLE THEATRE DRAPES WIPES,Medicine,NHS LOGISTICS,WSWI777569,6.26,
Department of Health,Salisbury NHS Foundation Trust,23-Jul-10,DRESSINGS - PRE STERILE,Clinical Support and Family Services,NHS LOGISTICS,WSWI777569,6.26,
Department of Health,Salisbury NHS Foundation Trust,23-Jul-10,DRESSINGS - PRE STERILE,Critical care,NHS LOGISTICS,WSWI777569,6.26,
Department of Health,Salisbury NHS Foundation Trust,23-Jul-10,DRESSINGS - PRE STERILE,Surgery,NHS LOGISTICS,WSWI777569,6.26,
Department of Health,Salisbury NHS Foundation Trust,23-Jul-10,DRESSINGS - PRE STERILE,Critical care,NHS LOGISTICS,WSWI777569,6.26,
Department of Health,Salisbury NHS Foundation Trust,23-Jul-10,DRESSINGS - PRE STERILE,Surgery,NHS LOGISTICS,WSWI777569,6.26,
Department of Health,Salisbury NHS Foundation Trust,23-Jul-10,DRESSINGS - PRE STERILE,Surgery,NHS LOGISTICS,WSWI777569,6.26,
Department of Health,Salisbury NHS Foundation Trust,23-Jul-10,DISPOSABLE THEATRE DRAPES WIPES,Medicine,NHS LOGISTICS,WSWI777569,6.26,
Department of Health,Salisbury NHS Foundation Trust,23-Jul-10,MEDSURGCONS - OTHER,Surgery,NHS LOGISTICS,WSWI777569,6.3,
Department of Health,Salisbury NHS Foundation Trust,23-Jul-10,MEDSURGCONS - OTHER,Clinical Support and Family Services,NHS LOGISTICS,WSWI777569,6.3,
Department of Health,Salisbury NHS Foundation Trust,23-Jul-10,MEDSURGCONS - OTHER,Medicine,NHS LOGISTICS,WSWI777569,6.3,
Department of Health,Salisbury NHS Foundation Trust,23-Jul-10,ANAESTHETIC EQUIPMENT ACCESSORIES,Surgery,NHS LOGISTICS,WSWI777569,6.3,
Department of Health,Salisbury NHS Foundation Trust,23-Jul-10,SURGICAL INSTRUMENTS: DISPOSABLE,Surgery,NHS LOGISTICS,WSWI777569,6.3,
Department of Health,Salisbury NHS Foundation Trust,23-Jul-10,MEDSURGCONS - OTHER,Medicine,NHS LOGISTICS,WSWI777569,6.3,
Department of Health,Salisbury NHS Foundation Trust,23-Jul-10,MEDSURGCONS - OTHER,Medicine,NHS LOGISTICS,WSWI777569,6.3,
Department of Health,Salisbury NHS Foundation Trust,23-Jul-10,MEDSURGCONS - OTHER,Medicine,NHS LOGISTICS,WSWI777569,6.3,
Department of Health,Salisbury NHS Foundation Trust,23-Jul-10,MEDSURGCONS - OTHER,Medicine,NHS LOGISTICS,WSWI777569,6.3,
Department of Health,Salisbury NHS Foundation Trust,23-Jul-10,STATIONERY SUNDRIES,Clinical Support and Family Services,NHS LOGISTICS,WSWI777569,6.33,
Department of Health,Salisbury NHS Foundation Trust,23-Jul-10,DRESSINGS - PRE STERILE,Medicine,NHS LOGISTICS,WSWI777569,6.33,
Department of Health,Salisbury NHS Foundation Trust,23-Jul-10,DRESSINGS - PRE STERILE,Medicine,NHS LOGISTICS,WSWI777569,6.33,
Department of Health,Salisbury NHS Foundation Trust,23-Jul-10,DRESSINGS - PRE STERILE,Medicine,NHS LOGISTICS,WSWI777569,6.33,
Department of Health,Salisbury NHS Foundation Trust,23-Jul-10,DRESSINGS - PRE STERILE,Surgery,NHS LOGISTICS,WSWI777569,6.33,
Department of Health,Salisbury NHS Foundation Trust,23-Jul-10,OTHER MEDICAL SUPPLIES,Clinical Support and Family Services,NHS LOGISTICS,WSWI777569,6.35,
Department of Health,Salisbury NHS Foundation Trust,23-Jul-10,PAPER ITEMS GENERAL STATIONERY SUNDRIES,Clinical Effctiveness Directorate,NHS LOGISTICS,WSWI777569,6.38,
Department of Health,Salisbury NHS Foundation Trust,23-Jul-10,TISSUES HAND TOWELS & TOILET PAPER,Medicine,NHS LOGISTICS,WSWI777569,6.38,
Department of Health,Salisbury NHS Foundation Trust,23-Jul-10,PATIENT APPLIANCES,Clinical Support and Family Services,NHS LOGISTICS,WSWI777569,6.38,
Department of Health,Salisbury NHS Foundation Trust,23-Jul-10,MEDSURGCONS - OTHER,Surgery,NHS LOGISTICS,WSWI777569,6.38,
Department of Health,Salisbury NHS Foundation Trust,23-Jul-10,MEDSURGCONS - OTHER,Medicine,NHS LOGISTICS,WSWI777569,6.41,
Department of Health,Salisbury NHS Foundation Trust,23-Jul-10,MEDSURGCONS - OTHER,Medicine,NHS LOGISTICS,WSWI777569,6.41,
Department of Health,Salisbury NHS Foundation Trust,23-Jul-10,MEDSURGCONS - OTHER,Surgery,NHS LOGISTICS,WSWI777569,6.41,
Department of Health,Salisbury NHS Foundation Trust,23-Jul-10,LIQUID REFRESHMENTS,Facilities Directorate,NHS LOGISTICS,WSWI777569,6.43,
Department of Health,Salisbury NHS Foundation Trust,23-Jul-10,M & S EQUIPELECTEQUIPINST - OTHER,Critical care,NHS LOGISTICS,WSWI777569,6.44,
Department of Health,Salisbury NHS Foundation Trust,23-Jul-10,TOILETRIES PERSONAL HYGIENE PRODUCTS,Critical care,NHS LOGISTICS,WSWI777569,6.45,
Department of Health,Salisbury NHS Foundation Trust,23-Jul-10,COOKING & KITCHEN UTENSILS,Medicine,NHS LOGISTICS,WSWI777569,6.47,
Department of Health,Salisbury NHS Foundation Trust,23-Jul-10,MED SURG EQUIP REP MAINT CLEANING,Medicine,NHS LOGISTICS,WSWI777569,6.52,
Department of Health,Salisbury NHS Foundation Trust,23-Jul-10,HEALTHCARE - WEAR,Critical care,NHS LOGISTICS,WSWI777569,6.54,
Department of Health,Salisbury NHS Foundation Trust,23-Jul-10,DRESSINGS - PRE STERILE,Medicine,NHS LOGISTICS,WSWI777569,6.56,
Department of Health,Salisbury NHS Foundation Trust,23-Jul-10,DRESSINGS - PRE STERILE,Medicine,NHS LOGISTICS,WSWI777569,6.56,
Department of Health,Salisbury NHS Foundation Trust,23-Jul-10,MEDSURGCONS - OTHER,Critical care,NHS LOGISTICS,WSWI777569,6.6,
Department of Health,Salisbury NHS Foundation Trust,23-Jul-10,HARD/SOFTWARE-COMPUTER ACCESSORIES  TEST EQUIPMENT,Surgery,NHS LOGISTICS,WSWI777569,6.61,
Department of Health,Salisbury NHS Foundation Trust,23-Jul-10,TISSUES HAND TOWELS & TOILET PAPER,Surgery,NHS LOGISTICS,WSWI777569,6.64,
Department of Health,Salisbury NHS Foundation Trust,23-Jul-10,TISSUES HAND TOWELS & TOILET PAPER,Surgery,NHS LOGISTICS,WSWI777569,6.64,
Department of Health,Salisbury NHS Foundation Trust,23-Jul-10,ANAESTHETIC EQUIPMENT ACCESSORIES,Medicine,NHS LOGISTICS,WSWI777569,6.64,
Department of Health,Salisbury NHS Foundation Trust,23-Jul-10,DRESSINGS - PRE STERILE,Surgery,NHS LOGISTICS,WSWI777569,6.66,
Department of Health,Salisbury NHS Foundation Trust,23-Jul-10,STATIONERY SUNDRIES,Clinical Effctiveness Directorate,NHS LOGISTICS,WSWI777569,6.68,
Department of Health,Salisbury NHS Foundation Trust,23-Jul-10,NON DISPOSABLE BED LINEN,Surgery,NHS LOGISTICS,WSWI777569,6.68,
Department of Health,Salisbury NHS Foundation Trust,23-Jul-10,PATIENT APPLIANCES,Medicine,NHS LOGISTICS,WSWI777569,6.69,
Department of Health,Salisbury NHS Foundation Trust,23-Jul-10,DRESSINGS - PRE STERILE,Clinical Support and Family Services,NHS LOGISTICS,WSWI777569,6.69,
Department of Health,Salisbury NHS Foundation Trust,23-Jul-10,BAGS SACKS - OTHER,Clinical Support and Family Services,NHS LOGISTICS,WSWI777569,6.71,
Department of Health,Salisbury NHS Foundation Trust,23-Jul-10,MEDSURGCONS - OTHER,Clinical Support and Family Services,NHS LOGISTICS,WSWI777569,6.79,
Department of Health,Salisbury NHS Foundation Trust,23-Jul-10,DRESSINGS - PRE STERILE,Medicine,NHS LOGISTICS,WSWI777569,6.85,
Department of Health,Salisbury NHS Foundation Trust,23-Jul-10,MEDSURGCONS - OTHER,Clinical Support and Family Services,NHS LOGISTICS,WSWI777569,6.86,
Department of Health,Salisbury NHS Foundation Trust,23-Jul-10,MEDSURGCONS - OTHER,Critical care,NHS LOGISTICS,WSWI777569,6.86,
Department of Health,Salisbury NHS Foundation Trust,23-Jul-10,PAPER ITEMS GENERAL STATIONERY SUNDRIES,Critical care,NHS LOGISTICS,WSWI777569,6.88,
Department of Health,Salisbury NHS Foundation Trust,23-Jul-10,PAPER ITEMS GENERAL STATIONERY SUNDRIES,Clinical Support and Family Services,NHS LOGISTICS,WSWI777569,6.88,
Department of Health,Salisbury NHS Foundation Trust,23-Jul-10,MED SURG EQUIP REP MAINT CLEANING,Surgery,NHS LOGISTICS,WSWI777569,6.89,
Department of Health,Salisbury NHS Foundation Trust,23-Jul-10,MED SURG EQUIP REP MAINT CLEANING,Medicine,NHS LOGISTICS,WSWI777569,6.89,
Department of Health,Salisbury NHS Foundation Trust,23-Jul-10,MED SURG EQUIP REP MAINT CLEANING,Critical care,NHS LOGISTICS,WSWI777569,6.89,
Department of Health,Salisbury NHS Foundation Trust,23-Jul-10,MED SURG EQUIP REP MAINT CLEANING,Medicine,NHS LOGISTICS,WSWI777569,6.89,
Department of Health,Salisbury NHS Foundation Trust,23-Jul-10,DISPOSABLE THEATRE DRAPES WIPES,Medicine,NHS LOGISTICS,WSWI777569,6.94,
Department of Health,Salisbury NHS Foundation Trust,23-Jul-10,TOILETRIES PERSONAL HYGIENE PRODUCTS,Medicine,NHS LOGISTICS,WSWI777569,6.95,
Department of Health,Salisbury NHS Foundation Trust,23-Jul-10,MEDSURGCONS - OTHER,Clinical Support and Family Services,NHS LOGISTICS,WSWI777569,6.98,
Department of Health,Salisbury NHS Foundation Trust,23-Jul-10,PATIENT APPLIANCES,Critical care,NHS LOGISTICS,WSWI777569,7.01,
Department of Health,Salisbury NHS Foundation Trust,23-Jul-10,BAGS SACKS - OTHER,Surgery,NHS LOGISTICS,WSWI777569,7.03,
Department of Health,Salisbury NHS Foundation Trust,23-Jul-10,STATIONERY SUNDRIES,Medicine,NHS LOGISTICS,WSWI777569,7.05,
Department of Health,Salisbury NHS Foundation Trust,23-Jul-10,SURGICAL INSTRUMENTS: GENERAL,Medicine,NHS LOGISTICS,WSWI777569,7.05,
Department of Health,Salisbury NHS Foundation Trust,23-Jul-10,DRESSINGS - PRE STERILE,Clinical Support and Family Services,NHS LOGISTICS,WSWI777569,7.05,
Department of Health,Salisbury NHS Foundation Trust,23-Jul-10,SURGICAL INSTRUMENTS: GENERAL,Critical care,NHS LOGISTICS,WSWI777569,7.05,
Department of Health,Salisbury NHS Foundation Trust,23-Jul-10,COOKING & KITCHEN UTENSILS,Facilities Directorate,NHS LOGISTICS,WSWI777569,7.06,
Department of Health,Salisbury NHS Foundation Trust,23-Jul-10,DRESSINGS - PRE STERILE,Critical care,NHS LOGISTICS,WSWI777569,7.1,
Department of Health,Salisbury NHS Foundation Trust,23-Jul-10,PAPER ITEMS GENERAL STATIONERY SUNDRIES,Clinical Support and Family Services,NHS LOGISTICS,WSWI777569,7.12,
Department of Health,Salisbury NHS Foundation Trust,23-Jul-10,FLAVOURINGS HERBS SPICES,Facilities Directorate,NHS LOGISTICS,WSWI777569,7.12,
Department of Health,Salisbury NHS Foundation Trust,23-Jul-10,MEDSURGCONS - OTHER,Surgery,NHS LOGISTICS,WSWI777569,7.17,
Department of Health,Salisbury NHS Foundation Trust,23-Jul-10,MEDSURGCONS - OTHER,Critical care,NHS LOGISTICS,WSWI777569,7.21,
Department of Health,Salisbury NHS Foundation Trust,23-Jul-10,MEDSURGCONS - OTHER,Medicine,NHS LOGISTICS,WSWI777569,7.22,
Department of Health,Salisbury NHS Foundation Trust,23-Jul-10,MEDSURGCONS - OTHER,Medicine,NHS LOGISTICS,WSWI777569,7.22,
Department of Health,Salisbury NHS Foundation Trust,23-Jul-10,MEDSURGCONS - OTHER,Surgery,NHS LOGISTICS,WSWI777569,7.23,
Department of Health,Salisbury NHS Foundation Trust,23-Jul-10,MEDSURGCONS - OTHER,Surgery,NHS LOGISTICS,WSWI777569,7.23,
Department of Health,Salisbury NHS Foundation Trust,23-Jul-10,BEVERAGES & AMBIENT FOOD,Facilities Directorate,NHS LOGISTICS,WSWI777569,7.24,
Department of Health,Salisbury NHS Foundation Trust,23-Jul-10,MEDSURGCONS - OTHER,Critical care,NHS LOGISTICS,WSWI777569,7.28,
Department of Health,Salisbury NHS Foundation Trust,23-Jul-10,MEDSURGCONS - OTHER,Surgery,NHS LOGISTICS,WSWI777569,7.32,
Department of Health,Salisbury NHS Foundation Trust,23-Jul-10,COOKING & KITCHEN UTENSILS,Medicine,NHS LOGISTICS,WSWI777569,7.32,
Department of Health,Salisbury NHS Foundation Trust,23-Jul-10,MEDSURGCONS - OTHER,Medicine,NHS LOGISTICS,WSWI777569,7.32,
Department of Health,Salisbury NHS Foundation Trust,23-Jul-10,MEDSURGCONS - OTHER,Critical care,NHS LOGISTICS,WSWI777569,7.32,
Department of Health,Salisbury NHS Foundation Trust,23-Jul-10,BEVERAGES & AMBIENT FOOD,Surgery,NHS LOGISTICS,WSWI777569,7.33,
Department of Health,Salisbury NHS Foundation Trust,23-Jul-10,TOILETRIES PERSONAL HYGIENE PRODUCTS,Critical care,NHS LOGISTICS,WSWI777569,7.34,
Department of Health,Salisbury NHS Foundation Trust,23-Jul-10,PAPER ITEMS GENERAL STATIONERY SUNDRIES,Facilities Directorate,NHS LOGISTICS,WSWI777569,7.38,
Department of Health,Salisbury NHS Foundation Trust,23-Jul-10,DRESSINGS - PRE STERILE,Medicine,NHS LOGISTICS,WSWI777569,7.39,
Department of Health,Salisbury NHS Foundation Trust,23-Jul-10,DRESSINGS - PRE STERILE,Medicine,NHS LOGISTICS,WSWI777569,7.39,
Department of Health,Salisbury NHS Foundation Trust,23-Jul-10,DRESSINGS - PRE STERILE,Surgery,NHS LOGISTICS,WSWI777569,7.39,
Department of Health,Salisbury NHS Foundation Trust,23-Jul-10,DRESSINGS - PRE STERILE,Surgery,NHS LOGISTICS,WSWI777569,7.39,
Department of Health,Salisbury NHS Foundation Trust,23-Jul-10,MEDICAL SPECIALIST CLEANING EQUIPMENT,Critical care,NHS LOGISTICS,WSWI777569,7.4,
Department of Health,Salisbury NHS Foundation Trust,23-Jul-10,MEDSURGCONS - OTHER,Medicine,NHS LOGISTICS,WSWI777569,7.44,
Department of Health,Salisbury NHS Foundation Trust,23-Jul-10,BAGS SACKS - OTHER,Surgery,NHS LOGISTICS,WSWI777569,7.45,
Department of Health,Salisbury NHS Foundation Trust,23-Jul-10,MEDSURGCONS - OTHER,Surgery,NHS LOGISTICS,WSWI777569,7.47,
Department of Health,Salisbury NHS Foundation Trust,23-Jul-10,MEDSURGCONS - OTHER,Surgery,NHS LOGISTICS,WSWI777569,7.47,
Department of Health,Salisbury NHS Foundation Trust,23-Jul-10,MEDSURGCONS - OTHER,Surgery,NHS LOGISTICS,WSWI777569,7.47,
Department of Health,Salisbury NHS Foundation Trust,23-Jul-10,MEDSURGCONS - OTHER,Surgery,NHS LOGISTICS,WSWI777569,7.47,
Department of Health,Salisbury NHS Foundation Trust,23-Jul-10,DRESSINGS - PRE STERILE,Clinical Support and Family Services,NHS LOGISTICS,WSWI777569,7.5,
Department of Health,Salisbury NHS Foundation Trust,23-Jul-10,TOILETRIES PERSONAL HYGIENE PRODUCTS,Medicine,NHS LOGISTICS,WSWI777569,7.51,
Department of Health,Salisbury NHS Foundation Trust,23-Jul-10,TOILETRIES PERSONAL HYGIENE PRODUCTS,Medicine,NHS LOGISTICS,WSWI777569,7.51,
Department of Health,Salisbury NHS Foundation Trust,23-Jul-10,TOILETRIES PERSONAL HYGIENE PRODUCTS,Medicine,NHS LOGISTICS,WSWI777569,7.51,
Department of Health,Salisbury NHS Foundation Trust,23-Jul-10,ELECTRICAL EQUIPMENT x,Medicine,NHS LOGISTICS,WSWI777569,7.53,
Department of Health,Salisbury NHS Foundation Trust,23-Jul-10,ELECTRICAL EQUIPMENT x,Medicine,NHS LOGISTICS,WSWI777569,7.53,
Department of Health,Salisbury NHS Foundation Trust,23-Jul-10,MEDSURGCONS - OTHER,Medicine,NHS LOGISTICS,WSWI777569,7.56,
Department of Health,Salisbury NHS Foundation Trust,23-Jul-10,DISPOSABLE THEATRE DRAPES WIPES,Medicine,NHS LOGISTICS,WSWI777569,7.56,
Department of Health,Salisbury NHS Foundation Trust,23-Jul-10,MEDSURGCONS - OTHER,Surgery,NHS LOGISTICS,WSWI777569,7.56,
Department of Health,Salisbury NHS Foundation Trust,23-Jul-10,PAPER ITEMS GENERAL STATIONERY SUNDRIES,Clinical Support and Family Services,NHS LOGISTICS,WSWI777569,7.59,
Department of Health,Salisbury NHS Foundation Trust,23-Jul-10,TOILETRIES PERSONAL HYGIENE PRODUCTS,Surgery,NHS LOGISTICS,WSWI777569,7.59,
Department of Health,Salisbury NHS Foundation Trust,23-Jul-10,TOILETRIES PERSONAL HYGIENE PRODUCTS,Clinical Support and Family Services,NHS LOGISTICS,WSWI777569,7.59,
Department of Health,Salisbury NHS Foundation Trust,23-Jul-10,TOILETRIES PERSONAL HYGIENE PRODUCTS,Critical care,NHS LOGISTICS,WSWI777569,7.59,
Department of Health,Salisbury NHS Foundation Trust,23-Jul-10,TOILETRIES PERSONAL HYGIENE PRODUCTS,Critical care,NHS LOGISTICS,WSWI777569,7.59,
Department of Health,Salisbury NHS Foundation Trust,23-Jul-10,TOILETRIES PERSONAL HYGIENE PRODUCTS,Surgery,NHS LOGISTICS,WSWI777569,7.59,
Department of Health,Salisbury NHS Foundation Trust,23-Jul-10,BAGS SACKS - OTHER,Facilities Directorate,NHS LOGISTICS,WSWI777569,7.65,
Department of Health,Salisbury NHS Foundation Trust,23-Jul-10,TISSUES HAND TOWELS & TOILET PAPER,Critical care,NHS LOGISTICS,WSWI777569,7.66,
Department of Health,Salisbury NHS Foundation Trust,23-Jul-10,TISSUES HAND TOWELS & TOILET PAPER,Clinical Support and Family Services,NHS LOGISTICS,WSWI777569,7.66,
Department of Health,Salisbury NHS Foundation Trust,23-Jul-10,DRESSINGS  -  PROCEDURE PACKS,Surgery,NHS LOGISTICS,WSWI777569,7.66,
Department of Health,Salisbury NHS Foundation Trust,23-Jul-10,OTHER MEDICAL SUPPLIES,Surgery,NHS LOGISTICS,WSWI777569,7.74,
Department of Health,Salisbury NHS Foundation Trust,23-Jul-10,COOKING & KITCHEN UTENSILS,Clinical Support and Family Services,NHS LOGISTICS,WSWI777569,7.76,
Department of Health,Salisbury NHS Foundation Trust,23-Jul-10,BEVERAGES & AMBIENT FOOD,Facilities Directorate,NHS LOGISTICS,WSWI777569,7.76,
Department of Health,Salisbury NHS Foundation Trust,23-Jul-10,PAPER ITEMS GENERAL STATIONERY SUNDRIES,Medicine,NHS LOGISTICS,WSWI777569,7.77,
Department of Health,Salisbury NHS Foundation Trust,23-Jul-10,CLEANING MATERIALS PRODUCTS SUNDRIES,Clinical Support and Family Services,NHS LOGISTICS,WSWI777569,7.83,
Department of Health,Salisbury NHS Foundation Trust,23-Jul-10,CLEANING MATERIALS PRODUCTS SUNDRIES,Medicine,NHS LOGISTICS,WSWI777569,7.83,
Department of Health,Salisbury NHS Foundation Trust,23-Jul-10,CLEANING MATERIALS PRODUCTS SUNDRIES,Critical care,NHS LOGISTICS,WSWI777569,7.83,
Department of Health,Salisbury NHS Foundation Trust,23-Jul-10,CLEANING MATERIALS PRODUCTS SUNDRIES,Surgery,NHS LOGISTICS,WSWI777569,7.83,
Department of Health,Salisbury NHS Foundation Trust,23-Jul-10,CLEANING MATERIALS PRODUCTS SUNDRIES,Medicine,NHS LOGISTICS,WSWI777569,7.83,
Department of Health,Salisbury NHS Foundation Trust,23-Jul-10,DISPOSABLE THEATRE DRAPES WIPES,Surgery,NHS LOGISTICS,WSWI777569,7.88,
Department of Health,Salisbury NHS Foundation Trust,23-Jul-10,DISPOSABLE THEATRE DRAPES WIPES,Surgery,NHS LOGISTICS,WSWI777569,7.88,
Department of Health,Salisbury NHS Foundation Trust,23-Jul-10,SURGICAL INSTRUMENTS: GENERAL,Surgery,NHS LOGISTICS,WSWI777569,7.91,
Department of Health,Salisbury NHS Foundation Trust,23-Jul-10,MEDSURGCONS - OTHER,Medicine,NHS LOGISTICS,WSWI777569,7.91,
Department of Health,Salisbury NHS Foundation Trust,23-Jul-10,MED SURG EQUIP REP MAINT CLEANING,Medicine,NHS LOGISTICS,WSWI777569,7.94,
Department of Health,Salisbury NHS Foundation Trust,23-Jul-10,STATIONERY SUNDRIES,Clinical Support and Family Services,NHS LOGISTICS,WSWI777569,7.96,
Department of Health,Salisbury NHS Foundation Trust,23-Jul-10,MEDSURGCONS - OTHER,Medicine,NHS LOGISTICS,WSWI777569,7.97,
Department of Health,Salisbury NHS Foundation Trust,23-Jul-10,DRESSINGS - PRE STERILE,Critical care,NHS LOGISTICS,WSWI777569,8.02,
Department of Health,Salisbury NHS Foundation Trust,23-Jul-10,DRESSINGS - PRE STERILE,Critical care,NHS LOGISTICS,WSWI777569,8.03,
Department of Health,Salisbury NHS Foundation Trust,23-Jul-10,DRESSINGS - PRE STERILE,Medicine,NHS LOGISTICS,WSWI777569,8.03,
Department of Health,Salisbury NHS Foundation Trust,23-Jul-10,DISPOSABLE THEATRE DRAPES WIPES,Surgery,NHS LOGISTICS,WSWI777569,8.04,
Department of Health,Salisbury NHS Foundation Trust,23-Jul-10,SURGICAL INSTRUMENTS: GENERAL,Clinical Support and Family Services,NHS LOGISTICS,WSWI777569,8.06,
Department of Health,Salisbury NHS Foundation Trust,23-Jul-10,SURGICAL INSTRUMENTS: GENERAL,Surgery,NHS LOGISTICS,WSWI777569,8.06,
Department of Health,Salisbury NHS Foundation Trust,23-Jul-10,SURGICAL INSTRUMENTS: GENERAL,Surgery,NHS LOGISTICS,WSWI777569,8.07,
Department of Health,Salisbury NHS Foundation Trust,23-Jul-10,SURGICAL INSTRUMENTS: GENERAL,Surgery,NHS LOGISTICS,WSWI777569,8.07,
Department of Health,Salisbury NHS Foundation Trust,23-Jul-10,PAPER ITEMS GENERAL STATIONERY SUNDRIES,Clinical Support and Family Services,NHS LOGISTICS,WSWI777569,8.09,
Department of Health,Salisbury NHS Foundation Trust,23-Jul-10,MEDSURGCONS - OTHER,Surgery,NHS LOGISTICS,WSWI777569,8.14,
Department of Health,Salisbury NHS Foundation Trust,23-Jul-10,DRESSINGS  -  PROCEDURE PACKS,Medicine,NHS LOGISTICS,WSWI777569,8.17,
Department of Health,Salisbury NHS Foundation Trust,23-Jul-10,DRESSINGS  -  PROCEDURE PACKS,Clinical Support and Family Services,NHS LOGISTICS,WSWI777569,8.17,
Department of Health,Salisbury NHS Foundation Trust,23-Jul-10,PATIENTS INCONTINENCE,Surgery,NHS LOGISTICS,WSWI777569,8.17,
Department of Health,Salisbury NHS Foundation Trust,23-Jul-10,DRESSINGS - PRE STERILE,Critical care,NHS LOGISTICS,WSWI777569,8.2,
Department of Health,Salisbury NHS Foundation Trust,23-Jul-10,HEALTHCARE - WEAR,Critical care,NHS LOGISTICS,WSWI777569,8.21,
Department of Health,Salisbury NHS Foundation Trust,23-Jul-10,MEDSURGCONS - OTHER,Surgery,NHS LOGISTICS,WSWI777569,8.24,
Department of Health,Salisbury NHS Foundation Trust,23-Jul-10,DRESSINGS - PRE STERILE,Medicine,NHS LOGISTICS,WSWI777569,8.26,
Department of Health,Salisbury NHS Foundation Trust,23-Jul-10,DRESSINGS - PRE STERILE,Medicine,NHS LOGISTICS,WSWI777569,8.26,
Department of Health,Salisbury NHS Foundation Trust,23-Jul-10,DRESSINGS - PRE STERILE,Medicine,NHS LOGISTICS,WSWI777569,8.26,
Department of Health,Salisbury NHS Foundation Trust,23-Jul-10,SURGICAL INSTRUMENTS: GENERAL,Surgery,NHS LOGISTICS,WSWI777569,8.27,
Department of Health,Salisbury NHS Foundation Trust,23-Jul-10,TISSUES HAND TOWELS & TOILET PAPER,Surgery,NHS LOGISTICS,WSWI777569,8.3,
Department of Health,Salisbury NHS Foundation Trust,23-Jul-10,ANAESTHETIC EQUIPMENT ACCESSORIES,Medicine,NHS LOGISTICS,WSWI777569,8.34,
Department of Health,Salisbury NHS Foundation Trust,23-Jul-10,DRUGS,Medicine,NHS LOGISTICS,WSWI777569,8.35,
Department of Health,Salisbury NHS Foundation Trust,23-Jul-10,STATIONERY SUNDRIES,Facilities Directorate,NHS LOGISTICS,WSWI777569,8.43,
Department of Health,Salisbury NHS Foundation Trust,23-Jul-10,COOKING & KITCHEN UTENSILS,Surgery,NHS LOGISTICS,WSWI777569,8.43,
Department of Health,Salisbury NHS Foundation Trust,23-Jul-10,PATIENTS INCONTINENCE,Medicine,NHS LOGISTICS,WSWI777569,8.45,
Department of Health,Salisbury NHS Foundation Trust,23-Jul-10,DRESSINGS  -  PROCEDURE PACKS,Surgery,NHS LOGISTICS,WSWI777569,8.48,
Department of Health,Salisbury NHS Foundation Trust,23-Jul-10,MEDSURGCONS - OTHER,Surgery,NHS LOGISTICS,WSWI777569,8.48,
Department of Health,Salisbury NHS Foundation Trust,23-Jul-10,DRESSINGS  -  PROCEDURE PACKS,Medicine,NHS LOGISTICS,WSWI777569,8.48,
Department of Health,Salisbury NHS Foundation Trust,23-Jul-10,CLEANING MATERIALS PRODUCTS SUNDRIES,Surgery,NHS LOGISTICS,WSWI777569,8.48,
Department of Health,Salisbury NHS Foundation Trust,23-Jul-10,DRESSINGS  -  PROCEDURE PACKS,Surgery,NHS LOGISTICS,WSWI777569,8.51,
Department of Health,Salisbury NHS Foundation Trust,23-Jul-10,STATIONERY SUNDRIES,Clinical Effctiveness Directorate,NHS LOGISTICS,WSWI777569,8.61,
Department of Health,Salisbury NHS Foundation Trust,23-Jul-10,OTHER MEDICAL SUPPLIES,Medicine,NHS LOGISTICS,WSWI777569,8.61,
Department of Health,Salisbury NHS Foundation Trust,23-Jul-10,BEVERAGES & AMBIENT FOOD,Facilities Directorate,NHS LOGISTICS,WSWI777569,8.62,
Department of Health,Salisbury NHS Foundation Trust,23-Jul-10,PATIENT APPLIANCES,Medicine,NHS LOGISTICS,WSWI777569,8.63,
Department of Health,Salisbury NHS Foundation Trust,23-Jul-10,DRESSINGS - PRE STERILE,Surgery,NHS LOGISTICS,WSWI777569,8.64,
Department of Health,Salisbury NHS Foundation Trust,23-Jul-10,MEDSURGCONS - OTHER,Medicine,NHS LOGISTICS,WSWI777569,8.65,
Department of Health,Salisbury NHS Foundation Trust,23-Jul-10,MEDSURGCONS - OTHER,Medicine,NHS LOGISTICS,WSWI777569,8.65,
Department of Health,Salisbury NHS Foundation Trust,23-Jul-10,MEDSURGCONS - OTHER,Surgery,NHS LOGISTICS,WSWI777569,8.65,
Department of Health,Salisbury NHS Foundation Trust,23-Jul-10,MEDSURGCONS - OTHER,Critical care,NHS LOGISTICS,WSWI777569,8.65,
Department of Health,Salisbury NHS Foundation Trust,23-Jul-10,NON DISPOSABLE BED LINEN,Medicine,NHS LOGISTICS,WSWI777569,8.66,
Department of Health,Salisbury NHS Foundation Trust,23-Jul-10,HEALTHCARE - WEAR,Medicine,NHS LOGISTICS,WSWI777569,8.68,
Department of Health,Salisbury NHS Foundation Trust,23-Jul-10,DRESSINGS - PRE STERILE,Critical care,NHS LOGISTICS,WSWI777569,8.68,
Department of Health,Salisbury NHS Foundation Trust,23-Jul-10,PATIENTS INCONTINENCE,Critical care,NHS LOGISTICS,WSWI777569,8.68,
Department of Health,Salisbury NHS Foundation Trust,23-Jul-10,DRESSINGS  -  PROCEDURE PACKS,Critical care,NHS LOGISTICS,WSWI777569,8.68,
Department of Health,Salisbury NHS Foundation Trust,23-Jul-10,PATIENTS INCONTINENCE,Medicine,NHS LOGISTICS,WSWI777569,8.71,
Department of Health,Salisbury NHS Foundation Trust,23-Jul-10,MEDSURGCONS - OTHER,Surgery,NHS LOGISTICS,WSWI777569,8.71,
Department of Health,Salisbury NHS Foundation Trust,23-Jul-10,PATIENTS INCONTINENCE,Medicine,NHS LOGISTICS,WSWI777569,8.71,
Department of Health,Salisbury NHS Foundation Trust,23-Jul-10,MEDSURGCONS - OTHER,Medicine,NHS LOGISTICS,WSWI777569,8.78,
Department of Health,Salisbury NHS Foundation Trust,23-Jul-10,BEVERAGES & AMBIENT FOOD,Facilities Directorate,NHS LOGISTICS,WSWI777569,8.78,
Department of Health,Salisbury NHS Foundation Trust,23-Jul-10,HARD/SOFTWARE-OFF THE SHELF APPLICATIONS,Critical care,NHS LOGISTICS,WSWI777569,8.79,
Department of Health,Salisbury NHS Foundation Trust,23-Jul-10,HARD/SOFTWARE-OFF THE SHELF APPLICATIONS,Critical care,NHS LOGISTICS,WSWI777569,8.79,
Department of Health,Salisbury NHS Foundation Trust,23-Jul-10,HARD/SOFTWARE-OFF THE SHELF APPLICATIONS,Critical care,NHS LOGISTICS,WSWI777569,8.79,
Department of Health,Salisbury NHS Foundation Trust,23-Jul-10,OFFICE EQUIP MACHINERY  -  OTHER,Surgery,NHS LOGISTICS,WSWI777569,8.8,
Department of Health,Salisbury NHS Foundation Trust,23-Jul-10,SURGICAL INSTRUMENTS: GENERAL,Critical care,NHS LOGISTICS,WSWI777569,8.81,
Department of Health,Salisbury NHS Foundation Trust,23-Jul-10,MEDSURGCONS - OTHER,Medicine,NHS LOGISTICS,WSWI777569,8.85,
Department of Health,Salisbury NHS Foundation Trust,23-Jul-10,DRUGS,Critical care,NHS LOGISTICS,WSWI777569,8.85,
Department of Health,Salisbury NHS Foundation Trust,23-Jul-10,DISPOSABLE THEATRE DRAPES WIPES,Critical care,NHS LOGISTICS,WSWI777569,8.89,
Department of Health,Salisbury NHS Foundation Trust,23-Jul-10,BEVERAGES & AMBIENT FOOD,Facilities Directorate,NHS LOGISTICS,WSWI777569,8.92,
Department of Health,Salisbury NHS Foundation Trust,23-Jul-10,OTHER MEDICAL SUPPLIES,Medicine,NHS LOGISTICS,WSWI777569,8.94,
Department of Health,Salisbury NHS Foundation Trust,23-Jul-10,BEVERAGES & AMBIENT FOOD,Facilities Directorate,NHS LOGISTICS,WSWI777569,8.96,
Department of Health,Salisbury NHS Foundation Trust,23-Jul-10,DRESSINGS - PRE STERILE,Critical care,NHS LOGISTICS,WSWI777569,8.99,
Department of Health,Salisbury NHS Foundation Trust,23-Jul-10,MEDSURGCONS - OTHER,Surgery,NHS LOGISTICS,WSWI777569,8.99,
Department of Health,Salisbury NHS Foundation Trust,23-Jul-10,TOILETRIES PERSONAL HYGIENE PRODUCTS,Facilities Directorate,NHS LOGISTICS,WSWI777569,8.99,
Department of Health,Salisbury NHS Foundation Trust,23-Jul-10,DRESSINGS - PRE STERILE,Critical care,NHS LOGISTICS,WSWI777569,9,
Department of Health,Salisbury NHS Foundation Trust,23-Jul-10,PATIENT APPLIANCES,Medicine,NHS LOGISTICS,WSWI777569,9.01,
Department of Health,Salisbury NHS Foundation Trust,23-Jul-10,PATIENT APPLIANCES,Medicine,NHS LOGISTICS,WSWI777569,9.01,
Department of Health,Salisbury NHS Foundation Trust,23-Jul-10,PATIENT APPLIANCES,Surgery,NHS LOGISTICS,WSWI777569,9.01,
Department of Health,Salisbury NHS Foundation Trust,23-Jul-10,PATIENT APPLIANCES,Surgery,NHS LOGISTICS,WSWI777569,9.01,
Department of Health,Salisbury NHS Foundation Trust,23-Jul-10,DRESSINGS  -  PROCEDURE PACKS,Surgery,NHS LOGISTICS,WSWI777569,9.02,
Department of Health,Salisbury NHS Foundation Trust,23-Jul-10,MEDSURGCONS - OTHER,Critical care,NHS LOGISTICS,WSWI777569,9.02,
Department of Health,Salisbury NHS Foundation Trust,23-Jul-10,PAPER ITEMS GENERAL STATIONERY SUNDRIES,Clinical Support and Family Services,NHS LOGISTICS,WSWI777569,9.04,
Department of Health,Salisbury NHS Foundation Trust,23-Jul-10,STATIONERY SUNDRIES,Critical care,NHS LOGISTICS,WSWI777569,9.09,
Department of Health,Salisbury NHS Foundation Trust,23-Jul-10,PAPER ITEMS GENERAL STATIONERY SUNDRIES,Clinical Support and Family Services,NHS LOGISTICS,WSWI777569,9.11,
Department of Health,Salisbury NHS Foundation Trust,23-Jul-10,SURGICAL INSTRUMENTS: GENERAL,Clinical Support and Family Services,NHS LOGISTICS,WSWI777569,9.11,
Department of Health,Salisbury NHS Foundation Trust,23-Jul-10,MEDSURGCONS - OTHER,Clinical Support and Family Services,NHS LOGISTICS,WSWI777569,9.14,
Department of Health,Salisbury NHS Foundation Trust,23-Jul-10,BABY TEXTURE MODIFIED FOODS,Clinical Support and Family Services,NHS LOGISTICS,WSWI777569,9.14,
Department of Health,Salisbury NHS Foundation Trust,23-Jul-10,MEDSURGCONS - OTHER,Medicine,NHS LOGISTICS,WSWI777569,9.16,
Department of Health,Salisbury NHS Foundation Trust,23-Jul-10,MEDSURGCONS - OTHER,Surgery,NHS LOGISTICS,WSWI777569,9.16,
Department of Health,Salisbury NHS Foundation Trust,23-Jul-10,MEDSURGCONS - OTHER,Surgery,NHS LOGISTICS,WSWI777569,9.16,
Department of Health,Salisbury NHS Foundation Trust,23-Jul-10,COOKING & KITCHEN UTENSILS,Facilities Directorate,NHS LOGISTICS,WSWI777569,9.19,
Department of Health,Salisbury NHS Foundation Trust,23-Jul-10,PAPER ITEMS GENERAL STATIONERY SUNDRIES,Facilities Directorate,NHS LOGISTICS,WSWI777569,9.23,
Department of Health,Salisbury NHS Foundation Trust,23-Jul-10,PAPER ITEMS GENERAL STATIONERY SUNDRIES,Medicine,NHS LOGISTICS,WSWI777569,9.23,
Department of Health,Salisbury NHS Foundation Trust,23-Jul-10,PAPER ITEMS GENERAL STATIONERY SUNDRIES,Medicine,NHS LOGISTICS,WSWI777569,9.23,
Department of Health,Salisbury NHS Foundation Trust,23-Jul-10,PAPER ITEMS GENERAL STATIONERY SUNDRIES,Facilities Directorate,NHS LOGISTICS,WSWI777569,9.23,
Department of Health,Salisbury NHS Foundation Trust,23-Jul-10,PAPER ITEMS GENERAL STATIONERY SUNDRIES,Surgery,NHS LOGISTICS,WSWI777569,9.23,
Department of Health,Salisbury NHS Foundation Trust,23-Jul-10,PAPER ITEMS GENERAL STATIONERY SUNDRIES,Clinical Support and Family Services,NHS LOGISTICS,WSWI777569,9.23,
Department of Health,Salisbury NHS Foundation Trust,23-Jul-10,PAPER ITEMS GENERAL STATIONERY SUNDRIES,Surgery,NHS LOGISTICS,WSWI777569,9.23,
Department of Health,Salisbury NHS Foundation Trust,23-Jul-10,PAPER ITEMS GENERAL STATIONERY SUNDRIES,Medicine,NHS LOGISTICS,WSWI777569,9.23,
Department of Health,Salisbury NHS Foundation Trust,23-Jul-10,PAPER ITEMS GENERAL STATIONERY SUNDRIES,Medicine,NHS LOGISTICS,WSWI777569,9.23,
Department of Health,Salisbury NHS Foundation Trust,23-Jul-10,PAPER ITEMS GENERAL STATIONERY SUNDRIES,Critical care,NHS LOGISTICS,WSWI777569,9.23,
Department of Health,Salisbury NHS Foundation Trust,23-Jul-10,DRESSINGS - PRE STERILE,Surgery,NHS LOGISTICS,WSWI777569,9.23,
Department of Health,Salisbury NHS Foundation Trust,23-Jul-10,DRESSINGS - PRE STERILE,Clinical Support and Family Services,NHS LOGISTICS,WSWI777569,9.24,
Department of Health,Salisbury NHS Foundation Trust,23-Jul-10,MEDSURGCONS - OTHER,Medicine,NHS LOGISTICS,WSWI777569,9.3,
Department of Health,Salisbury NHS Foundation Trust,23-Jul-10,MEDSURGCONS - OTHER,Medicine,NHS LOGISTICS,WSWI777569,9.31,
Department of Health,Salisbury NHS Foundation Trust,23-Jul-10,MEDSURGCONS - OTHER,Medicine,NHS LOGISTICS,WSWI777569,9.36,
Department of Health,Salisbury NHS Foundation Trust,23-Jul-10,MEDSURGCONS - OTHER,Critical care,NHS LOGISTICS,WSWI777569,9.36,
Department of Health,Salisbury NHS Foundation Trust,23-Jul-10,OTHER MEDICAL SUPPLIES,Surgery,NHS LOGISTICS,WSWI777569,9.36,
Department of Health,Salisbury NHS Foundation Trust,23-Jul-10,PATIENT APPLIANCES,Medicine,NHS LOGISTICS,WSWI777569,9.4,
Department of Health,Salisbury NHS Foundation Trust,23-Jul-10,MEDSURGCONS - OTHER,Critical care,NHS LOGISTICS,WSWI777569,9.45,
Department of Health,Salisbury NHS Foundation Trust,23-Jul-10,DISPOSABLE THEATRE DRAPES WIPES,Critical care,NHS LOGISTICS,WSWI777569,9.45,
Department of Health,Salisbury NHS Foundation Trust,23-Jul-10,FRUIT & VEGETABLES,Facilities Directorate,NHS LOGISTICS,WSWI777569,9.48,
Department of Health,Salisbury NHS Foundation Trust,23-Jul-10,FRUIT & VEGETABLES,Facilities Directorate,NHS LOGISTICS,WSWI777569,9.48,
Department of Health,Salisbury NHS Foundation Trust,23-Jul-10,DISPOSABLE TABLE LINEN,Medicine,NHS LOGISTICS,WSWI777569,9.53,
Department of Health,Salisbury NHS Foundation Trust,23-Jul-10,DISPOSABLE THEATRE DRAPES WIPES,Medicine,NHS LOGISTICS,WSWI777569,9.53,
Department of Health,Salisbury NHS Foundation Trust,23-Jul-10,MEDSURGCONS - OTHER,Clinical Support and Family Services,NHS LOGISTICS,WSWI777569,9.57,
Department of Health,Salisbury NHS Foundation Trust,23-Jul-10,BEVERAGES & AMBIENT FOOD,Facilities Directorate,NHS LOGISTICS,WSWI777569,9.6,
Department of Health,Salisbury NHS Foundation Trust,23-Jul-10,MEDSURGCONS - OTHER,Clinical Support and Family Services,NHS LOGISTICS,WSWI777569,9.61,
Department of Health,Salisbury NHS Foundation Trust,23-Jul-10,DRESSINGS - PRE STERILE,Surgery,NHS LOGISTICS,WSWI777569,9.64,
Department of Health,Salisbury NHS Foundation Trust,23-Jul-10,BEVERAGES & AMBIENT FOOD,Facilities Directorate,NHS LOGISTICS,WSWI777569,9.66,
Department of Health,Salisbury NHS Foundation Trust,23-Jul-10,DENTAL SURGERY SUNDRIES,Surgery,NHS LOGISTICS,WSWI777569,9.74,
Department of Health,Salisbury NHS Foundation Trust,23-Jul-10,MEDSURGCONS - OTHER,Clinical Support and Family Services,NHS LOGISTICS,WSWI777569,9.74,
Department of Health,Salisbury NHS Foundation Trust,23-Jul-10,MEDSURGCONS - OTHER,Clinical Support and Family Services,NHS LOGISTICS,WSWI777569,9.74,
Department of Health,Salisbury NHS Foundation Trust,23-Jul-10,MEDSURGCONS - OTHER,Surgery,NHS LOGISTICS,WSWI777569,9.77,
Department of Health,Salisbury NHS Foundation Trust,23-Jul-10,MEDSURGCONS - OTHER,Surgery,NHS LOGISTICS,WSWI777569,9.79,
Department of Health,Salisbury NHS Foundation Trust,23-Jul-10,MEDSURGCONS - OTHER,Medicine,NHS LOGISTICS,WSWI777569,9.79,
Department of Health,Salisbury NHS Foundation Trust,23-Jul-10,MEDSURGCONS - OTHER,Surgery,NHS LOGISTICS,WSWI777569,9.79,
Department of Health,Salisbury NHS Foundation Trust,23-Jul-10,MEDSURGCONS - OTHER,Medicine,NHS LOGISTICS,WSWI777569,9.79,
Department of Health,Salisbury NHS Foundation Trust,23-Jul-10,MEDSURGCONS - OTHER,Medicine,NHS LOGISTICS,WSWI777569,9.79,
Department of Health,Salisbury NHS Foundation Trust,23-Jul-10,BEVERAGES & AMBIENT FOOD,Facilities Directorate,NHS LOGISTICS,WSWI777569,9.84,
Department of Health,Salisbury NHS Foundation Trust,23-Jul-10,LIQUID REFRESHMENTS,Facilities Directorate,NHS LOGISTICS,WSWI777569,9.85,
Department of Health,Salisbury NHS Foundation Trust,23-Jul-10,LIQUID REFRESHMENTS,Facilities Directorate,NHS LOGISTICS,WSWI777569,9.85,
Department of Health,Salisbury NHS Foundation Trust,23-Jul-10,DRESSINGS  -  PROCEDURE PACKS,Medicine,NHS LOGISTICS,WSWI777569,9.86,
Department of Health,Salisbury NHS Foundation Trust,23-Jul-10,TISSUES HAND TOWELS & TOILET PAPER,Medicine,NHS LOGISTICS,WSWI777569,9.96,
Department of Health,Salisbury NHS Foundation Trust,23-Jul-10,ANAESTHETIC EQUIPMENT ACCESSORIES,Medicine,NHS LOGISTICS,WSWI777569,9.96,
Department of Health,Salisbury NHS Foundation Trust,23-Jul-10,ANAESTHETIC EQUIPMENT ACCESSORIES,Medicine,NHS LOGISTICS,WSWI777569,9.96,
Department of Health,Salisbury NHS Foundation Trust,23-Jul-10,BAGS SACKS - OTHER,Surgery,NHS LOGISTICS,WSWI777569,9.98,
Department of Health,Salisbury NHS Foundation Trust,23-Jul-10,FRUIT & VEGETABLES,Facilities Directorate,NHS LOGISTICS,WSWI777569,10.02,
Department of Health,Salisbury NHS Foundation Trust,23-Jul-10,MEDSURGCONS - OTHER,Clinical Support and Family Services,NHS LOGISTICS,WSWI777569,10.05,
Department of Health,Salisbury NHS Foundation Trust,23-Jul-10,STATIONERY SUNDRIES,Medicine,NHS LOGISTICS,WSWI777569,10.06,
Department of Health,Salisbury NHS Foundation Trust,23-Jul-10,STATIONERY SUNDRIES,Medicine,NHS LOGISTICS,WSWI777569,10.06,
Department of Health,Salisbury NHS Foundation Trust,23-Jul-10,STATIONERY SUNDRIES,Surgery,NHS LOGISTICS,WSWI777569,10.06,
Department of Health,Salisbury NHS Foundation Trust,23-Jul-10,MEDSURGCONS - OTHER,Surgery,NHS LOGISTICS,WSWI777569,10.09,
Department of Health,Salisbury NHS Foundation Trust,23-Jul-10,MEDSURGCONS - OTHER,Surgery,NHS LOGISTICS,WSWI777569,10.13,
Department of Health,Salisbury NHS Foundation Trust,23-Jul-10,MEDSURGCONS - OTHER,Surgery,NHS LOGISTICS,WSWI777569,10.13,
Department of Health,Salisbury NHS Foundation Trust,23-Jul-10,DRESSINGS - PRE STERILE,Medicine,NHS LOGISTICS,WSWI777569,10.17,
Department of Health,Salisbury NHS Foundation Trust,23-Jul-10,MEDSURGCONS - OTHER,Medicine,NHS LOGISTICS,WSWI777569,10.18,
Department of Health,Salisbury NHS Foundation Trust,23-Jul-10,MEDSURGCONS - OTHER,Clinical Support and Family Services,NHS LOGISTICS,WSWI777569,10.23,
Department of Health,Salisbury NHS Foundation Trust,23-Jul-10,MEDSURGCONS - OTHER,Clinical Support and Family Services,NHS LOGISTICS,WSWI777569,10.23,
Department of Health,Salisbury NHS Foundation Trust,23-Jul-10,MEDSURGCONS - OTHER,Medicine,NHS LOGISTICS,WSWI777569,10.23,
Department of Health,Salisbury NHS Foundation Trust,23-Jul-10,MEDSURGCONS - OTHER,Surgery,NHS LOGISTICS,WSWI777569,10.28,
Department of Health,Salisbury NHS Foundation Trust,23-Jul-10,OTHER MEDICAL SUPPLIES,Medicine,NHS LOGISTICS,WSWI777569,10.3,
Department of Health,Salisbury NHS Foundation Trust,23-Jul-10,OTHER MEDICAL SUPPLIES,Clinical Support and Family Services,NHS LOGISTICS,WSWI777569,10.3,
Department of Health,Salisbury NHS Foundation Trust,23-Jul-10,BEVERAGES & AMBIENT FOOD,Facilities Directorate,NHS LOGISTICS,WSWI777569,10.31,
Department of Health,Salisbury NHS Foundation Trust,23-Jul-10,DRESSINGS - PRE STERILE,Facilities Directorate,NHS LOGISTICS,WSWI777569,10.38,
Department of Health,Salisbury NHS Foundation Trust,23-Jul-10,BEVERAGES & AMBIENT FOOD,Facilities Directorate,NHS LOGISTICS,WSWI777569,10.42,
Department of Health,Salisbury NHS Foundation Trust,23-Jul-10,PATIENT APPLIANCES,Medicine,NHS LOGISTICS,WSWI777569,10.49,
Department of Health,Salisbury NHS Foundation Trust,23-Jul-10,PATIENT APPLIANCES,Medicine,NHS LOGISTICS,WSWI777569,10.49,
Department of Health,Salisbury NHS Foundation Trust,23-Jul-10,PATIENT APPLIANCES,Medicine,NHS LOGISTICS,WSWI777569,10.49,
Department of Health,Salisbury NHS Foundation Trust,23-Jul-10,BEVERAGES & AMBIENT FOOD,Facilities Directorate,NHS LOGISTICS,WSWI777569,10.5,
Department of Health,Salisbury NHS Foundation Trust,23-Jul-10,PATIENT APPLIANCES,Medicine,NHS LOGISTICS,WSWI777569,10.52,
Department of Health,Salisbury NHS Foundation Trust,23-Jul-10,COOKING & KITCHEN UTENSILS,Medicine,NHS LOGISTICS,WSWI777569,10.55,
Department of Health,Salisbury NHS Foundation Trust,23-Jul-10,BEVERAGES & AMBIENT FOOD,Facilities Directorate,NHS LOGISTICS,WSWI777569,10.56,
Department of Health,Salisbury NHS Foundation Trust,23-Jul-10,BEVERAGES & AMBIENT FOOD,Facilities Directorate,NHS LOGISTICS,WSWI777569,10.56,
Department of Health,Salisbury NHS Foundation Trust,23-Jul-10,PATIENTS BEDWEAR UNISEX,Medicine,NHS LOGISTICS,WSWI777569,10.6,
Department of Health,Salisbury NHS Foundation Trust,23-Jul-10,HEALTHCARE - WEAR,Clinical Support and Family Services,NHS LOGISTICS,WSWI777569,10.66,
Department of Health,Salisbury NHS Foundation Trust,23-Jul-10,DISPOSABLE THEATRE DRAPES WIPES,Surgery,NHS LOGISTICS,WSWI777569,10.67,
Department of Health,Salisbury NHS Foundation Trust,23-Jul-10,BEVERAGES & AMBIENT FOOD,Facilities Directorate,NHS LOGISTICS,WSWI777569,10.75,
Department of Health,Salisbury NHS Foundation Trust,23-Jul-10,OTHER MEDICAL SUPPLIES,Surgery,NHS LOGISTICS,WSWI777569,10.77,
Department of Health,Salisbury NHS Foundation Trust,23-Jul-10,BAGS SACKS - OTHER,Surgery,NHS LOGISTICS,WSWI777569,10.77,
Department of Health,Salisbury NHS Foundation Trust,23-Jul-10,OTHER MEDICAL SUPPLIES,Medicine,NHS LOGISTICS,WSWI777569,10.77,
Department of Health,Salisbury NHS Foundation Trust,23-Jul-10,MEDSURGCONS - OTHER,Medicine,NHS LOGISTICS,WSWI777569,10.83,
Department of Health,Salisbury NHS Foundation Trust,23-Jul-10,DRESSINGS - PRE STERILE,Medicine,NHS LOGISTICS,WSWI777569,10.83,
Department of Health,Salisbury NHS Foundation Trust,23-Jul-10,MEDSURGCONS - OTHER,Surgery,NHS LOGISTICS,WSWI777569,10.83,
Department of Health,Salisbury NHS Foundation Trust,23-Jul-10,FRUIT & VEGETABLES,Facilities Directorate,NHS LOGISTICS,WSWI777569,10.92,
Department of Health,Salisbury NHS Foundation Trust,23-Jul-10,BEVERAGES & AMBIENT FOOD,Facilities Directorate,NHS LOGISTICS,WSWI777569,10.96,
Department of Health,Salisbury NHS Foundation Trust,23-Jul-10,MEDSURGCONS - OTHER,Clinical Support and Family Services,NHS LOGISTICS,WSWI777569,10.99,
Department of Health,Salisbury NHS Foundation Trust,23-Jul-10,MEDSURGCONS - OTHER,Medicine,NHS LOGISTICS,WSWI777569,11.02,
Department of Health,Salisbury NHS Foundation Trust,23-Jul-10,LIQUID REFRESHMENTS,Facilities Directorate,NHS LOGISTICS,WSWI777569,11.03,
Department of Health,Salisbury NHS Foundation Trust,23-Jul-10,PAPER ITEMS GENERAL STATIONERY SUNDRIES,Medicine,NHS LOGISTICS,WSWI777569,11.03,
Department of Health,Salisbury NHS Foundation Trust,23-Jul-10,LIQUID REFRESHMENTS,Facilities Directorate,NHS LOGISTICS,WSWI777569,11.03,
Department of Health,Salisbury NHS Foundation Trust,23-Jul-10,PATIENT APPLIANCES,Clinical Support and Family Services,NHS LOGISTICS,WSWI777569,11.05,
Department of Health,Salisbury NHS Foundation Trust,23-Jul-10,BEVERAGES & AMBIENT FOOD,Facilities Directorate,NHS LOGISTICS,WSWI777569,11.06,
Department of Health,Salisbury NHS Foundation Trust,23-Jul-10,BEVERAGES & AMBIENT FOOD,Facilities Directorate,NHS LOGISTICS,WSWI777569,11.12,
Department of Health,Salisbury NHS Foundation Trust,23-Jul-10,STATIONERY SUNDRIES,Facilities Directorate,NHS LOGISTICS,WSWI777569,11.13,
Department of Health,Salisbury NHS Foundation Trust,23-Jul-10,DRESSINGS - PRE STERILE,Facilities Directorate,NHS LOGISTICS,WSWI777569,11.15,
Department of Health,Salisbury NHS Foundation Trust,23-Jul-10,STATIONERY SUNDRIES,Critical care,NHS LOGISTICS,WSWI777569,11.18,
Department of Health,Salisbury NHS Foundation Trust,23-Jul-10,MEDSURGCONS - OTHER,Medicine,NHS LOGISTICS,WSWI777569,11.21,
Department of Health,Salisbury NHS Foundation Trust,23-Jul-10,MEDSURGCONS - OTHER,Critical care,NHS LOGISTICS,WSWI777569,11.21,
Department of Health,Salisbury NHS Foundation Trust,23-Jul-10,MEDSURGCONS - OTHER,Clinical Support and Family Services,NHS LOGISTICS,WSWI777569,11.21,
Department of Health,Salisbury NHS Foundation Trust,23-Jul-10,LIQUID REFRESHMENTS,Facilities Directorate,NHS LOGISTICS,WSWI777569,11.23,
Department of Health,Salisbury NHS Foundation Trust,23-Jul-10,DISPOSABLE THEATRE DRAPES WIPES,Clinical Support and Family Services,NHS LOGISTICS,WSWI777569,11.23,
Department of Health,Salisbury NHS Foundation Trust,23-Jul-10,NON DISPOSABLE BED LINEN,Clinical Support and Family Services,NHS LOGISTICS,WSWI777569,11.24,
Department of Health,Salisbury NHS Foundation Trust,23-Jul-10,MEDSURGCONS - OTHER,Medicine,NHS LOGISTICS,WSWI777569,11.28,
Department of Health,Salisbury NHS Foundation Trust,23-Jul-10,MEDSURGCONS - OTHER,Medicine,NHS LOGISTICS,WSWI777569,11.3,
Department of Health,Salisbury NHS Foundation Trust,23-Jul-10,DISPOSABLE THEATRE DRAPES WIPES,Surgery,NHS LOGISTICS,WSWI777569,11.34,
Department of Health,Salisbury NHS Foundation Trust,23-Jul-10,MEDSURGCONS - OTHER,Critical care,NHS LOGISTICS,WSWI777569,11.34,
Department of Health,Salisbury NHS Foundation Trust,23-Jul-10,MEDSURGCONS - OTHER,Medicine,NHS LOGISTICS,WSWI777569,11.36,
Department of Health,Salisbury NHS Foundation Trust,23-Jul-10,MEDSURGCONS - OTHER,Medicine,NHS LOGISTICS,WSWI777569,11.4,
Department of Health,Salisbury NHS Foundation Trust,23-Jul-10,M & S EQUIPELECTEQUIPINST - OTHER,Surgery,NHS LOGISTICS,WSWI777569,11.41,
Department of Health,Salisbury NHS Foundation Trust,23-Jul-10,LIQUID REFRESHMENTS,Facilities Directorate,NHS LOGISTICS,WSWI777569,11.44,
Department of Health,Salisbury NHS Foundation Trust,23-Jul-10,PAPER ITEMS GENERAL STATIONERY SUNDRIES,Clinical Effctiveness Directorate,NHS LOGISTICS,WSWI777569,11.58,
Department of Health,Salisbury NHS Foundation Trust,23-Jul-10,MEDSURGCONS - OTHER,Clinical Support and Family Services,NHS LOGISTICS,WSWI777569,11.66,
Department of Health,Salisbury NHS Foundation Trust,23-Jul-10,OTHER MEDICAL SUPPLIES,Surgery,NHS LOGISTICS,WSWI777569,11.7,
Department of Health,Salisbury NHS Foundation Trust,23-Jul-10,BAGS SACKS - OTHER,Facilities Directorate,NHS LOGISTICS,WSWI777569,11.78,
Department of Health,Salisbury NHS Foundation Trust,23-Jul-10,DRESSINGS - PRE STERILE,Critical care,NHS LOGISTICS,WSWI777569,11.8,
Department of Health,Salisbury NHS Foundation Trust,23-Jul-10,DISPOSABLE THEATRE DRAPES WIPES,Critical care,NHS LOGISTICS,WSWI777569,11.82,
Department of Health,Salisbury NHS Foundation Trust,23-Jul-10,DISPOSABLE THEATRE DRAPES WIPES,Medicine,NHS LOGISTICS,WSWI777569,11.82,
Department of Health,Salisbury NHS Foundation Trust,23-Jul-10,DRESSINGS - PRE STERILE,Clinical Support and Family Services,NHS LOGISTICS,WSWI777569,11.85,
Department of Health,Salisbury NHS Foundation Trust,23-Jul-10,DRESSINGS - PRE STERILE,Critical care,NHS LOGISTICS,WSWI777569,11.85,
Department of Health,Salisbury NHS Foundation Trust,23-Jul-10,MEDSURGCONS - OTHER,Clinical Support and Family Services,NHS LOGISTICS,WSWI777569,11.87,
Department of Health,Salisbury NHS Foundation Trust,23-Jul-10,DRESSINGS - PRE STERILE,Surgery,NHS LOGISTICS,WSWI777569,11.89,
Department of Health,Salisbury NHS Foundation Trust,23-Jul-10,MEDSURGCONS - OTHER,Medicine,NHS LOGISTICS,WSWI777569,11.9,
Department of Health,Salisbury NHS Foundation Trust,23-Jul-10,STATIONERY SUNDRIES,Clinical Support and Family Services,NHS LOGISTICS,WSWI777569,12,
Department of Health,Salisbury NHS Foundation Trust,23-Jul-10,OTHER MEDICAL SUPPLIES,Medicine,NHS LOGISTICS,WSWI777569,12.02,
Department of Health,Salisbury NHS Foundation Trust,23-Jul-10,SURGICAL INSTRUMENTS: DISPOSABLE,Medicine,NHS LOGISTICS,WSWI777569,12.09,
Department of Health,Salisbury NHS Foundation Trust,23-Jul-10,SURGICAL INSTRUMENTS: DISPOSABLE,Critical care,NHS LOGISTICS,WSWI777569,12.09,
Department of Health,Salisbury NHS Foundation Trust,23-Jul-10,SURGICAL INSTRUMENTS: DISPOSABLE,Medicine,NHS LOGISTICS,WSWI777569,12.09,
Department of Health,Salisbury NHS Foundation Trust,23-Jul-10,SURGICAL INSTRUMENTS: DISPOSABLE,Critical care,NHS LOGISTICS,WSWI777569,12.09,
Department of Health,Salisbury NHS Foundation Trust,23-Jul-10,M & S EQUIPELECTEQUIPINST - OTHER,Medicine,NHS LOGISTICS,WSWI777569,12.1,
Department of Health,Salisbury NHS Foundation Trust,23-Jul-10,M & S EQUIPELECTEQUIPINST - OTHER,Critical care,NHS LOGISTICS,WSWI777569,12.1,
Department of Health,Salisbury NHS Foundation Trust,23-Jul-10,PATIENTS BEDWEAR UNISEX,Medicine,NHS LOGISTICS,WSWI777569,12.12,
Department of Health,Salisbury NHS Foundation Trust,23-Jul-10,PATIENTS BEDWEAR UNISEX,Surgery,NHS LOGISTICS,WSWI777569,12.12,
Department of Health,Salisbury NHS Foundation Trust,23-Jul-10,PATIENTS BEDWEAR UNISEX,Medicine,NHS LOGISTICS,WSWI777569,12.17,
Department of Health,Salisbury NHS Foundation Trust,23-Jul-10,SURGICAL INSTRUMENTS: GENERAL,Surgery,NHS LOGISTICS,WSWI777569,12.17,
Department of Health,Salisbury NHS Foundation Trust,23-Jul-10,LIQUID REFRESHMENTS,Facilities Directorate,NHS LOGISTICS,WSWI777569,12.18,
Department of Health,Salisbury NHS Foundation Trust,23-Jul-10,DRESSINGS - PRE STERILE,Critical care,NHS LOGISTICS,WSWI777569,12.2,
Department of Health,Salisbury NHS Foundation Trust,23-Jul-10,LIQUID REFRESHMENTS,Facilities Directorate,NHS LOGISTICS,WSWI777569,12.2,
Department of Health,Salisbury NHS Foundation Trust,23-Jul-10,LIQUID REFRESHMENTS,Facilities Directorate,NHS LOGISTICS,WSWI777569,12.2,
Department of Health,Salisbury NHS Foundation Trust,23-Jul-10,FLAVOURINGS HERBS SPICES,Facilities Directorate,NHS LOGISTICS,WSWI777569,12.28,
Department of Health,Salisbury NHS Foundation Trust,23-Jul-10,FLAVOURINGS HERBS SPICES,Facilities Directorate,NHS LOGISTICS,WSWI777569,12.28,
Department of Health,Salisbury NHS Foundation Trust,23-Jul-10,HEALTHCARE - WEAR,Medicine,NHS LOGISTICS,WSWI777569,12.37,
Department of Health,Salisbury NHS Foundation Trust,23-Jul-10,TISSUES HAND TOWELS & TOILET PAPER,Medicine,NHS LOGISTICS,WSWI777569,12.38,
Department of Health,Salisbury NHS Foundation Trust,23-Jul-10,OPTICAL  -  OTHER,Surgery,NHS LOGISTICS,WSWI777569,12.38,
Department of Health,Salisbury NHS Foundation Trust,23-Jul-10,BEVERAGES & AMBIENT FOOD,Clinical Effctiveness Directorate,NHS LOGISTICS,WSWI777569,12.45,
Department of Health,Salisbury NHS Foundation Trust,23-Jul-10,FLAVOURINGS HERBS SPICES,Facilities Directorate,NHS LOGISTICS,WSWI777569,12.5,
Department of Health,Salisbury NHS Foundation Trust,23-Jul-10,BEVERAGES & AMBIENT FOOD,Facilities Directorate,NHS LOGISTICS,WSWI777569,12.5,
Department of Health,Salisbury NHS Foundation Trust,23-Jul-10,DRESSINGS - PRE STERILE,Medicine,NHS LOGISTICS,WSWI777569,12.51,
Department of Health,Salisbury NHS Foundation Trust,23-Jul-10,DISPOSABLE THEATRE DRAPES WIPES,Surgery,NHS LOGISTICS,WSWI777569,12.53,
Department of Health,Salisbury NHS Foundation Trust,23-Jul-10,DISPOSABLE THEATRE DRAPES WIPES,Medicine,NHS LOGISTICS,WSWI777569,12.53,
Department of Health,Salisbury NHS Foundation Trust,23-Jul-10,DISPOSABLE THEATRE DRAPES WIPES,Medicine,NHS LOGISTICS,WSWI777569,12.53,
Department of Health,Salisbury NHS Foundation Trust,23-Jul-10,M & S EQUIPELECTEQUIPINST - OTHER,Surgery,NHS LOGISTICS,WSWI777569,12.56,
Department of Health,Salisbury NHS Foundation Trust,23-Jul-10,M & S EQUIPELECTEQUIPINST - OTHER,Surgery,NHS LOGISTICS,WSWI777569,12.56,
Department of Health,Salisbury NHS Foundation Trust,23-Jul-10,NON DISPOSABLE BED LINEN,Critical care,NHS LOGISTICS,WSWI777569,12.58,
Department of Health,Salisbury NHS Foundation Trust,23-Jul-10,NON DISPOSABLE BED LINEN,Critical care,NHS LOGISTICS,WSWI777569,12.58,
Department of Health,Salisbury NHS Foundation Trust,23-Jul-10,COOKING & KITCHEN UTENSILS,Medicine,NHS LOGISTICS,WSWI777569,12.6,
Department of Health,Salisbury NHS Foundation Trust,23-Jul-10,MEDSURGCONS - OTHER,Clinical Support and Family Services,NHS LOGISTICS,WSWI777569,12.6,
Department of Health,Salisbury NHS Foundation Trust,23-Jul-10,MEDSURGCONS - OTHER,Surgery,NHS LOGISTICS,WSWI777569,12.6,
Department of Health,Salisbury NHS Foundation Trust,23-Jul-10,BEVERAGES & AMBIENT FOOD,Facilities Directorate,NHS LOGISTICS,WSWI777569,12.6,
Department of Health,Salisbury NHS Foundation Trust,23-Jul-10,PATIENT APPLIANCES,Medicine,NHS LOGISTICS,WSWI777569,12.66,
Department of Health,Salisbury NHS Foundation Trust,23-Jul-10,MEDSURGCONS - OTHER,Clinical Support and Family Services,NHS LOGISTICS,WSWI777569,12.73,
Department of Health,Salisbury NHS Foundation Trust,23-Jul-10,MEDSURGCONS - OTHER,Critical care,NHS LOGISTICS,WSWI777569,12.73,
Department of Health,Salisbury NHS Foundation Trust,23-Jul-10,MEDSURGCONS - OTHER,Surgery,NHS LOGISTICS,WSWI777569,12.77,
Department of Health,Salisbury NHS Foundation Trust,23-Jul-10,OTHER MEDICAL SUPPLIES,Surgery,NHS LOGISTICS,WSWI777569,12.77,
Department of Health,Salisbury NHS Foundation Trust,23-Jul-10,M & S EQUIPELECTEQUIPINST - OTHER,Critical care,NHS LOGISTICS,WSWI777569,12.78,
Department of Health,Salisbury NHS Foundation Trust,23-Jul-10,DRESSINGS - PRE STERILE,Medicine,NHS LOGISTICS,WSWI777569,12.8,
Department of Health,Salisbury NHS Foundation Trust,23-Jul-10,DRESSINGS - PRE STERILE,Critical care,NHS LOGISTICS,WSWI777569,12.8,
Department of Health,Salisbury NHS Foundation Trust,23-Jul-10,MEDSURGCONS - OTHER,Critical care,NHS LOGISTICS,WSWI777569,12.87,
Department of Health,Salisbury NHS Foundation Trust,23-Jul-10,MEDSURGCONS-SUTURES,Medicine,NHS LOGISTICS,WSWI777569,12.97,
Department of Health,Salisbury NHS Foundation Trust,23-Jul-10,PATIENTS INCONTINENCE,Medicine,NHS LOGISTICS,WSWI777569,13.04,
Department of Health,Salisbury NHS Foundation Trust,23-Jul-10,MED SURG EQUIP REP MAINT CLEANING,Medicine,NHS LOGISTICS,WSWI777569,13.04,
Department of Health,Salisbury NHS Foundation Trust,23-Jul-10,BEVERAGES & AMBIENT FOOD,Clinical Support and Family Services,NHS LOGISTICS,WSWI777569,13.13,
Department of Health,Salisbury NHS Foundation Trust,23-Jul-10,FLAVOURINGS HERBS SPICES,Facilities Directorate,NHS LOGISTICS,WSWI777569,13.2,
Department of Health,Salisbury NHS Foundation Trust,23-Jul-10,MEDSURGCONS - OTHER,Critical care,NHS LOGISTICS,WSWI777569,13.2,
Department of Health,Salisbury NHS Foundation Trust,23-Jul-10,BEVERAGES & AMBIENT FOOD,Facilities Directorate,NHS LOGISTICS,WSWI777569,13.28,
Department of Health,Salisbury NHS Foundation Trust,23-Jul-10,MEDSURGCONS-SUTURES,Medicine,NHS LOGISTICS,WSWI777569,13.28,
Department of Health,Salisbury NHS Foundation Trust,23-Jul-10,DRUGS,Surgery,NHS LOGISTICS,WSWI777569,13.28,
Department of Health,Salisbury NHS Foundation Trust,23-Jul-10,BAGS SACKS - OTHER,Surgery,NHS LOGISTICS,WSWI777569,13.31,
Department of Health,Salisbury NHS Foundation Trust,23-Jul-10,DRESSINGS - PRE STERILE,Critical care,NHS LOGISTICS,WSWI777569,13.33,
Department of Health,Salisbury NHS Foundation Trust,23-Jul-10,DRESSINGS - PRE STERILE,Medicine,NHS LOGISTICS,WSWI777569,13.33,
Department of Health,Salisbury NHS Foundation Trust,23-Jul-10,DRESSINGS - PRE STERILE,Surgery,NHS LOGISTICS,WSWI777569,13.35,
Department of Health,Salisbury NHS Foundation Trust,23-Jul-10,DRESSINGS - PRE STERILE,Surgery,NHS LOGISTICS,WSWI777569,13.35,
Department of Health,Salisbury NHS Foundation Trust,23-Jul-10,SURGICAL INSTRUMENTS: GENERAL,Medicine,NHS LOGISTICS,WSWI777569,13.36,
Department of Health,Salisbury NHS Foundation Trust,23-Jul-10,SURGICAL INSTRUMENTS: GENERAL,Clinical Support and Family Services,NHS LOGISTICS,WSWI777569,13.4,
Department of Health,Salisbury NHS Foundation Trust,23-Jul-10,MEDSURGCONS - OTHER,Surgery,NHS LOGISTICS,WSWI777569,13.45,
Department of Health,Salisbury NHS Foundation Trust,23-Jul-10,TISSUES HAND TOWELS & TOILET PAPER,Medicine,NHS LOGISTICS,WSWI777569,13.57,
Department of Health,Salisbury NHS Foundation Trust,23-Jul-10,MEDSURGCONS - OTHER,Clinical Support and Family Services,NHS LOGISTICS,WSWI777569,13.58,
Department of Health,Salisbury NHS Foundation Trust,23-Jul-10,MEDSURGCONS - OTHER,Surgery,NHS LOGISTICS,WSWI777569,13.72,
Department of Health,Salisbury NHS Foundation Trust,23-Jul-10,DRESSINGS - PRE STERILE,Clinical Support and Family Services,NHS LOGISTICS,WSWI777569,13.8,
Department of Health,Salisbury NHS Foundation Trust,23-Jul-10,DRESSINGS - PRE STERILE,Medicine,NHS LOGISTICS,WSWI777569,13.82,
Department of Health,Salisbury NHS Foundation Trust,23-Jul-10,DRUGS,Surgery,NHS LOGISTICS,WSWI777569,13.86,
Department of Health,Salisbury NHS Foundation Trust,23-Jul-10,DRESSINGS - PRE STERILE,Medicine,NHS LOGISTICS,WSWI777569,13.88,
Department of Health,Salisbury NHS Foundation Trust,23-Jul-10,DRESSINGS - PRE STERILE,Critical care,NHS LOGISTICS,WSWI777569,13.88,
Department of Health,Salisbury NHS Foundation Trust,23-Jul-10,TOILETRIES PERSONAL HYGIENE PRODUCTS,Medicine,NHS LOGISTICS,WSWI777569,13.91,
Department of Health,Salisbury NHS Foundation Trust,23-Jul-10,DRUGS,Surgery,NHS LOGISTICS,WSWI777569,13.91,
Department of Health,Salisbury NHS Foundation Trust,23-Jul-10,ELECTRICAL EQUIPMENT x,Clinical Support and Family Services,NHS LOGISTICS,WSWI777569,13.96,
Department of Health,Salisbury NHS Foundation Trust,23-Jul-10,DISPOSABLE THEATRE DRAPES WIPES,Critical care,NHS LOGISTICS,WSWI777569,14.09,
Department of Health,Salisbury NHS Foundation Trust,23-Jul-10,OPTICAL  -  OTHER,Surgery,NHS LOGISTICS,WSWI777569,14.16,
Department of Health,Salisbury NHS Foundation Trust,23-Jul-10,MEDSURGCONS - OTHER,Surgery,NHS LOGISTICS,WSWI777569,14.3,
Department of Health,Salisbury NHS Foundation Trust,23-Jul-10,PATIENT APPLIANCES,Medicine,NHS LOGISTICS,WSWI777569,14.37,
Department of Health,Salisbury NHS Foundation Trust,23-Jul-10,PATIENT APPLIANCES,Medicine,NHS LOGISTICS,WSWI777569,14.37,
Department of Health,Salisbury NHS Foundation Trust,23-Jul-10,DRESSINGS  -  PROCEDURE PACKS,Surgery,NHS LOGISTICS,WSWI777569,14.4,
Department of Health,Salisbury NHS Foundation Trust,23-Jul-10,BEVERAGES & AMBIENT FOOD,Facilities Directorate,NHS LOGISTICS,WSWI777569,14.44,
Department of Health,Salisbury NHS Foundation Trust,23-Jul-10,MEDSURGCONS - OTHER,Medicine,NHS LOGISTICS,WSWI777569,14.55,
Department of Health,Salisbury NHS Foundation Trust,23-Jul-10,MEDSURGCONS - OTHER,Medicine,NHS LOGISTICS,WSWI777569,14.55,
Department of Health,Salisbury NHS Foundation Trust,23-Jul-10,MEDSURGCONS - OTHER,Medicine,NHS LOGISTICS,WSWI777569,14.55,
Department of Health,Salisbury NHS Foundation Trust,23-Jul-10,MEDSURGCONS - OTHER,Medicine,NHS LOGISTICS,WSWI777569,14.55,
Department of Health,Salisbury NHS Foundation Trust,23-Jul-10,MEDSURGCONS - OTHER,Clinical Support and Family Services,NHS LOGISTICS,WSWI777569,14.55,
Department of Health,Salisbury NHS Foundation Trust,23-Jul-10,MEDSURGCONS - OTHER,Critical care,NHS LOGISTICS,WSWI777569,14.55,
Department of Health,Salisbury NHS Foundation Trust,23-Jul-10,PATIENT APPLIANCES,Surgery,NHS LOGISTICS,WSWI777569,14.58,
Department of Health,Salisbury NHS Foundation Trust,23-Jul-10,DRUGS,Medicine,NHS LOGISTICS,WSWI777569,14.6,
Department of Health,Salisbury NHS Foundation Trust,23-Jul-10,DRUGS,Clinical Support and Family Services,NHS LOGISTICS,WSWI777569,14.6,
Department of Health,Salisbury NHS Foundation Trust,23-Jul-10,MEDSURGCONS - OTHER,Medicine,NHS LOGISTICS,WSWI777569,14.6,
Department of Health,Salisbury NHS Foundation Trust,23-Jul-10,MEDSURGCONS - OTHER,Medicine,NHS LOGISTICS,WSWI777569,14.64,
Department of Health,Salisbury NHS Foundation Trust,23-Jul-10,MEDSURGCONS - OTHER,Facilities Directorate,NHS LOGISTICS,WSWI777569,14.64,
Department of Health,Salisbury NHS Foundation Trust,23-Jul-10,SURGICAL INSTRUMENTS: GENERAL,Clinical Support and Family Services,NHS LOGISTICS,WSWI777569,14.66,
Department of Health,Salisbury NHS Foundation Trust,23-Jul-10,MEDSURGCONS - OTHER,Medicine,NHS LOGISTICS,WSWI777569,14.72,
Department of Health,Salisbury NHS Foundation Trust,23-Jul-10,MEDSURGCONS - OTHER,Medicine,NHS LOGISTICS,WSWI777569,14.75,
Department of Health,Salisbury NHS Foundation Trust,23-Jul-10,DRESSINGS - PRE STERILE,Critical care,NHS LOGISTICS,WSWI777569,14.77,
Department of Health,Salisbury NHS Foundation Trust,23-Jul-10,COOKING & KITCHEN UTENSILS,Clinical Support and Family Services,NHS LOGISTICS,WSWI777569,14.78,
Department of Health,Salisbury NHS Foundation Trust,23-Jul-10,DISPOSABLE THEATRE DRAPES WIPES,Critical care,NHS LOGISTICS,WSWI777569,14.81,
Department of Health,Salisbury NHS Foundation Trust,23-Jul-10,LIQUID REFRESHMENTS,Facilities Directorate,NHS LOGISTICS,WSWI777569,14.83,
Department of Health,Salisbury NHS Foundation Trust,23-Jul-10,MEDSURGCONS - OTHER,Facilities Directorate,NHS LOGISTICS,WSWI777569,14.89,
Department of Health,Salisbury NHS Foundation Trust,23-Jul-10,MEDSURGCONS - OTHER,Critical care,NHS LOGISTICS,WSWI777569,14.89,
Department of Health,Salisbury NHS Foundation Trust,23-Jul-10,MEDSURGCONS - OTHER,Critical care,NHS LOGISTICS,WSWI777569,14.9,
Department of Health,Salisbury NHS Foundation Trust,23-Jul-10,TISSUES HAND TOWELS & TOILET PAPER,Surgery,NHS LOGISTICS,WSWI777569,14.91,
Department of Health,Salisbury NHS Foundation Trust,23-Jul-10,TISSUES HAND TOWELS & TOILET PAPER,Critical care,NHS LOGISTICS,WSWI777569,14.91,
Department of Health,Salisbury NHS Foundation Trust,23-Jul-10,TISSUES HAND TOWELS & TOILET PAPER,Facilities Directorate,NHS LOGISTICS,WSWI777569,14.91,
Department of Health,Salisbury NHS Foundation Trust,23-Jul-10,MEDSURGCONS - OTHER,Critical care,NHS LOGISTICS,WSWI777569,14.94,
Department of Health,Salisbury NHS Foundation Trust,23-Jul-10,MEDSURGCONS - OTHER,Clinical Support and Family Services,NHS LOGISTICS,WSWI777569,14.94,
Department of Health,Salisbury NHS Foundation Trust,23-Jul-10,MEDSURGCONS - OTHER,Critical care,NHS LOGISTICS,WSWI777569,14.94,
Department of Health,Salisbury NHS Foundation Trust,23-Jul-10,MEDSURGCONS - OTHER,Surgery,NHS LOGISTICS,WSWI777569,14.98,
Department of Health,Salisbury NHS Foundation Trust,23-Jul-10,DISPOSABLE THEATRE DRAPES WIPES,Critical care,NHS LOGISTICS,WSWI777569,15.11,
Department of Health,Salisbury NHS Foundation Trust,23-Jul-10,COOKING & KITCHEN UTENSILS,Facilities Directorate,NHS LOGISTICS,WSWI777569,15.15,
Department of Health,Salisbury NHS Foundation Trust,23-Jul-10,COOKING & KITCHEN UTENSILS,Surgery,NHS LOGISTICS,WSWI777569,15.15,
Department of Health,Salisbury NHS Foundation Trust,23-Jul-10,COOKING & KITCHEN UTENSILS,Facilities Directorate,NHS LOGISTICS,WSWI777569,15.15,
Department of Health,Salisbury NHS Foundation Trust,23-Jul-10,TOILETRIES PERSONAL HYGIENE PRODUCTS,Medicine,NHS LOGISTICS,WSWI777569,15.18,
Department of Health,Salisbury NHS Foundation Trust,23-Jul-10,TOILETRIES PERSONAL HYGIENE PRODUCTS,Surgery,NHS LOGISTICS,WSWI777569,15.18,
Department of Health,Salisbury NHS Foundation Trust,23-Jul-10,MEDSURGCONS-SUTURES,Surgery,NHS LOGISTICS,WSWI777569,15.18,
Department of Health,Salisbury NHS Foundation Trust,23-Jul-10,TOILETRIES PERSONAL HYGIENE PRODUCTS,Medicine,NHS LOGISTICS,WSWI777569,15.18,
Department of Health,Salisbury NHS Foundation Trust,23-Jul-10,PAPER ITEMS GENERAL STATIONERY SUNDRIES,Surgery,NHS LOGISTICS,WSWI777569,15.19,
Department of Health,Salisbury NHS Foundation Trust,23-Jul-10,MEDSURGCONS - OTHER,Surgery,NHS LOGISTICS,WSWI777569,15.19,
Department of Health,Salisbury NHS Foundation Trust,23-Jul-10,DRESSINGS - PRE STERILE,Critical care,NHS LOGISTICS,WSWI777569,15.3,
Department of Health,Salisbury NHS Foundation Trust,23-Jul-10,LIQUID REFRESHMENTS,Facilities Directorate,NHS LOGISTICS,WSWI777569,15.32,
Department of Health,Salisbury NHS Foundation Trust,23-Jul-10,MEDSURGCONS - OTHER,Surgery,NHS LOGISTICS,WSWI777569,15.34,
Department of Health,Salisbury NHS Foundation Trust,23-Jul-10,DRESSINGS - PRE STERILE,Medicine,NHS LOGISTICS,WSWI777569,15.37,
Department of Health,Salisbury NHS Foundation Trust,23-Jul-10,MEDSURGCONS - OTHER,Medicine,NHS LOGISTICS,WSWI777569,15.37,
Department of Health,Salisbury NHS Foundation Trust,23-Jul-10,ANAESTHETIC EQUIPMENT ACCESSORIES,Surgery,NHS LOGISTICS,WSWI777569,15.49,
Department of Health,Salisbury NHS Foundation Trust,23-Jul-10,M & S EQUIPELECTEQUIPINST - OTHER,Facilities Directorate,NHS LOGISTICS,WSWI777569,15.49,
Department of Health,Salisbury NHS Foundation Trust,23-Jul-10,DRESSINGS - PRE STERILE,Surgery,NHS LOGISTICS,WSWI777569,15.52,
Department of Health,Salisbury NHS Foundation Trust,23-Jul-10,BEVERAGES & AMBIENT FOOD,Facilities Directorate,NHS LOGISTICS,WSWI777569,15.52,
Department of Health,Salisbury NHS Foundation Trust,23-Jul-10,STATIONERY SUNDRIES,Human Resources,NHS LOGISTICS,WSWI777569,15.54,
Department of Health,Salisbury NHS Foundation Trust,23-Jul-10,M & S EQUIPELECTEQUIPINST - OTHER,Medicine,NHS LOGISTICS,WSWI777569,15.57,
Department of Health,Salisbury NHS Foundation Trust,23-Jul-10,M & S EQUIPELECTEQUIPINST - OTHER,Clinical Support and Family Services,NHS LOGISTICS,WSWI777569,15.57,
Department of Health,Salisbury NHS Foundation Trust,23-Jul-10,M & S EQUIPELECTEQUIPINST - OTHER,Critical care,NHS LOGISTICS,WSWI777569,15.57,
Department of Health,Salisbury NHS Foundation Trust,23-Jul-10,OTHER MEDICAL SUPPLIES,Surgery,NHS LOGISTICS,WSWI777569,15.57,
Department of Health,Salisbury NHS Foundation Trust,23-Jul-10,PATIENTS INCONTINENCE,Medicine,NHS LOGISTICS,WSWI777569,15.59,
Department of Health,Salisbury NHS Foundation Trust,23-Jul-10,MEDSURGCONS - OTHER,Medicine,NHS LOGISTICS,WSWI777569,15.63,
Department of Health,Salisbury NHS Foundation Trust,23-Jul-10,MEDSURGCONS - OTHER,Medicine,NHS LOGISTICS,WSWI777569,15.63,
Department of Health,Salisbury NHS Foundation Trust,23-Jul-10,MEDSURGCONS - OTHER,Medicine,NHS LOGISTICS,WSWI777569,15.63,
Department of Health,Salisbury NHS Foundation Trust,23-Jul-10,MEDSURGCONS - OTHER,Critical care,NHS LOGISTICS,WSWI777569,15.63,
Department of Health,Salisbury NHS Foundation Trust,23-Jul-10,MEDSURGCONS - OTHER,Medicine,NHS LOGISTICS,WSWI777569,15.63,
Department of Health,Salisbury NHS Foundation Trust,23-Jul-10,MEDSURGCONS - OTHER,Surgery,NHS LOGISTICS,WSWI777569,15.63,
Department of Health,Salisbury NHS Foundation Trust,23-Jul-10,MEDSURGCONS - OTHER,Surgery,NHS LOGISTICS,WSWI777569,15.63,
Department of Health,Salisbury NHS Foundation Trust,23-Jul-10,MEDSURGCONS - OTHER,Surgery,NHS LOGISTICS,WSWI777569,15.63,
Department of Health,Salisbury NHS Foundation Trust,23-Jul-10,CLEANING MATERIALS PRODUCTS SUNDRIES,Surgery,NHS LOGISTICS,WSWI777569,15.66,
Department of Health,Salisbury NHS Foundation Trust,23-Jul-10,CLEANING MATERIALS PRODUCTS SUNDRIES,Medicine,NHS LOGISTICS,WSWI777569,15.66,
Department of Health,Salisbury NHS Foundation Trust,23-Jul-10,BEVERAGES & AMBIENT FOOD,Facilities Directorate,NHS LOGISTICS,WSWI777569,15.66,
Department of Health,Salisbury NHS Foundation Trust,23-Jul-10,CLEANING MATERIALS PRODUCTS SUNDRIES,Medicine,NHS LOGISTICS,WSWI777569,15.66,
Department of Health,Salisbury NHS Foundation Trust,23-Jul-10,MEDSURGCONS - OTHER,Medicine,NHS LOGISTICS,WSWI777569,15.74,
Department of Health,Salisbury NHS Foundation Trust,23-Jul-10,MEDSURGCONS - OTHER,Clinical Support and Family Services,NHS LOGISTICS,WSWI777569,15.74,
Department of Health,Salisbury NHS Foundation Trust,23-Jul-10,MEDSURGCONS - OTHER,Surgery,NHS LOGISTICS,WSWI777569,15.74,
Department of Health,Salisbury NHS Foundation Trust,23-Jul-10,DISPOSABLE THEATRE DRAPES WIPES,Medicine,NHS LOGISTICS,WSWI777569,15.76,
Department of Health,Salisbury NHS Foundation Trust,23-Jul-10,SURGICAL INSTRUMENTS: GENERAL,Surgery,NHS LOGISTICS,WSWI777569,15.83,
Department of Health,Salisbury NHS Foundation Trust,23-Jul-10,SURGICAL INSTRUMENTS: GENERAL,Clinical Support and Family Services,NHS LOGISTICS,WSWI777569,15.84,
Department of Health,Salisbury NHS Foundation Trust,23-Jul-10,BEVERAGES & AMBIENT FOOD,Facilities Directorate,NHS LOGISTICS,WSWI777569,15.84,
Department of Health,Salisbury NHS Foundation Trust,23-Jul-10,DRESSINGS - PRE STERILE,Surgery,NHS LOGISTICS,WSWI777569,15.86,
Department of Health,Salisbury NHS Foundation Trust,23-Jul-10,DRESSINGS - PRE STERILE,Surgery,NHS LOGISTICS,WSWI777569,15.86,
Department of Health,Salisbury NHS Foundation Trust,23-Jul-10,M & S EQUIPELECTEQUIPINST - OTHER,Medicine,NHS LOGISTICS,WSWI777569,15.88,
Department of Health,Salisbury NHS Foundation Trust,23-Jul-10,M & S EQUIPELECTEQUIPINST - OTHER,Medicine,NHS LOGISTICS,WSWI777569,15.88,
Department of Health,Salisbury NHS Foundation Trust,23-Jul-10,COOKING & KITCHEN UTENSILS,Surgery,NHS LOGISTICS,WSWI777569,15.89,
Department of Health,Salisbury NHS Foundation Trust,23-Jul-10,MEDSURGCONS - OTHER,Medicine,NHS LOGISTICS,WSWI777569,15.91,
Department of Health,Salisbury NHS Foundation Trust,23-Jul-10,MEDSURGCONS - OTHER,Medicine,NHS LOGISTICS,WSWI777569,15.91,
Department of Health,Salisbury NHS Foundation Trust,23-Jul-10,MEDSURGCONS - OTHER,Critical care,NHS LOGISTICS,WSWI777569,15.91,
Department of Health,Salisbury NHS Foundation Trust,23-Jul-10,MEDSURGCONS - OTHER,Medicine,NHS LOGISTICS,WSWI777569,15.93,
Department of Health,Salisbury NHS Foundation Trust,23-Jul-10,SURGICAL INSTRUMENTS: GENERAL,Medicine,NHS LOGISTICS,WSWI777569,15.96,
Department of Health,Salisbury NHS Foundation Trust,23-Jul-10,BEVERAGES & AMBIENT FOOD,Facilities Directorate,NHS LOGISTICS,WSWI777569,16,
Department of Health,Salisbury NHS Foundation Trust,23-Jul-10,MED SURG EQUIP REP MAINT CLEANING,Clinical Support and Family Services,NHS LOGISTICS,WSWI777569,16.04,
Department of Health,Salisbury NHS Foundation Trust,23-Jul-10,FRUIT & VEGETABLES,Facilities Directorate,NHS LOGISTICS,WSWI777569,16.08,
Department of Health,Salisbury NHS Foundation Trust,23-Jul-10,FRUIT & VEGETABLES,Facilities Directorate,NHS LOGISTICS,WSWI777569,16.08,
Department of Health,Salisbury NHS Foundation Trust,23-Jul-10,PAPER ITEMS GENERAL STATIONERY SUNDRIES,Corporate Directorate,NHS LOGISTICS,WSWI777569,16.09,
Department of Health,Salisbury NHS Foundation Trust,23-Jul-10,PAPER ITEMS GENERAL STATIONERY SUNDRIES,Corporate Directorate,NHS LOGISTICS,WSWI777569,16.09,
Department of Health,Salisbury NHS Foundation Trust,23-Jul-10,DRESSINGS - PRE STERILE,Surgery,NHS LOGISTICS,WSWI777569,16.26,
Department of Health,Salisbury NHS Foundation Trust,23-Jul-10,MEDSURGCONS - OTHER,Surgery,NHS LOGISTICS,WSWI777569,16.34,
Department of Health,Salisbury NHS Foundation Trust,23-Jul-10,MEDSURGCONS - OTHER,Critical care,NHS LOGISTICS,WSWI777569,16.38,
Department of Health,Salisbury NHS Foundation Trust,23-Jul-10,MEDSURGCONS - OTHER,Surgery,NHS LOGISTICS,WSWI777569,16.39,
Department of Health,Salisbury NHS Foundation Trust,23-Jul-10,BAGS SACKS - OTHER,Surgery,NHS LOGISTICS,WSWI777569,16.41,
Department of Health,Salisbury NHS Foundation Trust,23-Jul-10,LIQUID REFRESHMENTS,Facilities Directorate,NHS LOGISTICS,WSWI777569,16.48,
Department of Health,Salisbury NHS Foundation Trust,23-Jul-10,TOILETRIES PERSONAL HYGIENE PRODUCTS,Medicine,NHS LOGISTICS,WSWI777569,16.54,
Department of Health,Salisbury NHS Foundation Trust,23-Jul-10,TOILETRIES PERSONAL HYGIENE PRODUCTS,Medicine,NHS LOGISTICS,WSWI777569,16.54,
Department of Health,Salisbury NHS Foundation Trust,23-Jul-10,BEVERAGES & AMBIENT FOOD,Facilities Directorate,NHS LOGISTICS,WSWI777569,16.6,
Department of Health,Salisbury NHS Foundation Trust,23-Jul-10,DRUGS,Critical care,NHS LOGISTICS,WSWI777569,16.7,
Department of Health,Salisbury NHS Foundation Trust,23-Jul-10,PATIENTS INCONTINENCE,Critical care,NHS LOGISTICS,WSWI777569,16.71,
Department of Health,Salisbury NHS Foundation Trust,23-Jul-10,PATIENTS INCONTINENCE,Surgery,NHS LOGISTICS,WSWI777569,16.71,
Department of Health,Salisbury NHS Foundation Trust,23-Jul-10,PATIENTS INCONTINENCE,Medicine,NHS LOGISTICS,WSWI777569,16.71,
Department of Health,Salisbury NHS Foundation Trust,23-Jul-10,MEDSURGCONS - OTHER,Critical care,NHS LOGISTICS,WSWI777569,16.72,
Department of Health,Salisbury NHS Foundation Trust,23-Jul-10,MEDSURGCONS - OTHER,Critical care,NHS LOGISTICS,WSWI777569,16.72,
Department of Health,Salisbury NHS Foundation Trust,23-Jul-10,MEDSURGCONS - OTHER,Surgery,NHS LOGISTICS,WSWI777569,16.75,
Department of Health,Salisbury NHS Foundation Trust,23-Jul-10,MEDSURGCONS - OTHER,Clinical Support and Family Services,NHS LOGISTICS,WSWI777569,16.77,
Department of Health,Salisbury NHS Foundation Trust,23-Jul-10,MEDSURGCONS - OTHER,Facilities Directorate,NHS LOGISTICS,WSWI777569,16.77,
Department of Health,Salisbury NHS Foundation Trust,23-Jul-10,EGGS MILK OTHER DAIRY PRODUCTS,Facilities Directorate,NHS LOGISTICS,WSWI777569,16.8,
Department of Health,Salisbury NHS Foundation Trust,23-Jul-10,EGGS MILK OTHER DAIRY PRODUCTS,Facilities Directorate,NHS LOGISTICS,WSWI777569,16.8,
Department of Health,Salisbury NHS Foundation Trust,23-Jul-10,MEDSURGCONS - OTHER,Surgery,NHS LOGISTICS,WSWI777569,16.81,
Department of Health,Salisbury NHS Foundation Trust,23-Jul-10,MEDSURGCONS - OTHER,Medicine,NHS LOGISTICS,WSWI777569,16.89,
Department of Health,Salisbury NHS Foundation Trust,23-Jul-10,MEDSURGCONS - OTHER,Medicine,NHS LOGISTICS,WSWI777569,16.89,
Department of Health,Salisbury NHS Foundation Trust,23-Jul-10,DRUGS,Clinical Support and Family Services,NHS LOGISTICS,WSWI777569,16.9,
Department of Health,Salisbury NHS Foundation Trust,23-Jul-10,SURGICAL INSTRUMENTS: DISPOSABLE,Surgery,NHS LOGISTICS,WSWI777569,16.9,
Department of Health,Salisbury NHS Foundation Trust,23-Jul-10,BEVERAGES & AMBIENT FOOD,Facilities Directorate,NHS LOGISTICS,WSWI777569,16.92,
Department of Health,Salisbury NHS Foundation Trust,23-Jul-10,MEDSURGCONS-SUTURES,Surgery,NHS LOGISTICS,WSWI777569,17.04,
Department of Health,Salisbury NHS Foundation Trust,23-Jul-10,MEDSURGCONS - OTHER,Medicine,NHS LOGISTICS,WSWI777569,17.08,
Department of Health,Salisbury NHS Foundation Trust,23-Jul-10,HARD/SOFTWARE-OFF THE SHELF APPLICATIONS,Clinical Support and Family Services,NHS LOGISTICS,WSWI777569,17.09,
Department of Health,Salisbury NHS Foundation Trust,23-Jul-10,HEALTHCARE - WEAR,Facilities Directorate,NHS LOGISTICS,WSWI777569,17.12,
Department of Health,Salisbury NHS Foundation Trust,23-Jul-10,PATIENT APPLIANCES,Surgery,NHS LOGISTICS,WSWI777569,17.13,
Department of Health,Salisbury NHS Foundation Trust,23-Jul-10,MEDSURGCONS - OTHER,Surgery,NHS LOGISTICS,WSWI777569,17.15,
Department of Health,Salisbury NHS Foundation Trust,23-Jul-10,LAB EQUIP-LABORATORY APPARATUS,Clinical Support and Family Services,NHS LOGISTICS,WSWI777569,17.21,
Department of Health,Salisbury NHS Foundation Trust,23-Jul-10,LIQUID REFRESHMENTS,Facilities Directorate,NHS LOGISTICS,WSWI777569,17.28,
Department of Health,Salisbury NHS Foundation Trust,23-Jul-10,LIQUID REFRESHMENTS,Facilities Directorate,NHS LOGISTICS,WSWI777569,17.28,
Department of Health,Salisbury NHS Foundation Trust,23-Jul-10,FRUIT & VEGETABLES,Facilities Directorate,NHS LOGISTICS,WSWI777569,17.34,
Department of Health,Salisbury NHS Foundation Trust,23-Jul-10,FRUIT & VEGETABLES,Facilities Directorate,NHS LOGISTICS,WSWI777569,17.34,
Department of Health,Salisbury NHS Foundation Trust,23-Jul-10,TISSUES HAND TOWELS & TOILET PAPER,Surgery,NHS LOGISTICS,WSWI777569,17.36,
Department of Health,Salisbury NHS Foundation Trust,23-Jul-10,TISSUES HAND TOWELS & TOILET PAPER,Medicine,NHS LOGISTICS,WSWI777569,17.36,
Department of Health,Salisbury NHS Foundation Trust,23-Jul-10,TISSUES HAND TOWELS & TOILET PAPER,Facilities Directorate,NHS LOGISTICS,WSWI777569,17.36,
Department of Health,Salisbury NHS Foundation Trust,23-Jul-10,DISPOSABLE THEATRE DRAPES WIPES,Medicine,NHS LOGISTICS,WSWI777569,17.36,
Department of Health,Salisbury NHS Foundation Trust,23-Jul-10,DRUGS,Surgery,NHS LOGISTICS,WSWI777569,17.46,
Department of Health,Salisbury NHS Foundation Trust,23-Jul-10,MEDSURGCONS - OTHER,Surgery,NHS LOGISTICS,WSWI777569,17.53,
Department of Health,Salisbury NHS Foundation Trust,23-Jul-10,PAPER ITEMS GENERAL STATIONERY SUNDRIES,Clinical Support and Family Services,NHS LOGISTICS,WSWI777569,17.54,
Department of Health,Salisbury NHS Foundation Trust,23-Jul-10,M & S EQUIPELECTEQUIPINST - OTHER,Critical care,NHS LOGISTICS,WSWI777569,17.6,
Department of Health,Salisbury NHS Foundation Trust,23-Jul-10,HARD/SOFTWARE-OFF THE SHELF APPLICATIONS,Critical care,NHS LOGISTICS,WSWI777569,17.63,
Department of Health,Salisbury NHS Foundation Trust,23-Jul-10,MEDSURGCONS - OTHER,Medicine,NHS LOGISTICS,WSWI777569,17.7,
Department of Health,Salisbury NHS Foundation Trust,23-Jul-10,MEDSURGCONS - OTHER,Surgery,NHS LOGISTICS,WSWI777569,17.7,
Department of Health,Salisbury NHS Foundation Trust,23-Jul-10,MEDSURGCONS - OTHER,Surgery,NHS LOGISTICS,WSWI777569,17.7,
Department of Health,Salisbury NHS Foundation Trust,23-Jul-10,MEDSURGCONS - OTHER,Medicine,NHS LOGISTICS,WSWI777569,17.7,
Department of Health,Salisbury NHS Foundation Trust,23-Jul-10,M & S EQUIPELECTEQUIPINST - OTHER,Clinical Support and Family Services,NHS LOGISTICS,WSWI777569,17.72,
Department of Health,Salisbury NHS Foundation Trust,23-Jul-10,M & S EQUIPELECTEQUIPINST - OTHER,Critical care,NHS LOGISTICS,WSWI777569,17.72,
Department of Health,Salisbury NHS Foundation Trust,23-Jul-10,M & S EQUIPELECTEQUIPINST - OTHER,Surgery,NHS LOGISTICS,WSWI777569,17.72,
Department of Health,Salisbury NHS Foundation Trust,23-Jul-10,M & S EQUIPELECTEQUIPINST - OTHER,Medicine,NHS LOGISTICS,WSWI777569,17.72,
Department of Health,Salisbury NHS Foundation Trust,23-Jul-10,DRESSINGS - PRE STERILE,Critical care,NHS LOGISTICS,WSWI777569,17.79,
Department of Health,Salisbury NHS Foundation Trust,23-Jul-10,DRESSINGS - PRE STERILE,Critical care,NHS LOGISTICS,WSWI777569,17.97,
Department of Health,Salisbury NHS Foundation Trust,23-Jul-10,DRUGS,Surgery,NHS LOGISTICS,WSWI777569,17.97,
Department of Health,Salisbury NHS Foundation Trust,23-Jul-10,BEVERAGES & AMBIENT FOOD,Facilities Directorate,NHS LOGISTICS,WSWI777569,18,
Department of Health,Salisbury NHS Foundation Trust,23-Jul-10,MEDSURGCONS - OTHER,Critical care,NHS LOGISTICS,WSWI777569,18,
Department of Health,Salisbury NHS Foundation Trust,23-Jul-10,OTHER MEDICAL SUPPLIES,Clinical Support and Family Services,NHS LOGISTICS,WSWI777569,18.03,
Department of Health,Salisbury NHS Foundation Trust,23-Jul-10,MEDSURGCONS - OTHER,Surgery,NHS LOGISTICS,WSWI777569,18.04,
Department of Health,Salisbury NHS Foundation Trust,23-Jul-10,PAPER ITEMS GENERAL STATIONERY SUNDRIES,Medicine,NHS LOGISTICS,WSWI777569,18.09,
Department of Health,Salisbury NHS Foundation Trust,23-Jul-10,PAPER ITEMS GENERAL STATIONERY SUNDRIES,Medicine,NHS LOGISTICS,WSWI777569,18.18,
Department of Health,Salisbury NHS Foundation Trust,23-Jul-10,FRUIT & VEGETABLES,Facilities Directorate,NHS LOGISTICS,WSWI777569,18.2,
Department of Health,Salisbury NHS Foundation Trust,23-Jul-10,FRUIT & VEGETABLES,Facilities Directorate,NHS LOGISTICS,WSWI777569,18.2,
Department of Health,Salisbury NHS Foundation Trust,23-Jul-10,DRESSINGS - PRE STERILE,Critical care,NHS LOGISTICS,WSWI777569,18.27,
Department of Health,Salisbury NHS Foundation Trust,23-Jul-10,MEDSURGCONS - OTHER,Surgery,NHS LOGISTICS,WSWI777569,18.27,
Department of Health,Salisbury NHS Foundation Trust,23-Jul-10,PAPER ITEMS GENERAL STATIONERY SUNDRIES,Clinical Support and Family Services,NHS LOGISTICS,WSWI777569,18.28,
Department of Health,Salisbury NHS Foundation Trust,23-Jul-10,MEDSURGCONS - OTHER,Clinical Support and Family Services,NHS LOGISTICS,WSWI777569,18.28,
Department of Health,Salisbury NHS Foundation Trust,23-Jul-10,DRESSINGS - PRE STERILE,Critical care,NHS LOGISTICS,WSWI777569,18.36,
Department of Health,Salisbury NHS Foundation Trust,23-Jul-10,BEVERAGES & AMBIENT FOOD,Facilities Directorate,NHS LOGISTICS,WSWI777569,18.36,
Department of Health,Salisbury NHS Foundation Trust,23-Jul-10,FRUIT & VEGETABLES,Facilities Directorate,NHS LOGISTICS,WSWI777569,18.36,
Department of Health,Salisbury NHS Foundation Trust,23-Jul-10,PAPER ITEMS GENERAL STATIONERY SUNDRIES,Medicine,NHS LOGISTICS,WSWI777569,18.47,
Department of Health,Salisbury NHS Foundation Trust,23-Jul-10,PAPER ITEMS GENERAL STATIONERY SUNDRIES,Medicine,NHS LOGISTICS,WSWI777569,18.47,
Department of Health,Salisbury NHS Foundation Trust,23-Jul-10,MEDSURGCONS - OTHER,Medicine,NHS LOGISTICS,WSWI777569,18.47,
Department of Health,Salisbury NHS Foundation Trust,23-Jul-10,MEDSURGCONS - OTHER,Surgery,NHS LOGISTICS,WSWI777569,18.47,
Department of Health,Salisbury NHS Foundation Trust,23-Jul-10,PAPER ITEMS GENERAL STATIONERY SUNDRIES,Surgery,NHS LOGISTICS,WSWI777569,18.47,
Department of Health,Salisbury NHS Foundation Trust,23-Jul-10,MEDSURGCONS - OTHER,Medicine,NHS LOGISTICS,WSWI777569,18.47,
Department of Health,Salisbury NHS Foundation Trust,23-Jul-10,HEALTHCARE - WEAR,Medicine,NHS LOGISTICS,WSWI777569,18.56,
Department of Health,Salisbury NHS Foundation Trust,23-Jul-10,MEDSURGCONS - OTHER,Medicine,NHS LOGISTICS,WSWI777569,18.68,
Department of Health,Salisbury NHS Foundation Trust,23-Jul-10,MEDSURGCONS - OTHER,Clinical Support and Family Services,NHS LOGISTICS,WSWI777569,18.68,
Department of Health,Salisbury NHS Foundation Trust,23-Jul-10,MEDSURGCONS - OTHER,Surgery,NHS LOGISTICS,WSWI777569,18.68,
Department of Health,Salisbury NHS Foundation Trust,23-Jul-10,MEDSURGCONS - OTHER,Surgery,NHS LOGISTICS,WSWI777569,18.68,
Department of Health,Salisbury NHS Foundation Trust,23-Jul-10,MEDSURGCONS - OTHER,Surgery,NHS LOGISTICS,WSWI777569,18.68,
Department of Health,Salisbury NHS Foundation Trust,23-Jul-10,DRESSINGS - PRE STERILE,Surgery,NHS LOGISTICS,WSWI777569,18.68,
Department of Health,Salisbury NHS Foundation Trust,23-Jul-10,MEDSURGCONS - OTHER,Medicine,NHS LOGISTICS,WSWI777569,18.68,
Department of Health,Salisbury NHS Foundation Trust,23-Jul-10,MEDSURGCONS - OTHER,Medicine,NHS LOGISTICS,WSWI777569,18.68,
Department of Health,Salisbury NHS Foundation Trust,23-Jul-10,MEDSURGCONS - OTHER,Medicine,NHS LOGISTICS,WSWI777569,18.68,
Department of Health,Salisbury NHS Foundation Trust,23-Jul-10,PAPER ITEMS GENERAL STATIONERY SUNDRIES,Corporate Directorate,NHS LOGISTICS,WSWI777569,18.72,
Department of Health,Salisbury NHS Foundation Trust,23-Jul-10,MEDSURGCONS - OTHER,Medicine,NHS LOGISTICS,WSWI777569,18.74,
Department of Health,Salisbury NHS Foundation Trust,23-Jul-10,MEDSURGCONS - OTHER,Medicine,NHS LOGISTICS,WSWI777569,18.74,
Department of Health,Salisbury NHS Foundation Trust,23-Jul-10,MEDSURGCONS - OTHER,Surgery,NHS LOGISTICS,WSWI777569,18.74,
Department of Health,Salisbury NHS Foundation Trust,23-Jul-10,DRESSINGS - PRE STERILE,Surgery,NHS LOGISTICS,WSWI777569,18.77,
Department of Health,Salisbury NHS Foundation Trust,23-Jul-10,DISPOSABLE THEATRE DRAPES WIPES,Surgery,NHS LOGISTICS,WSWI777569,18.79,
Department of Health,Salisbury NHS Foundation Trust,23-Jul-10,DISPOSABLE THEATRE DRAPES WIPES,Surgery,NHS LOGISTICS,WSWI777569,18.79,
Department of Health,Salisbury NHS Foundation Trust,23-Jul-10,HARD/SOFTWARE-OFF THE SHELF APPLICATIONS,Clinical Support and Family Services,NHS LOGISTICS,WSWI777569,18.86,
Department of Health,Salisbury NHS Foundation Trust,23-Jul-10,MEDSURGCONS - OTHER,Clinical Support and Family Services,NHS LOGISTICS,WSWI777569,18.89,
Department of Health,Salisbury NHS Foundation Trust,23-Jul-10,MEDSURGCONS - OTHER,Surgery,NHS LOGISTICS,WSWI777569,18.89,
Department of Health,Salisbury NHS Foundation Trust,23-Jul-10,HEALTHCARE - WEAR,Surgery,NHS LOGISTICS,WSWI777569,18.89,
Department of Health,Salisbury NHS Foundation Trust,23-Jul-10,DISPOSABLE THEATRE DRAPES WIPES,Medicine,NHS LOGISTICS,WSWI777569,19.06,
Department of Health,Salisbury NHS Foundation Trust,23-Jul-10,NON DISPOSABLE BED LINEN,Medicine,NHS LOGISTICS,WSWI777569,19.06,
Department of Health,Salisbury NHS Foundation Trust,23-Jul-10,MEDSURGCONS - OTHER,Critical care,NHS LOGISTICS,WSWI777569,19.1,
Department of Health,Salisbury NHS Foundation Trust,23-Jul-10,MEDSURGCONS - OTHER,Clinical Support and Family Services,NHS LOGISTICS,WSWI777569,19.22,
Department of Health,Salisbury NHS Foundation Trust,23-Jul-10,MEDSURGCONS - OTHER,Clinical Support and Family Services,NHS LOGISTICS,WSWI777569,19.22,
Department of Health,Salisbury NHS Foundation Trust,23-Jul-10,M & S EQUIPELECTEQUIPINST - OTHER,Surgery,NHS LOGISTICS,WSWI777569,19.23,
Department of Health,Salisbury NHS Foundation Trust,23-Jul-10,BAGS SACKS - OTHER,Facilities Directorate,NHS LOGISTICS,WSWI777569,19.23,
Department of Health,Salisbury NHS Foundation Trust,23-Jul-10,M & S EQUIPELECTEQUIPINST - OTHER,Surgery,NHS LOGISTICS,WSWI777569,19.23,
Department of Health,Salisbury NHS Foundation Trust,23-Jul-10,COOKING & KITCHEN UTENSILS,Facilities Directorate,NHS LOGISTICS,WSWI777569,19.23,
Department of Health,Salisbury NHS Foundation Trust,23-Jul-10,LIQUID REFRESHMENTS,Facilities Directorate,NHS LOGISTICS,WSWI777569,19.3,
Department of Health,Salisbury NHS Foundation Trust,23-Jul-10,DISPOSABLE THEATRE DRAPES WIPES,Surgery,NHS LOGISTICS,WSWI777569,19.34,
Department of Health,Salisbury NHS Foundation Trust,23-Jul-10,DRUGS,Clinical Support and Family Services,NHS LOGISTICS,WSWI777569,19.4,
Department of Health,Salisbury NHS Foundation Trust,23-Jul-10,FRUIT & VEGETABLES,Facilities Directorate,NHS LOGISTICS,WSWI777569,19.44,
Department of Health,Salisbury NHS Foundation Trust,23-Jul-10,DRESSINGS - PRE STERILE,Critical care,NHS LOGISTICS,WSWI777569,19.47,
Department of Health,Salisbury NHS Foundation Trust,23-Jul-10,DRESSINGS - PRE STERILE,Critical care,NHS LOGISTICS,WSWI777569,19.47,
Department of Health,Salisbury NHS Foundation Trust,23-Jul-10,MEDSURGCONS - OTHER,Surgery,NHS LOGISTICS,WSWI777569,19.57,
Department of Health,Salisbury NHS Foundation Trust,23-Jul-10,BEVERAGES & AMBIENT FOOD,Facilities Directorate,NHS LOGISTICS,WSWI777569,19.68,
Department of Health,Salisbury NHS Foundation Trust,23-Jul-10,BEVERAGES & AMBIENT FOOD,Facilities Directorate,NHS LOGISTICS,WSWI777569,19.68,
Department of Health,Salisbury NHS Foundation Trust,23-Jul-10,DISPOSABLE THEATRE DRAPES WIPES,Surgery,NHS LOGISTICS,WSWI777569,19.7,
Department of Health,Salisbury NHS Foundation Trust,23-Jul-10,DRESSINGS - PRE STERILE,Clinical Support and Family Services,NHS LOGISTICS,WSWI777569,19.83,
Department of Health,Salisbury NHS Foundation Trust,23-Jul-10,MEDSURGCONS - OTHER,Surgery,NHS LOGISTICS,WSWI777569,19.91,
Department of Health,Salisbury NHS Foundation Trust,23-Jul-10,SURGICAL INSTRUMENTS: GENERAL,Surgery,NHS LOGISTICS,WSWI777569,19.95,
Department of Health,Salisbury NHS Foundation Trust,23-Jul-10,DRESSINGS - PRE STERILE,Critical care,NHS LOGISTICS,WSWI777569,19.99,
Department of Health,Salisbury NHS Foundation Trust,23-Jul-10,PATIENT APPLIANCES,Medicine,NHS LOGISTICS,WSWI777569,20.09,
Department of Health,Salisbury NHS Foundation Trust,23-Jul-10,PATIENT APPLIANCES,Medicine,NHS LOGISTICS,WSWI777569,20.09,
Department of Health,Salisbury NHS Foundation Trust,23-Jul-10,PATIENT APPLIANCES,Medicine,NHS LOGISTICS,WSWI777569,20.09,
Department of Health,Salisbury NHS Foundation Trust,23-Jul-10,PATIENT APPLIANCES,Medicine,NHS LOGISTICS,WSWI777569,20.09,
Department of Health,Salisbury NHS Foundation Trust,23-Jul-10,PATIENT APPLIANCES,Medicine,NHS LOGISTICS,WSWI777569,20.09,
Department of Health,Salisbury NHS Foundation Trust,23-Jul-10,MEDSURGCONS - OTHER,Clinical Support and Family Services,NHS LOGISTICS,WSWI777569,20.1,
Department of Health,Salisbury NHS Foundation Trust,23-Jul-10,DRESSINGS - PRE STERILE,Surgery,NHS LOGISTICS,WSWI777569,20.12,
Department of Health,Salisbury NHS Foundation Trust,23-Jul-10,STATIONERY SUNDRIES,Medicine,NHS LOGISTICS,WSWI777569,20.12,
Department of Health,Salisbury NHS Foundation Trust,23-Jul-10,DRESSINGS - PRE STERILE,Clinical Support and Family Services,NHS LOGISTICS,WSWI777569,20.15,
Department of Health,Salisbury NHS Foundation Trust,23-Jul-10,FRUIT & VEGETABLES,Facilities Directorate,NHS LOGISTICS,WSWI777569,20.16,
Department of Health,Salisbury NHS Foundation Trust,23-Jul-10,DRESSINGS  -  PROCEDURE PACKS,Critical care,NHS LOGISTICS,WSWI777569,20.17,
Department of Health,Salisbury NHS Foundation Trust,23-Jul-10,OTHER MEDICAL SUPPLIES,Surgery,NHS LOGISTICS,WSWI777569,20.26,
Department of Health,Salisbury NHS Foundation Trust,23-Jul-10,DRESSINGS - PRE STERILE,Medicine,NHS LOGISTICS,WSWI777569,20.34,
Department of Health,Salisbury NHS Foundation Trust,23-Jul-10,PAPER ITEMS GENERAL STATIONERY SUNDRIES,Corporate Directorate,NHS LOGISTICS,WSWI777569,20.34,
Department of Health,Salisbury NHS Foundation Trust,23-Jul-10,BEVERAGES & AMBIENT FOOD,Facilities Directorate,NHS LOGISTICS,WSWI777569,20.4,
Department of Health,Salisbury NHS Foundation Trust,23-Jul-10,COOKING & KITCHEN UTENSILS,Medicine,NHS LOGISTICS,WSWI777569,20.43,
Department of Health,Salisbury NHS Foundation Trust,23-Jul-10,MEDSURGCONS - OTHER,Surgery,NHS LOGISTICS,WSWI777569,20.46,
Department of Health,Salisbury NHS Foundation Trust,23-Jul-10,BEVERAGES & AMBIENT FOOD,Medicine,NHS LOGISTICS,WSWI777569,20.5,
Department of Health,Salisbury NHS Foundation Trust,23-Jul-10,BEVERAGES & AMBIENT FOOD,Facilities Directorate,NHS LOGISTICS,WSWI777569,20.5,
Department of Health,Salisbury NHS Foundation Trust,23-Jul-10,DRESSINGS - PRE STERILE,Surgery,NHS LOGISTICS,WSWI777569,20.53,
Department of Health,Salisbury NHS Foundation Trust,23-Jul-10,MEDSURGCONS - OTHER,Surgery,NHS LOGISTICS,WSWI777569,20.58,
Department of Health,Salisbury NHS Foundation Trust,23-Jul-10,MEDSURGCONS - OTHER,Medicine,NHS LOGISTICS,WSWI777569,20.6,
Department of Health,Salisbury NHS Foundation Trust,23-Jul-10,FRUIT & VEGETABLES,Facilities Directorate,NHS LOGISTICS,WSWI777569,20.64,
Department of Health,Salisbury NHS Foundation Trust,23-Jul-10,FRUIT & VEGETABLES,Facilities Directorate,NHS LOGISTICS,WSWI777569,20.64,
Department of Health,Salisbury NHS Foundation Trust,23-Jul-10,MEDSURGCONS - OTHER,Surgery,NHS LOGISTICS,WSWI777569,20.76,
Department of Health,Salisbury NHS Foundation Trust,23-Jul-10,MEDSURGCONS - OTHER,Critical care,NHS LOGISTICS,WSWI777569,20.76,
Department of Health,Salisbury NHS Foundation Trust,23-Jul-10,OTHER MEDICAL SUPPLIES,Medicine,NHS LOGISTICS,WSWI777569,20.77,
Department of Health,Salisbury NHS Foundation Trust,23-Jul-10,DISPOSABLE THEATRE DRAPES WIPES,Medicine,NHS LOGISTICS,WSWI777569,20.83,
Department of Health,Salisbury NHS Foundation Trust,23-Jul-10,TOILETRIES PERSONAL HYGIENE PRODUCTS,Medicine,NHS LOGISTICS,WSWI777569,20.86,
Department of Health,Salisbury NHS Foundation Trust,23-Jul-10,DRESSINGS - PRE STERILE,Critical care,NHS LOGISTICS,WSWI777569,20.9,
Department of Health,Salisbury NHS Foundation Trust,23-Jul-10,PAPER ITEMS GENERAL STATIONERY SUNDRIES,Medicine,NHS LOGISTICS,WSWI777569,20.99,
Department of Health,Salisbury NHS Foundation Trust,23-Jul-10,PATIENTS BEDWEAR UNISEX,Medicine,NHS LOGISTICS,WSWI777569,21.21,
Department of Health,Salisbury NHS Foundation Trust,23-Jul-10,OTHER MEDICAL SUPPLIES,Surgery,NHS LOGISTICS,WSWI777569,21.28,
Department of Health,Salisbury NHS Foundation Trust,23-Jul-10,OTHER MEDICAL SUPPLIES,Clinical Support and Family Services,NHS LOGISTICS,WSWI777569,21.53,
Department of Health,Salisbury NHS Foundation Trust,23-Jul-10,MEDSURGCONS - OTHER,Surgery,NHS LOGISTICS,WSWI777569,21.62,
Department of Health,Salisbury NHS Foundation Trust,23-Jul-10,DISPOSABLE THEATRE DRAPES WIPES,Medicine,NHS LOGISTICS,WSWI777569,21.65,
Department of Health,Salisbury NHS Foundation Trust,23-Jul-10,DISPOSABLE THEATRE DRAPES WIPES,Surgery,NHS LOGISTICS,WSWI777569,21.65,
Department of Health,Salisbury NHS Foundation Trust,23-Jul-10,DISPOSABLE THEATRE DRAPES WIPES,Surgery,NHS LOGISTICS,WSWI777569,21.65,
Department of Health,Salisbury NHS Foundation Trust,23-Jul-10,BEVERAGES & AMBIENT FOOD,Facilities Directorate,NHS LOGISTICS,WSWI777569,21.66,
Department of Health,Salisbury NHS Foundation Trust,23-Jul-10,MEDSURGCONS-SUTURES,Surgery,NHS LOGISTICS,WSWI777569,21.69,
Department of Health,Salisbury NHS Foundation Trust,23-Jul-10,SURGICAL INSTRUMENTS: DISPOSABLE,Facilities Directorate,NHS LOGISTICS,WSWI777569,21.69,
Department of Health,Salisbury NHS Foundation Trust,23-Jul-10,DRESSINGS - PRE STERILE,Critical care,NHS LOGISTICS,WSWI777569,21.79,
Department of Health,Salisbury NHS Foundation Trust,23-Jul-10,DISPOSABLE THEATRE DRAPES WIPES,Critical care,NHS LOGISTICS,WSWI777569,21.91,
Department of Health,Salisbury NHS Foundation Trust,23-Jul-10,DISPOSABLE THEATRE DRAPES WIPES,Critical care,NHS LOGISTICS,WSWI777569,21.91,
Department of Health,Salisbury NHS Foundation Trust,23-Jul-10,DISPOSABLE THEATRE DRAPES WIPES,Surgery,NHS LOGISTICS,WSWI777569,21.91,
Department of Health,Salisbury NHS Foundation Trust,23-Jul-10,MEDSURGCONS-SUTURES,Surgery,NHS LOGISTICS,WSWI777569,21.95,
Department of Health,Salisbury NHS Foundation Trust,23-Jul-10,MEDSURGCONS-SUTURES,Surgery,NHS LOGISTICS,WSWI777569,22.11,
Department of Health,Salisbury NHS Foundation Trust,23-Jul-10,COOKING & KITCHEN UTENSILS,Facilities Directorate,NHS LOGISTICS,WSWI777569,22.13,
Department of Health,Salisbury NHS Foundation Trust,23-Jul-10,DISPOSABLE THEATRE DRAPES WIPES,Surgery,NHS LOGISTICS,WSWI777569,22.29,
Department of Health,Salisbury NHS Foundation Trust,23-Jul-10,BAGS SACKS - OTHER,Surgery,NHS LOGISTICS,WSWI777569,22.37,
Department of Health,Salisbury NHS Foundation Trust,23-Jul-10,DISPOSABLE THEATRE DRAPES WIPES,Surgery,NHS LOGISTICS,WSWI777569,22.47,
Department of Health,Salisbury NHS Foundation Trust,23-Jul-10,DISPOSABLE THEATRE DRAPES WIPES,Surgery,NHS LOGISTICS,WSWI777569,22.67,
Department of Health,Salisbury NHS Foundation Trust,23-Jul-10,NON DISPOSABLE BED LINEN,Surgery,NHS LOGISTICS,WSWI777569,22.69,
Department of Health,Salisbury NHS Foundation Trust,23-Jul-10,PATIENT APPLIANCES,Surgery,NHS LOGISTICS,WSWI777569,22.84,
Department of Health,Salisbury NHS Foundation Trust,23-Jul-10,MEDSURGCONS - OTHER,Medicine,NHS LOGISTICS,WSWI777569,22.87,
Department of Health,Salisbury NHS Foundation Trust,23-Jul-10,STATIONERY SUNDRIES,Clinical Support and Family Services,NHS LOGISTICS,WSWI777569,22.98,
Department of Health,Salisbury NHS Foundation Trust,23-Jul-10,OTHER MEDICAL SUPPLIES,Clinical Support and Family Services,NHS LOGISTICS,WSWI777569,23.23,
Department of Health,Salisbury NHS Foundation Trust,23-Jul-10,MEDSURGCONS - OTHER,Clinical Support and Family Services,NHS LOGISTICS,WSWI777569,23.32,
Department of Health,Salisbury NHS Foundation Trust,23-Jul-10,DRESSINGS - PRE STERILE,Clinical Support and Family Services,NHS LOGISTICS,WSWI777569,23.54,
Department of Health,Salisbury NHS Foundation Trust,23-Jul-10,OFFICE EQUIP MACHINERY  -  OTHER,Surgery,NHS LOGISTICS,WSWI777569,23.74,
Department of Health,Salisbury NHS Foundation Trust,23-Jul-10,MEDSURGCONS - OTHER,Clinical Support and Family Services,NHS LOGISTICS,WSWI777569,23.82,
Department of Health,Salisbury NHS Foundation Trust,23-Jul-10,NON DISPOSABLE BED LINEN,Clinical Support and Family Services,NHS LOGISTICS,WSWI777569,23.83,
Department of Health,Salisbury NHS Foundation Trust,23-Jul-10,PATIENT APPLIANCES,Medicine,NHS LOGISTICS,WSWI777569,23.96,
Department of Health,Salisbury NHS Foundation Trust,23-Jul-10,OTHER MEDICAL SUPPLIES,Medicine,NHS LOGISTICS,WSWI777569,24.03,
Department of Health,Salisbury NHS Foundation Trust,23-Jul-10,OTHER MEDICAL SUPPLIES,Clinical Support and Family Services,NHS LOGISTICS,WSWI777569,24.03,
Department of Health,Salisbury NHS Foundation Trust,23-Jul-10,MEDSURGCONS - OTHER,Critical care,NHS LOGISTICS,WSWI777569,24.11,
Department of Health,Salisbury NHS Foundation Trust,23-Jul-10,MEDSURGCONS - OTHER,Critical care,NHS LOGISTICS,WSWI777569,24.11,
Department of Health,Salisbury NHS Foundation Trust,23-Jul-10,MEDSURGCONS - OTHER,Surgery,NHS LOGISTICS,WSWI777569,24.11,
Department of Health,Salisbury NHS Foundation Trust,23-Jul-10,MEDSURGCONS - OTHER,Surgery,NHS LOGISTICS,WSWI777569,24.11,
Department of Health,Salisbury NHS Foundation Trust,23-Jul-10,MEDSURGCONS - OTHER,Critical care,NHS LOGISTICS,WSWI777569,24.11,
Department of Health,Salisbury NHS Foundation Trust,23-Jul-10,M & S EQUIPELECTEQUIPINST - OTHER,Medicine,NHS LOGISTICS,WSWI777569,24.2,
Department of Health,Salisbury NHS Foundation Trust,23-Jul-10,MEDSURGCONS - OTHER,Clinical Support and Family Services,NHS LOGISTICS,WSWI777569,24.26,
Department of Health,Salisbury NHS Foundation Trust,23-Jul-10,DRESSINGS - PRE STERILE,Medicine,NHS LOGISTICS,WSWI777569,24.35,
Department of Health,Salisbury NHS Foundation Trust,23-Jul-10,HARD/SOFTWARE-OFF THE SHELF APPLICATIONS,Medicine,NHS LOGISTICS,WSWI777569,24.51,
Department of Health,Salisbury NHS Foundation Trust,23-Jul-10,MEDSURGCONS - OTHER,Critical care,NHS LOGISTICS,WSWI777569,24.51,
Department of Health,Salisbury NHS Foundation Trust,23-Jul-10,PATIENT APPLIANCES,Surgery,NHS LOGISTICS,WSWI777569,24.55,
Department of Health,Salisbury NHS Foundation Trust,23-Jul-10,HEALTHCARE - WEAR,Clinical Support and Family Services,NHS LOGISTICS,WSWI777569,24.64,
Department of Health,Salisbury NHS Foundation Trust,23-Jul-10,MEDSURGCONS - OTHER,Facilities Directorate,NHS LOGISTICS,WSWI777569,24.68,
Department of Health,Salisbury NHS Foundation Trust,23-Jul-10,MEDSURGCONS - OTHER,Surgery,NHS LOGISTICS,WSWI777569,24.68,
Department of Health,Salisbury NHS Foundation Trust,23-Jul-10,TISSUES HAND TOWELS & TOILET PAPER,Medicine,NHS LOGISTICS,WSWI777569,24.77,
Department of Health,Salisbury NHS Foundation Trust,23-Jul-10,TISSUES HAND TOWELS & TOILET PAPER,Critical care,NHS LOGISTICS,WSWI777569,24.77,
Department of Health,Salisbury NHS Foundation Trust,23-Jul-10,TISSUES HAND TOWELS & TOILET PAPER,Clinical Support and Family Services,NHS LOGISTICS,WSWI777569,24.77,
Department of Health,Salisbury NHS Foundation Trust,23-Jul-10,TISSUES HAND TOWELS & TOILET PAPER,Critical care,NHS LOGISTICS,WSWI777569,24.77,
Department of Health,Salisbury NHS Foundation Trust,23-Jul-10,TISSUES HAND TOWELS & TOILET PAPER,Clinical Support and Family Services,NHS LOGISTICS,WSWI777569,24.77,
Department of Health,Salisbury NHS Foundation Trust,23-Jul-10,OTHER MEDICAL SUPPLIES,Surgery,NHS LOGISTICS,WSWI777569,24.99,
Department of Health,Salisbury NHS Foundation Trust,23-Jul-10,MEDSURGCONS - OTHER,Surgery,NHS LOGISTICS,WSWI777569,25.05,
Department of Health,Salisbury NHS Foundation Trust,23-Jul-10,MEDSURGCONS - OTHER,Surgery,NHS LOGISTICS,WSWI777569,25.05,
Department of Health,Salisbury NHS Foundation Trust,23-Jul-10,MEDSURGCONS - OTHER,Surgery,NHS LOGISTICS,WSWI777569,25.05,
Department of Health,Salisbury NHS Foundation Trust,23-Jul-10,MEDSURGCONS - OTHER,Surgery,NHS LOGISTICS,WSWI777569,25.05,
Department of Health,Salisbury NHS Foundation Trust,23-Jul-10,MEDSURGCONS - OTHER,Surgery,NHS LOGISTICS,WSWI777569,25.05,
Department of Health,Salisbury NHS Foundation Trust,23-Jul-10,BEVERAGES & AMBIENT FOOD,Facilities Directorate,NHS LOGISTICS,WSWI777569,25.08,
Department of Health,Salisbury NHS Foundation Trust,23-Jul-10,MEDSURGCONS - OTHER,Surgery,NHS LOGISTICS,WSWI777569,25.32,
Department of Health,Salisbury NHS Foundation Trust,23-Jul-10,DRESSINGS  -  PROCEDURE PACKS,Facilities Directorate,NHS LOGISTICS,WSWI777569,25.43,
Department of Health,Salisbury NHS Foundation Trust,23-Jul-10,DRESSINGS  -  PROCEDURE PACKS,Medicine,NHS LOGISTICS,WSWI777569,25.53,
Department of Health,Salisbury NHS Foundation Trust,23-Jul-10,HEALTHCARE - WEAR,Clinical Support and Family Services,NHS LOGISTICS,WSWI777569,25.54,
Department of Health,Salisbury NHS Foundation Trust,23-Jul-10,MEDSURGCONS - OTHER,Surgery,NHS LOGISTICS,WSWI777569,25.63,
Department of Health,Salisbury NHS Foundation Trust,23-Jul-10,M & S EQUIPELECTEQUIPINST - OTHER,Surgery,NHS LOGISTICS,WSWI777569,25.77,
Department of Health,Salisbury NHS Foundation Trust,23-Jul-10,MEDSURGCONS-SUTURES,Clinical Support and Family Services,NHS LOGISTICS,WSWI777569,25.78,
Department of Health,Salisbury NHS Foundation Trust,23-Jul-10,MEDSURGCONS - OTHER,Medicine,NHS LOGISTICS,WSWI777569,25.79,
Department of Health,Salisbury NHS Foundation Trust,23-Jul-10,OTHER MEDICAL SUPPLIES,Surgery,NHS LOGISTICS,WSWI777569,25.96,
Department of Health,Salisbury NHS Foundation Trust,23-Jul-10,OTHER MEDICAL SUPPLIES,Medicine,NHS LOGISTICS,WSWI777569,25.96,
Department of Health,Salisbury NHS Foundation Trust,23-Jul-10,PATIENT APPLIANCES,Surgery,NHS LOGISTICS,WSWI777569,26.06,
Department of Health,Salisbury NHS Foundation Trust,23-Jul-10,MEDSURGCONS - OTHER,Critical care,NHS LOGISTICS,WSWI777569,26.15,
Department of Health,Salisbury NHS Foundation Trust,23-Jul-10,SURGICAL INSTRUMENTS: DISPOSABLE,Surgery,NHS LOGISTICS,WSWI777569,26.26,
Department of Health,Salisbury NHS Foundation Trust,23-Jul-10,DRESSINGS - PRE STERILE,Surgery,NHS LOGISTICS,WSWI777569,26.3,
Department of Health,Salisbury NHS Foundation Trust,23-Jul-10,MED SURG EQUIP REP MAINT CLEANING,Medicine,NHS LOGISTICS,WSWI777569,26.47,
Department of Health,Salisbury NHS Foundation Trust,23-Jul-10,DRESSINGS - PRE STERILE,Critical care,NHS LOGISTICS,WSWI777569,26.59,
Department of Health,Salisbury NHS Foundation Trust,23-Jul-10,FRUIT & VEGETABLES,Facilities Directorate,NHS LOGISTICS,WSWI777569,26.88,
Department of Health,Salisbury NHS Foundation Trust,23-Jul-10,COOKING & KITCHEN UTENSILS,Facilities Directorate,NHS LOGISTICS,WSWI777569,27.01,
Department of Health,Salisbury NHS Foundation Trust,23-Jul-10,MEDSURGCONS-SUTURES,Surgery,NHS LOGISTICS,WSWI777569,27.15,
Department of Health,Salisbury NHS Foundation Trust,23-Jul-10,MEDSURGCONS - OTHER,Surgery,NHS LOGISTICS,WSWI777569,27.23,
Department of Health,Salisbury NHS Foundation Trust,23-Jul-10,MEDSURGCONS - OTHER,Surgery,NHS LOGISTICS,WSWI777569,27.37,
Department of Health,Salisbury NHS Foundation Trust,23-Jul-10,BEVERAGES & AMBIENT FOOD,Surgery,NHS LOGISTICS,WSWI777569,27.42,
Department of Health,Salisbury NHS Foundation Trust,23-Jul-10,MEDSURGCONS-SUTURES,Medicine,NHS LOGISTICS,WSWI777569,27.43,
Department of Health,Salisbury NHS Foundation Trust,23-Jul-10,SURGICAL INSTRUMENTS: GENERAL,Surgery,NHS LOGISTICS,WSWI777569,27.46,
Department of Health,Salisbury NHS Foundation Trust,23-Jul-10,MEDSURGCONS-SUTURES,Surgery,NHS LOGISTICS,WSWI777569,27.49,
Department of Health,Salisbury NHS Foundation Trust,23-Jul-10,ANAESTHETIC EQUIPMENT ACCESSORIES,Medicine,NHS LOGISTICS,WSWI777569,27.57,
Department of Health,Salisbury NHS Foundation Trust,23-Jul-10,PAPER ITEMS GENERAL STATIONERY SUNDRIES,Medicine,NHS LOGISTICS,WSWI777569,27.7,
Department of Health,Salisbury NHS Foundation Trust,23-Jul-10,PAPER ITEMS GENERAL STATIONERY SUNDRIES,Surgery,NHS LOGISTICS,WSWI777569,27.7,
Department of Health,Salisbury NHS Foundation Trust,23-Jul-10,PAPER ITEMS GENERAL STATIONERY SUNDRIES,Critical care,NHS LOGISTICS,WSWI777569,27.7,
Department of Health,Salisbury NHS Foundation Trust,23-Jul-10,DRESSINGS - PRE STERILE,Medicine,NHS LOGISTICS,WSWI777569,27.74,
Department of Health,Salisbury NHS Foundation Trust,23-Jul-10,MEDSURGCONS-SUTURES,Surgery,NHS LOGISTICS,WSWI777569,27.8,
Department of Health,Salisbury NHS Foundation Trust,23-Jul-10,TOILETRIES PERSONAL HYGIENE PRODUCTS,Medicine,NHS LOGISTICS,WSWI777569,27.81,
Department of Health,Salisbury NHS Foundation Trust,23-Jul-10,DRESSINGS - PRE STERILE,Surgery,NHS LOGISTICS,WSWI777569,27.86,
Department of Health,Salisbury NHS Foundation Trust,23-Jul-10,SURGICAL INSTRUMENTS: DISPOSABLE,Surgery,NHS LOGISTICS,WSWI777569,27.98,
Department of Health,Salisbury NHS Foundation Trust,23-Jul-10,SURGICAL INSTRUMENTS: DISPOSABLE,Surgery,NHS LOGISTICS,WSWI777569,27.98,
Department of Health,Salisbury NHS Foundation Trust,23-Jul-10,SURGICAL INSTRUMENTS: DISPOSABLE,Surgery,NHS LOGISTICS,WSWI777569,27.98,
Department of Health,Salisbury NHS Foundation Trust,23-Jul-10,MEDSURGCONS - OTHER,Clinical Support and Family Services,NHS LOGISTICS,WSWI777569,28.05,
Department of Health,Salisbury NHS Foundation Trust,23-Jul-10,MEDSURGCONS - OTHER,Medicine,NHS LOGISTICS,WSWI777569,28.05,
Department of Health,Salisbury NHS Foundation Trust,23-Jul-10,MEDSURGCONS - OTHER,Medicine,NHS LOGISTICS,WSWI777569,28.05,
Department of Health,Salisbury NHS Foundation Trust,23-Jul-10,MEDSURGCONS - OTHER,Critical care,NHS LOGISTICS,WSWI777569,28.05,
Department of Health,Salisbury NHS Foundation Trust,23-Jul-10,MEDSURGCONS - OTHER,Medicine,NHS LOGISTICS,WSWI777569,28.05,
Department of Health,Salisbury NHS Foundation Trust,23-Jul-10,MEDSURGCONS - OTHER,Surgery,NHS LOGISTICS,WSWI777569,28.05,
Department of Health,Salisbury NHS Foundation Trust,23-Jul-10,MEDSURGCONS - OTHER,Surgery,NHS LOGISTICS,WSWI777569,28.05,
